BODY,BODY NAME,Service Label,SERVICE CODE,ORGANISATIONAL UNIT,ORGANISATIONAL UNIT CODE,EXPENDITURE CATEGORY,EXPENDITURE CODE,DATE (POSTING DATE),TRANSACTION NUMBER,AMOUNT,SUPPLIER NAME,SUPPLIER ID
WARRINGTON BOROUGH COUNCIL,http://statistics.data.gov.uk/id/local-authority/00EU,Families & Wellbeing,FWB,Care Purchase - Learning Disability,54450,CP Adult Placement,443450,06-Nov-13,1900131743,"1,510.00",Redacted Personal Data,100044
WARRINGTON BOROUGH COUNCIL,http://statistics.data.gov.uk/id/local-authority/00EU,Families & Wellbeing,FWB,Care Purchase - Learning Disability,54450,CP Adult Placement,443450,25-Nov-13,1900133119,"1,510.00",Redacted Personal Data,100044
WARRINGTON BOROUGH COUNCIL,http://statistics.data.gov.uk/id/local-authority/00EU,Families & Wellbeing,FWB,Care Purchase - PD,54440,Direct Payments,552000,12-Nov-13,1900131972,"2,768.00",Redacted Personal Data,100049
WARRINGTON BOROUGH COUNCIL,http://statistics.data.gov.uk/id/local-authority/00EU,Families & Wellbeing,FWB,Care Purchase - PD,54440,CP Adult Placement,443450,05-Nov-13,1900131676,"3,021.00",Redacted Personal Data,100052
WARRINGTON BOROUGH COUNCIL,http://statistics.data.gov.uk/id/local-authority/00EU,Families & Wellbeing,FWB,Care Purchase - PD,54440,CP Adult Placement,443450,25-Nov-13,1900133124,"3,021.00",Redacted Personal Data,100052
WARRINGTON BOROUGH COUNCIL,http://statistics.data.gov.uk/id/local-authority/00EU,Families & Wellbeing,FWB,Care Purchase Budget,54490,CP ExternalOther Exp,440800,06-Nov-13,1900131715,"4,788.00",Heathfield Residental Home,100059
WARRINGTON BOROUGH COUNCIL,http://statistics.data.gov.uk/id/local-authority/00EU,Families & Wellbeing,FWB,Care Purchase Budget,54490,CP-LongStayExternal,441150,06-Nov-13,1900131711,"1,760.00",Heathfield Residental Home,100059
WARRINGTON BOROUGH COUNCIL,http://statistics.data.gov.uk/id/local-authority/00EU,Families & Wellbeing,FWB,Care Purchase Budget,54490,CP ExternalOther Exp,440800,13-Nov-13,1900132447,"17,000.00",Heathfield Residental Home,100059
WARRINGTON BOROUGH COUNCIL,http://statistics.data.gov.uk/id/local-authority/00EU,Resources and Strategic Commissioning,RSC,Coroners Service,11100,Post Mortem Fees-Rep,440250,14-Nov-13,1900132555,"1,511.00",Dr C M Manson,100080
WARRINGTON BOROUGH COUNCIL,http://statistics.data.gov.uk/id/local-authority/00EU,Families & Wellbeing,FWB,Care Purchase - OP & OT Central,54420,CP-LongStayExternal,441150,22-Nov-13,1900132958,"5,800.00",Voyage Care,100099
WARRINGTON BOROUGH COUNCIL,http://statistics.data.gov.uk/id/local-authority/00EU,Families & Wellbeing,FWB,Care Purchase - PD,54440,CP-Nursing Care-External,441200,22-Nov-13,1900132988,"5,680.00",Voyage Care,100099
WARRINGTON BOROUGH COUNCIL,http://statistics.data.gov.uk/id/local-authority/00EU,Families & Wellbeing,FWB,Care Purchase - Learning Disability,54450,CP-LongStayExternal,441150,22-Nov-13,1900132957,"8,418.00",Voyage Care,100099
WARRINGTON BOROUGH COUNCIL,http://statistics.data.gov.uk/id/local-authority/00EU,"Economic Regeneration, Growth and Environment",FOL,Care Purchase Adults Central,54135,CP-LongStayExternal,441150,22-Nov-13,1900132971,"6,685.00",Voyage Care,100099
WARRINGTON BOROUGH COUNCIL,http://statistics.data.gov.uk/id/local-authority/00EU,Families & Wellbeing,FWB,Care Purchase -OP & OT East,54430,CP-Nursing Care-External,441200,01-Nov-13,1900131481,"2,265.00",Community Integrated Care (Cic),100171
WARRINGTON BOROUGH COUNCIL,http://statistics.data.gov.uk/id/local-authority/00EU,Families & Wellbeing,FWB,Care Purchase -OP & OT East,54430,CP-Nursing Care-External,441200,27-Nov-13,1900133299,"1,812.00",Community Integrated Care (Cic),100171
WARRINGTON BOROUGH COUNCIL,http://statistics.data.gov.uk/id/local-authority/00EU,Families & Wellbeing,FWB,Care Purchase - IC,54290,CP ExternalOther Exp,440800,05-Nov-13,1900131678,595.00,Idg Holdings Ltd,100187
WARRINGTON BOROUGH COUNCIL,http://statistics.data.gov.uk/id/local-authority/00EU,Families & Wellbeing,FWB,Care Purchase - Learning Disability,54450,Direct Payments,552000,12-Nov-13,1900131974,717.00,Redacted Personal Data,100270
WARRINGTON BOROUGH COUNCIL,http://statistics.data.gov.uk/id/local-authority/00EU,Families & Wellbeing,FWB,Care Purchase -OP & OT East,54430,CP-LongStayExternal,441150,13-Nov-13,1900132440,"1,392.00",The Nugent Care Society,100277
WARRINGTON BOROUGH COUNCIL,http://statistics.data.gov.uk/id/local-authority/00EU,Families & Wellbeing,FWB,Care Purchase -OP & OT East,54430,CP-LongStayExternal,441150,13-Nov-13,1900132439,"1,752.00",The Nugent Care Society,100277
WARRINGTON BOROUGH COUNCIL,http://statistics.data.gov.uk/id/local-authority/00EU,Families & Wellbeing,FWB,Care Purchase -OP & OT East,54430,CP-LongStayExternal,441150,13-Nov-13,1900132438,"1,392.00",The Nugent Care Society,100277
WARRINGTON BOROUGH COUNCIL,http://statistics.data.gov.uk/id/local-authority/00EU,Families & Wellbeing,FWB,Care Purchase Budget,54490,CP ExternalOther Exp,440800,13-Nov-13,1900132450,"36,000.00",European Care (Uk) Ltd,100320
WARRINGTON BOROUGH COUNCIL,http://statistics.data.gov.uk/id/local-authority/00EU,Families & Wellbeing,FWB,Care Purchase Budget,54490,CP ExternalOther Exp,440800,22-Nov-13,1900132944,"8,512.00",European Care (Uk) Ltd,100320
WARRINGTON BOROUGH COUNCIL,http://statistics.data.gov.uk/id/local-authority/00EU,Families & Wellbeing,FWB,Care Purchase Budget,54490,CP-LongStayExternal,441150,22-Nov-13,1900132943,"3,040.00",European Care (Uk) Ltd,100320
WARRINGTON BOROUGH COUNCIL,http://statistics.data.gov.uk/id/local-authority/00EU,Families & Wellbeing,FWB,Care Purchase - PD,54440,Direct Payments,552000,12-Nov-13,1900131975,"1,797.00",Redacted Personal Data,100338
WARRINGTON BOROUGH COUNCIL,http://statistics.data.gov.uk/id/local-authority/00EU,Families & Wellbeing,FWB,Care Purchase - PD,54440,Direct Payments,552000,12-Nov-13,1900131976,"1,166.00",Redacted Personal Data,100340
WARRINGTON BOROUGH COUNCIL,http://statistics.data.gov.uk/id/local-authority/00EU,Resources and Strategic Commissioning,RSC,Coroners Service,11100,Hire Of Mortuaries,220200,05-Nov-13,1900131584,"1,600.00",Aintree Hospitals Nhs Trust,100341
WARRINGTON BOROUGH COUNCIL,http://statistics.data.gov.uk/id/local-authority/00EU,"Economic Regeneration, Growth and Environment",EG0,Estates & Valuation,43520,Gen. Personal Needs,490850,14-Nov-13,1900132500,910.00,Rics,100368
WARRINGTON BOROUGH COUNCIL,http://statistics.data.gov.uk/id/local-authority/00EU,Families & Wellbeing,FWB,Care Purchase - PD,54440,CP-Nursing Care-External,441200,26-Nov-13,1900133160,"5,192.00",Leonard Cheshire Disability,100370
WARRINGTON BOROUGH COUNCIL,http://statistics.data.gov.uk/id/local-authority/00EU,Families & Wellbeing,FWB,Care Purchase - PD,54440,CP-Nursing Care-External,441200,26-Nov-13,1900133162,"5,192.00",Leonard Cheshire Disability,100370
WARRINGTON BOROUGH COUNCIL,http://statistics.data.gov.uk/id/local-authority/00EU,Families & Wellbeing,FWB,Care Purchase - PD,54440,CP-Nursing Care-External,441200,26-Nov-13,1900133165,"5,192.00",Leonard Cheshire Disability,100370
WARRINGTON BOROUGH COUNCIL,http://statistics.data.gov.uk/id/local-authority/00EU,Families & Wellbeing,FWB,Care Purchase - PD,54440,CP-Nursing Care-External,441200,26-Nov-13,1900133164,"4,899.00",Leonard Cheshire Disability,100370
WARRINGTON BOROUGH COUNCIL,http://statistics.data.gov.uk/id/local-authority/00EU,Families & Wellbeing,FWB,Care Purchase - PD,54440,CP-Nursing Care-External,441200,26-Nov-13,1900133229,"2,780.00",Leonard Cheshire Disability,100370
WARRINGTON BOROUGH COUNCIL,http://statistics.data.gov.uk/id/local-authority/00EU,Resources and Strategic Commissioning,RSC,Coroners Service,11100,Post Mortem Fees-Rep,440250,14-Nov-13,1900132559,"1,164.00",Dr J Krajacevic,100409
WARRINGTON BOROUGH COUNCIL,http://statistics.data.gov.uk/id/local-authority/00EU,Families & Wellbeing,FWB,Care Purchase - Learning Disability,54450,CP-Nursing Care-External,441200,22-Nov-13,1900132990,"2,576.00",Chadderton Total-Care Unit Ltd,100425
WARRINGTON BOROUGH COUNCIL,http://statistics.data.gov.uk/id/local-authority/00EU,Resources and Strategic Commissioning,RSC,Coroners Service,11100,Consult.& Prof. Serv,440000,14-Nov-13,1900132542,721.00,Accent Uk,100435
WARRINGTON BOROUGH COUNCIL,http://statistics.data.gov.uk/id/local-authority/00EU,Families & Wellbeing,FWB,Care Purchase - Learning Disability,54450,Direct Payments,552000,12-Nov-13,1900131978,720.00,Redacted Personal Data,100452
WARRINGTON BOROUGH COUNCIL,http://statistics.data.gov.uk/id/local-authority/00EU,Families & Wellbeing,FWB,Care Purchase - PD,54440,Direct Payments,552000,20-Nov-13,1900133225,"6,488.00",Redacted Personal Data,100472
WARRINGTON BOROUGH COUNCIL,http://statistics.data.gov.uk/id/local-authority/00EU,Families & Wellbeing,FWB,Care Purchase Budget,54490,CP - Cont Care - External,441350,06-Nov-13,1900131712,"4,785.00",The Extracare Charitable Trust,100497
WARRINGTON BOROUGH COUNCIL,http://statistics.data.gov.uk/id/local-authority/00EU,Families & Wellbeing,FWB,Care Purchase Budget,54490,CP Free Nursing Care External,443500,06-Nov-13,1900131712,"3,478.00",The Extracare Charitable Trust,100497
WARRINGTON BOROUGH COUNCIL,http://statistics.data.gov.uk/id/local-authority/00EU,Families & Wellbeing,FWB,Care Purchase - OP & OT Central,54420,CP - Housing with Care - External,494450,06-Nov-13,1900131712,"21,350.00",The Extracare Charitable Trust,100497
WARRINGTON BOROUGH COUNCIL,http://statistics.data.gov.uk/id/local-authority/00EU,Families & Wellbeing,FWB,Care Purchase - PD,54440,CP - Housing with Care - External,494450,06-Nov-13,1900131712,"2,393.00",The Extracare Charitable Trust,100497
WARRINGTON BOROUGH COUNCIL,http://statistics.data.gov.uk/id/local-authority/00EU,Families & Wellbeing,FWB,Care Purchase Budget,54490,CP - Cont Care - External,441350,22-Nov-13,1900132883,580.00,The Extracare Charitable Trust,100497
WARRINGTON BOROUGH COUNCIL,http://statistics.data.gov.uk/id/local-authority/00EU,Families & Wellbeing,FWB,Care Purchase Budget,54490,CP - Cont Care - External,441350,22-Nov-13,1900132884,580.00,The Extracare Charitable Trust,100497
WARRINGTON BOROUGH COUNCIL,http://statistics.data.gov.uk/id/local-authority/00EU,Resources and Strategic Commissioning,RSC,Coroners Service,11100,Post Mortem Fees-Rep,440250,06-Nov-13,1900131687,"4,755.00",Redacted Personal Data,100499
WARRINGTON BOROUGH COUNCIL,http://statistics.data.gov.uk/id/local-authority/00EU,Families & Wellbeing,FWB,Care Purchase - PD,54440,Direct Payments,552000,12-Nov-13,1900131980,737.00,Redacted Personal Data,100508
WARRINGTON BOROUGH COUNCIL,http://statistics.data.gov.uk/id/local-authority/00EU,Resources and Strategic Commissioning,RSC,Council Tax & Recovery,10320,External Printing,430100,08-Nov-13,1900131822,"2,400.00",Vertex Data Science,100530
WARRINGTON BOROUGH COUNCIL,http://statistics.data.gov.uk/id/local-authority/00EU,"Economic Regeneration, Growth and Environment",EG0,Estates & Valuation,43520,Agency Supply - GF,180000,28-Nov-13,1900133424,551.00,Anderselite,100563
WARRINGTON BOROUGH COUNCIL,http://statistics.data.gov.uk/id/local-authority/00EU,"Economic Regeneration, Growth and Environment",EG0,Estates & Valuation,43520,Agency Supply - GF,180000,28-Nov-13,1900133422,591.00,Anderselite,100563
WARRINGTON BOROUGH COUNCIL,http://statistics.data.gov.uk/id/local-authority/00EU,"Economic Regeneration, Growth and Environment",EG0,Estates & Valuation,43520,Agency Supply - GF,180000,29-Nov-13,1900133488,591.00,Anderselite,100563
WARRINGTON BOROUGH COUNCIL,http://statistics.data.gov.uk/id/local-authority/00EU,Resources and Strategic Commissioning,RSC,Coroners Service,11100,Post Mortem Fees-Rep,440250,14-Nov-13,1900132568,572.00,Dr N Alash,100579
WARRINGTON BOROUGH COUNCIL,http://statistics.data.gov.uk/id/local-authority/00EU,Families & Wellbeing,FWB,Care Purchase - Learning Disability,54450,CP-LongStayExternal,441150,27-Nov-13,1900133255,"2,797.00",Redacted Personal Data,100583
WARRINGTON BOROUGH COUNCIL,http://statistics.data.gov.uk/id/local-authority/00EU,Resources and Strategic Commissioning,ACO,Assistant Chief Executive Other,84003,Computer Software - Purchase,450800,01-Nov-13,1900131502,671.00,Civica Uk Ltd,100585
WARRINGTON BOROUGH COUNCIL,http://statistics.data.gov.uk/id/local-authority/00EU,Families & Wellbeing,FWB,Care Purchase - Learning Disability,54450,Direct Payments,552000,12-Nov-13,1900131981,"1,120.00",Redacted Personal Data,100607
WARRINGTON BOROUGH COUNCIL,http://statistics.data.gov.uk/id/local-authority/00EU,Families & Wellbeing,FWB,Care Purchase - PD,54440,Direct Payments,552000,12-Nov-13,1900131983,"1,907.00",Redacted Personal Data,100666
WARRINGTON BOROUGH COUNCIL,http://statistics.data.gov.uk/id/local-authority/00EU,Families & Wellbeing,FWB,Care Purchase - PD,54440,Direct Payments,552000,12-Nov-13,1900131984,"1,778.00",Redacted Personal Data,100667
WARRINGTON BOROUGH COUNCIL,http://statistics.data.gov.uk/id/local-authority/00EU,Resources and Strategic Commissioning,RSC,Postal & Courier Services,52130,Postages,450000,11-Nov-13,1900131907,804.00,Neopost Finance Ltd Supplies/Top up,100694
WARRINGTON BOROUGH COUNCIL,http://statistics.data.gov.uk/id/local-authority/00EU,Families & Wellbeing,FWB,Care Purchase - OP & OT South,54480,CP-LongStayExternal,441150,26-Nov-13,1900133153,"1,540.00",Alexandra Care Home,100708
WARRINGTON BOROUGH COUNCIL,http://statistics.data.gov.uk/id/local-authority/00EU,Families & Wellbeing,FWB,Care Purchase - OP & OT South,54480,CP-LongStayExternal,441150,26-Nov-13,1900133154,"1,540.00",Alexandra Care Home,100708
WARRINGTON BOROUGH COUNCIL,http://statistics.data.gov.uk/id/local-authority/00EU,Families & Wellbeing,CYP,Childrens Other,81004,Furniture & Fittings,400150,20-Nov-13,1900132716,"3,211.00",Morleys of Bichester,100714
WARRINGTON BOROUGH COUNCIL,http://statistics.data.gov.uk/id/local-authority/00EU,Resources and Strategic Commissioning,RSC,Legal Services,11200,Subscriptions,470000,04-Nov-13,1900131561,878.00,CILEX,100720
WARRINGTON BOROUGH COUNCIL,http://statistics.data.gov.uk/id/local-authority/00EU,Families & Wellbeing,FWB,Care Purchase - Learning Disability,54450,CP-Domicil.External,440950,01-Nov-13,1900131503,"4,538.00",Independent Living Alliance,100726
WARRINGTON BOROUGH COUNCIL,http://statistics.data.gov.uk/id/local-authority/00EU,"Economic Regeneration, Growth and Environment",FOL,Care Purchase Adults Central,54135,CP-Domicil.External,440950,01-Nov-13,1900131507,"3,086.00",Independent Living Alliance,100726
WARRINGTON BOROUGH COUNCIL,http://statistics.data.gov.uk/id/local-authority/00EU,"Economic Regeneration, Growth and Environment",FOL,Care Purchase Adults Central,54135,CP-Domicil.External,440950,01-Nov-13,1900131495,"16,489.00",Independent Living Alliance,100726
WARRINGTON BOROUGH COUNCIL,http://statistics.data.gov.uk/id/local-authority/00EU,Families & Wellbeing,FWB,Care Purchase - ABI,54260,CP-Domicil.External,440950,01-Nov-13,1900131495,"1,605.00",Independent Living Alliance,100726
WARRINGTON BOROUGH COUNCIL,http://statistics.data.gov.uk/id/local-authority/00EU,"Economic Regeneration, Growth and Environment",FOL,Care Purchase Adults Central,54135,CP-Domicil.External,440950,01-Nov-13,1900131504,"10,257.00",Independent Living Alliance,100726
WARRINGTON BOROUGH COUNCIL,http://statistics.data.gov.uk/id/local-authority/00EU,Families & Wellbeing,FWB,Care Purchase - PD,54440,CP-Domicil.External,440950,01-Nov-13,1900131504,"2,564.00",Independent Living Alliance,100726
WARRINGTON BOROUGH COUNCIL,http://statistics.data.gov.uk/id/local-authority/00EU,"Economic Regeneration, Growth and Environment",FOL,Care Purchase Adults Central,54135,Supporting People - External,441250,01-Nov-13,1900131504,"5,453.00",Independent Living Alliance,100726
WARRINGTON BOROUGH COUNCIL,http://statistics.data.gov.uk/id/local-authority/00EU,Families & Wellbeing,FWB,Care Purchase - PD,54440,Supporting People - External,441250,01-Nov-13,1900131504,"1,363.00",Independent Living Alliance,100726
WARRINGTON BOROUGH COUNCIL,http://statistics.data.gov.uk/id/local-authority/00EU,"Economic Regeneration, Growth and Environment",FOL,Care Purchase Adults Central,54135,CP-Domicil.External,440950,01-Nov-13,1900131505,"15,655.00",Independent Living Alliance,100726
WARRINGTON BOROUGH COUNCIL,http://statistics.data.gov.uk/id/local-authority/00EU,"Economic Regeneration, Growth and Environment",FOL,Care Purchase Adults Central,54135,Supporting People - External,441250,01-Nov-13,1900131505,"2,470.00",Independent Living Alliance,100726
WARRINGTON BOROUGH COUNCIL,http://statistics.data.gov.uk/id/local-authority/00EU,"Economic Regeneration, Growth and Environment",FOL,Care Purchase Adults Central,54135,CP-Domicil.External,440950,01-Nov-13,1900131506,"10,509.00",Independent Living Alliance,100726
WARRINGTON BOROUGH COUNCIL,http://statistics.data.gov.uk/id/local-authority/00EU,"Economic Regeneration, Growth and Environment",FOL,Care Purchase Adults Central,54135,Supporting People - External,441250,01-Nov-13,1900131506,"5,329.00",Independent Living Alliance,100726
WARRINGTON BOROUGH COUNCIL,http://statistics.data.gov.uk/id/local-authority/00EU,"Economic Regeneration, Growth and Environment",FOL,Care Purchase Adults Central,54135,CP-Domicil.External,440950,06-Nov-13,1900131724,"8,267.00",Independent Living Alliance,100726
WARRINGTON BOROUGH COUNCIL,http://statistics.data.gov.uk/id/local-authority/00EU,Families & Wellbeing,FWB,Care Purchase - ABI,54260,CP-Domicil.External,440950,06-Nov-13,1900131724,"2,357.00",Independent Living Alliance,100726
WARRINGTON BOROUGH COUNCIL,http://statistics.data.gov.uk/id/local-authority/00EU,Families & Wellbeing,FWB,Care Purchase - Learning Disability,54450,CP-Domicil.External,440950,06-Nov-13,1900131724,"1,756.00",Independent Living Alliance,100726
WARRINGTON BOROUGH COUNCIL,http://statistics.data.gov.uk/id/local-authority/00EU,Families & Wellbeing,FWB,Care Purchase Budget,54490,CP - Cont Care - External,441350,06-Nov-13,1900131724,"8,702.00",Independent Living Alliance,100726
WARRINGTON BOROUGH COUNCIL,http://statistics.data.gov.uk/id/local-authority/00EU,Resources and Strategic Commissioning,RSC,Coroners Service,11100,Post Mortem Fees-Rep,440250,14-Nov-13,1900132570,893.00,Dr H Al Rawi,100745
WARRINGTON BOROUGH COUNCIL,http://statistics.data.gov.uk/id/local-authority/00EU,Resources and Strategic Commissioning,RSC,Coroners Service,11100,Post Mortem Fees-Rep,440250,14-Nov-13,1900132572,"1,401.00",Dr D Butterworth,100765
WARRINGTON BOROUGH COUNCIL,http://statistics.data.gov.uk/id/local-authority/00EU,Families & Wellbeing,FWB,Care Purchase - PD,54440,Direct Payments,552000,12-Nov-13,1900131985,851.00,Redacted Personal Data,100766
WARRINGTON BOROUGH COUNCIL,http://statistics.data.gov.uk/id/local-authority/00EU,Families & Wellbeing,FWB,Care Purchase -OP & OT East,54430,CP-Domicil.External,440950,01-Nov-13,1900131476,"4,068.00",Allied Healthcare Group Ltd,100796
WARRINGTON BOROUGH COUNCIL,http://statistics.data.gov.uk/id/local-authority/00EU,Families & Wellbeing,FWB,Care Purchase - OP & OT Central,54420,CP-Domicil.External,440950,01-Nov-13,1900131476,"3,214.00",Allied Healthcare Group Ltd,100796
WARRINGTON BOROUGH COUNCIL,http://statistics.data.gov.uk/id/local-authority/00EU,Families & Wellbeing,FWB,Care Purchase - PD,54440,CP-Domicil.External,440950,01-Nov-13,1900131476,594.00,Allied Healthcare Group Ltd,100796
WARRINGTON BOROUGH COUNCIL,http://statistics.data.gov.uk/id/local-authority/00EU,Families & Wellbeing,FWB,Care Purchase - PD,54440,CP-Domicil.External,440950,01-Nov-13,1900131477,"4,258.00",Allied Healthcare Group Ltd,100796
WARRINGTON BOROUGH COUNCIL,http://statistics.data.gov.uk/id/local-authority/00EU,Families & Wellbeing,FWB,Care Purchase - PD,54440,Supporting People - External,441250,01-Nov-13,1900131477,718.00,Allied Healthcare Group Ltd,100796
WARRINGTON BOROUGH COUNCIL,http://statistics.data.gov.uk/id/local-authority/00EU,Families & Wellbeing,FWB,Care Purchase - PD,54440,Direct Payments,552000,12-Nov-13,1900131986,"3,059.00",Redacted Personal Data,100879
WARRINGTON BOROUGH COUNCIL,http://statistics.data.gov.uk/id/local-authority/00EU,Families & Wellbeing,FWB,Care Purchase - PD,54440,Direct Payments,552000,12-Nov-13,1900131987,"1,231.00",Redacted Personal Data,100890
WARRINGTON BOROUGH COUNCIL,http://statistics.data.gov.uk/id/local-authority/00EU,Families & Wellbeing,FWB,Care Purchase - OP & OT West,54470,CP-LongStayExternal,441150,22-Nov-13,1900132952,"1,780.00",Linear Park (Housing With Care),100897
WARRINGTON BOROUGH COUNCIL,http://statistics.data.gov.uk/id/local-authority/00EU,Families & Wellbeing,CYP,Childrens Other,81004,ICT Comms - Equipment Purchase,450100,04-Nov-13,1900131582,"2,136.00",Edac Solutions North West,100899
WARRINGTON BOROUGH COUNCIL,http://statistics.data.gov.uk/id/local-authority/00EU,Families & Wellbeing,CYP,Childrens Other,81004,ICT Comms - Equipment Purchase,450100,06-Nov-13,1900131694,"8,647.00",Edac Solutions North West,100899
WARRINGTON BOROUGH COUNCIL,http://statistics.data.gov.uk/id/local-authority/00EU,Families & Wellbeing,CYP,Childrens Other,81004,ICT Comms - Equipment Purchase,450100,20-Nov-13,1900132712,"2,365.00",Edac Solutions North West,100899
WARRINGTON BOROUGH COUNCIL,http://statistics.data.gov.uk/id/local-authority/00EU,Families & Wellbeing,FWB,Care Purchase - Learning Disability,54450,CP-Domicil.External,440950,01-Nov-13,1900131487,"38,455.00",Creative Support Ltd,100902
WARRINGTON BOROUGH COUNCIL,http://statistics.data.gov.uk/id/local-authority/00EU,Families & Wellbeing,FWB,Care Purchase - Learning Disability,54450,Supporting People - External,441250,01-Nov-13,1900131487,"4,728.00",Creative Support Ltd,100902
WARRINGTON BOROUGH COUNCIL,http://statistics.data.gov.uk/id/local-authority/00EU,Families & Wellbeing,FWB,Care Purchase Budget,54490,Voids,515150,01-Nov-13,1900131487,"1,319.00",Creative Support Ltd,100902
WARRINGTON BOROUGH COUNCIL,http://statistics.data.gov.uk/id/local-authority/00EU,Families & Wellbeing,FWB,Care Purchase - ABI,54260,CP-Domicil.External,440950,01-Nov-13,1900131485,"1,023.00",Creative Support Ltd,100902
WARRINGTON BOROUGH COUNCIL,http://statistics.data.gov.uk/id/local-authority/00EU,Families & Wellbeing,FWB,Care Purchase - Learning Disability,54450,Supporting People - External,441250,01-Nov-13,1900131485,"6,787.00",Creative Support Ltd,100902
WARRINGTON BOROUGH COUNCIL,http://statistics.data.gov.uk/id/local-authority/00EU,Families & Wellbeing,FWB,Care Purchase - Learning Disability,54450,CP-Domicil.External,440950,01-Nov-13,1900131486,"2,609.00",Creative Support Ltd,100902
WARRINGTON BOROUGH COUNCIL,http://statistics.data.gov.uk/id/local-authority/00EU,Families & Wellbeing,FWB,Care Purchase - Learning Disability,54450,Supporting People - External,441250,01-Nov-13,1900131486,"6,430.00",Creative Support Ltd,100902
WARRINGTON BOROUGH COUNCIL,http://statistics.data.gov.uk/id/local-authority/00EU,Families & Wellbeing,FWB,Care Purchase - ABI,54260,CP-Domicil.External,440950,01-Nov-13,1900131488,"3,031.00",Creative Support Ltd,100902
WARRINGTON BOROUGH COUNCIL,http://statistics.data.gov.uk/id/local-authority/00EU,Families & Wellbeing,FWB,Care Purchase - PD,54440,CP-Domicil.External,440950,01-Nov-13,1900131488,"9,093.00",Creative Support Ltd,100902
WARRINGTON BOROUGH COUNCIL,http://statistics.data.gov.uk/id/local-authority/00EU,Families & Wellbeing,FWB,Care Purchase Budget,54490,CP - Cont Care - External,441350,01-Nov-13,1900131488,"3,031.00",Creative Support Ltd,100902
WARRINGTON BOROUGH COUNCIL,http://statistics.data.gov.uk/id/local-authority/00EU,Families & Wellbeing,FWB,Care Purchase Budget,54490,Voids,515150,01-Nov-13,1900131488,"6,062.00",Creative Support Ltd,100902
WARRINGTON BOROUGH COUNCIL,http://statistics.data.gov.uk/id/local-authority/00EU,"Economic Regeneration, Growth and Environment",FOL,Care Purchase Adults Central,54135,CP-Domicil.External,440950,01-Nov-13,1900131484,"1,632.00",Creative Support Ltd,100902
WARRINGTON BOROUGH COUNCIL,http://statistics.data.gov.uk/id/local-authority/00EU,Families & Wellbeing,FWB,Care Purchase - PD,54440,CP-Domicil.External,440950,01-Nov-13,1900131490,"1,189.00",Creative Support Ltd,100902
WARRINGTON BOROUGH COUNCIL,http://statistics.data.gov.uk/id/local-authority/00EU,"Economic Regeneration, Growth and Environment",FOL,Care Purchase Adults Central,54135,CP-Domicil.External,440950,01-Nov-13,1900131489,506.00,Creative Support Ltd,100902
WARRINGTON BOROUGH COUNCIL,http://statistics.data.gov.uk/id/local-authority/00EU,Families & Wellbeing,FWB,Care Purchase - ABI,54260,CP-Domicil.External,440950,01-Nov-13,1900131489,"2,302.00",Creative Support Ltd,100902
WARRINGTON BOROUGH COUNCIL,http://statistics.data.gov.uk/id/local-authority/00EU,Families & Wellbeing,FWB,Care Purchase - PD,54440,CP-Domicil.External,440950,01-Nov-13,1900131489,"1,347.00",Creative Support Ltd,100902
WARRINGTON BOROUGH COUNCIL,http://statistics.data.gov.uk/id/local-authority/00EU,Families & Wellbeing,FWB,Care Purchase - Learning Disability,54450,CP-Domicil.External,440950,06-Nov-13,1900131732,"9,591.00",Creative Support Ltd,100902
WARRINGTON BOROUGH COUNCIL,http://statistics.data.gov.uk/id/local-authority/00EU,Families & Wellbeing,FWB,Care Purchase - Mental Health Team 1,54230,CP-Domicil.External,440950,15-Nov-13,1900132603,506.00,Creative Support Ltd,100902
WARRINGTON BOROUGH COUNCIL,http://statistics.data.gov.uk/id/local-authority/00EU,Families & Wellbeing,FWB,Care Purchase - ABI,54260,CP-Domicil.External,440950,15-Nov-13,1900132603,"2,707.00",Creative Support Ltd,100902
WARRINGTON BOROUGH COUNCIL,http://statistics.data.gov.uk/id/local-authority/00EU,Families & Wellbeing,FWB,Care Purchase - PD,54440,CP-Domicil.External,440950,15-Nov-13,1900132603,"1,354.00",Creative Support Ltd,100902
WARRINGTON BOROUGH COUNCIL,http://statistics.data.gov.uk/id/local-authority/00EU,Families & Wellbeing,FWB,Care Purchase - PD,54440,Supporting People - External,441250,22-Nov-13,1900132887,"5,079.00",Creative Support Ltd,100902
WARRINGTON BOROUGH COUNCIL,http://statistics.data.gov.uk/id/local-authority/00EU,Families & Wellbeing,FWB,Care Purchase Budget,54490,Voids,515150,22-Nov-13,1900132887,"1,952.00",Creative Support Ltd,100902
WARRINGTON BOROUGH COUNCIL,http://statistics.data.gov.uk/id/local-authority/00EU,Families & Wellbeing,FWB,Care Purchase - PD,54440,Supporting People - External,441250,22-Nov-13,1900132886,"5,079.00",Creative Support Ltd,100902
WARRINGTON BOROUGH COUNCIL,http://statistics.data.gov.uk/id/local-authority/00EU,Families & Wellbeing,FWB,Care Purchase Budget,54490,Voids,515150,22-Nov-13,1900132886,"1,952.00",Creative Support Ltd,100902
WARRINGTON BOROUGH COUNCIL,http://statistics.data.gov.uk/id/local-authority/00EU,Families & Wellbeing,FWB,Care Purchase -OP & OT East,54430,Direct Payments,552000,12-Nov-13,1900131988,"1,142.00",Redacted Personal Data,100907
WARRINGTON BOROUGH COUNCIL,http://statistics.data.gov.uk/id/local-authority/00EU,Families & Wellbeing,FWB,Care Purchase - OP & OT South,54480,Direct Payments,552000,12-Nov-13,1900131990,661.00,Redacted Personal Data,100934
WARRINGTON BOROUGH COUNCIL,http://statistics.data.gov.uk/id/local-authority/00EU,Families & Wellbeing,FWB,Care Purchase - Learning Disability,54450,Direct Payments,552000,12-Nov-13,1900131991,"1,120.00",Redacted Personal Data,100945
WARRINGTON BOROUGH COUNCIL,http://statistics.data.gov.uk/id/local-authority/00EU,Resources and Strategic Commissioning,RSC,Postal & Courier Services,52130,Postages,450000,08-Nov-13,1900131786,"1,680.00",Logistex Express Ltd,100946
WARRINGTON BOROUGH COUNCIL,http://statistics.data.gov.uk/id/local-authority/00EU,Families & Wellbeing,FWB,Care Purchase - Learning Disability,54450,Direct Payments,552000,12-Nov-13,1900131992,"2,026.00",Redacted Personal Data,100954
WARRINGTON BOROUGH COUNCIL,http://statistics.data.gov.uk/id/local-authority/00EU,Families & Wellbeing,FWB,Care Purchase - Learning Disability,54450,Supporting People - External,441250,12-Nov-13,1900131993,"1,360.00",Redacted Personal Data,100959
WARRINGTON BOROUGH COUNCIL,http://statistics.data.gov.uk/id/local-authority/00EU,Families & Wellbeing,FWB,Care Purchase - Learning Disability,54450,Direct Payments,552000,12-Nov-13,1900131993,"3,787.00",Redacted Personal Data,100959
WARRINGTON BOROUGH COUNCIL,http://statistics.data.gov.uk/id/local-authority/00EU,Resources and Strategic Commissioning,RSC,Coroners Service,11100,Post Mortem Fees-Rep,440250,25-Nov-13,1900133074,874.00,Dr S A Hales,100988
WARRINGTON BOROUGH COUNCIL,http://statistics.data.gov.uk/id/local-authority/00EU,Families & Wellbeing,FWB,Care Purchase - PD,54440,Direct Payments,552000,12-Nov-13,1900131994,"1,146.00",Redacted Personal Data,101007
WARRINGTON BOROUGH COUNCIL,http://statistics.data.gov.uk/id/local-authority/00EU,Families & Wellbeing,FWB,Care Purchase - ABI,54260,Direct Payments,552000,12-Nov-13,1900131995,"2,390.00",Redacted Personal Data,101016
WARRINGTON BOROUGH COUNCIL,http://statistics.data.gov.uk/id/local-authority/00EU,Families & Wellbeing,FWB,DSG Early Years PVI Settings,32417,Private & Voluntary 3 Year Olds,470100,13-Nov-13,1900133104,"1,500.00",The Lakes Nursery,101036
WARRINGTON BOROUGH COUNCIL,http://statistics.data.gov.uk/id/local-authority/00EU,Families & Wellbeing,FWB,Care Purchase - Learning Disability,54450,Direct Payments,552000,12-Nov-13,1900131997,"1,760.00",Redacted Personal Data,101045
WARRINGTON BOROUGH COUNCIL,http://statistics.data.gov.uk/id/local-authority/00EU,Families & Wellbeing,FWB,Care Purchase Budget,54490,CP ExternalOther Exp,440800,11-Nov-13,1900131879,"2,480.00",Ashberry Healthcare Ltd,101061
WARRINGTON BOROUGH COUNCIL,http://statistics.data.gov.uk/id/local-authority/00EU,Families & Wellbeing,FWB,Care Purchase Budget,54490,CP ExternalOther Exp,440800,13-Nov-13,1900132489,"51,000.00",Ashberry Healthcare Ltd,101061
WARRINGTON BOROUGH COUNCIL,http://statistics.data.gov.uk/id/local-authority/00EU,"Economic Regeneration, Growth and Environment",ENO,Housing Projects,82008,Disabled Persons Grant 1996,554000,20-Nov-13,1900132709,"3,170.00",Stannah Lift Services,101099
WARRINGTON BOROUGH COUNCIL,http://statistics.data.gov.uk/id/local-authority/00EU,Families & Wellbeing,FWB,Care Purchase - Learning Disability,54450,Direct Payments,552000,12-Nov-13,1900131999,"9,048.00",Redacted Personal Data,101104
WARRINGTON BOROUGH COUNCIL,http://statistics.data.gov.uk/id/local-authority/00EU,Resources and Strategic Commissioning,RSC,Winter Pressures,53400,Gen. Personal Needs,490850,13-Nov-13,1900132473,"5,600.00",Fearnhead Cross Medical Centre,101109
WARRINGTON BOROUGH COUNCIL,http://statistics.data.gov.uk/id/local-authority/00EU,Families & Wellbeing,FWB,Care Purchase - PD,54440,Direct Payments,552000,12-Nov-13,1900132001,849.00,Redacted Personal Data,101147
WARRINGTON BOROUGH COUNCIL,http://statistics.data.gov.uk/id/local-authority/00EU,Corporate Financing,COR,Fees & Subscriptions,60020,Bank Charges,441650,11-Nov-13,1900131900,"6,498.00",Pcf,101158
WARRINGTON BOROUGH COUNCIL,http://statistics.data.gov.uk/id/local-authority/00EU,Families & Wellbeing,FWB,Care Purchase -OP & OT East,54430,Direct Payments,552000,12-Nov-13,1900132003,812.00,Redacted Personal Data,101174
WARRINGTON BOROUGH COUNCIL,http://statistics.data.gov.uk/id/local-authority/00EU,Families & Wellbeing,FWB,Care Purchase - Learning Disability,54450,CP Adult Placement,443450,05-Nov-13,1900131675,"1,510.00",Redacted Personal Data,101175
WARRINGTON BOROUGH COUNCIL,http://statistics.data.gov.uk/id/local-authority/00EU,Families & Wellbeing,FWB,Care Purchase - Learning Disability,54450,CP Adult Placement,443450,25-Nov-13,1900133121,"1,510.00",Redacted Personal Data,101175
WARRINGTON BOROUGH COUNCIL,http://statistics.data.gov.uk/id/local-authority/00EU,Families & Wellbeing,CYP,Special,81003,Equipment Purchase & Contract,400000,18-Nov-13,1900132652,"3,900.00",Cdn Networks,101189
WARRINGTON BOROUGH COUNCIL,http://statistics.data.gov.uk/id/local-authority/00EU,"Economic Regeneration, Growth and Environment",ENO,Housing Projects,82008,Disabled Persons Grant 1996,554000,04-Nov-13,1900131565,743.00,Warrington Housing Current Acc,101208
WARRINGTON BOROUGH COUNCIL,http://statistics.data.gov.uk/id/local-authority/00EU,Families & Wellbeing,FWB,Homelessness,43650,Management Fee,525550,06-Nov-13,1900131700,"1,951.00",Warrington Housing Current Acc,101208
WARRINGTON BOROUGH COUNCIL,http://statistics.data.gov.uk/id/local-authority/00EU,Families & Wellbeing,FWB,Homelessness,43650,Management Fee,525550,06-Nov-13,1900131699,914.00,Warrington Housing Current Acc,101208
WARRINGTON BOROUGH COUNCIL,http://statistics.data.gov.uk/id/local-authority/00EU,"Economic Regeneration, Growth and Environment",ENO,Housing Projects,82008,Disabled Persons Grant 1996,554000,18-Nov-13,1900132655,695.00,Warrington Housing Current Acc,101208
WARRINGTON BOROUGH COUNCIL,http://statistics.data.gov.uk/id/local-authority/00EU,"Economic Regeneration, Growth and Environment",ENO,Housing Projects,82008,Disabled Persons Grant 1996,554000,25-Nov-13,1900133066,668.00,Warrington Housing Current Acc,101208
WARRINGTON BOROUGH COUNCIL,http://statistics.data.gov.uk/id/local-authority/00EU,"Economic Regeneration, Growth and Environment",ENO,Housing Projects,82008,Disabled Persons Grant 1996,554000,27-Nov-13,1900133301,747.00,Warrington Housing Current Acc,101208
WARRINGTON BOROUGH COUNCIL,http://statistics.data.gov.uk/id/local-authority/00EU,"Economic Regeneration, Growth and Environment",ENO,Housing Projects,82008,Disabled Persons Grant 1996,554000,28-Nov-13,1900133437,625.00,Warrington Housing Current Acc,101208
WARRINGTON BOROUGH COUNCIL,http://statistics.data.gov.uk/id/local-authority/00EU,Families & Wellbeing,FWB,Care Purchase - Learning Disability,54450,CP-LongStayExternal,441150,06-Nov-13,1900131730,"10,471.00",Pendleton Care Limited,101213
WARRINGTON BOROUGH COUNCIL,http://statistics.data.gov.uk/id/local-authority/00EU,Families & Wellbeing,FWB,Care Purchase - Learning Disability,54450,CP-LongStayExternal,441150,22-Nov-13,1900132878,"4,243.00",Pendleton Care Limited,101213
WARRINGTON BOROUGH COUNCIL,http://statistics.data.gov.uk/id/local-authority/00EU,Families & Wellbeing,FWB,Care Purchase - Learning Disability,54450,CP-LongStayExternal,441150,27-Nov-13,1900133388,"10,471.00",Pendleton Care Limited,101213
WARRINGTON BOROUGH COUNCIL,http://statistics.data.gov.uk/id/local-authority/00EU,"Economic Regeneration, Growth and Environment",FOL,Care Purchase Adults Central,54135,CP-Domicil.External,440950,22-Nov-13,1900132873,"1,862.00",Next Stage A Way Forward Ltd,101217
WARRINGTON BOROUGH COUNCIL,http://statistics.data.gov.uk/id/local-authority/00EU,"Economic Regeneration, Growth and Environment",FOL,Care Purchase Adults Central,54135,CP-Domicil.External,440950,22-Nov-13,1900132875,"1,862.00",Next Stage A Way Forward Ltd,101217
WARRINGTON BOROUGH COUNCIL,http://statistics.data.gov.uk/id/local-authority/00EU,"Economic Regeneration, Growth and Environment",FOL,Care Purchase Adults Central,54135,CP-Domicil.External,440950,25-Nov-13,1900133142,"1,305.00",Next Stage A Way Forward Ltd,101217
WARRINGTON BOROUGH COUNCIL,http://statistics.data.gov.uk/id/local-authority/00EU,"Economic Regeneration, Growth and Environment",FOL,Care Purchase Adults Central,54135,CP-Domicil.External,440950,25-Nov-13,1900133143,549.00,Next Stage A Way Forward Ltd,101217
WARRINGTON BOROUGH COUNCIL,http://statistics.data.gov.uk/id/local-authority/00EU,"Economic Regeneration, Growth and Environment",FOL,Care Purchase Adults Central,54135,CP-Domicil.External,440950,25-Nov-13,1900133127,"1,923.00",Next Stage A Way Forward Ltd,101217
WARRINGTON BOROUGH COUNCIL,http://statistics.data.gov.uk/id/local-authority/00EU,"Economic Regeneration, Growth and Environment",FOL,Care Purchase Adults Central,54135,CP-Domicil.External,440950,25-Nov-13,1900133126,"1,145.00",Next Stage A Way Forward Ltd,101217
WARRINGTON BOROUGH COUNCIL,http://statistics.data.gov.uk/id/local-authority/00EU,"Economic Regeneration, Growth and Environment",FOL,Care Purchase Adults Central,54135,CP-Domicil.External,440950,25-Nov-13,1900133133,824.00,Next Stage A Way Forward Ltd,101217
WARRINGTON BOROUGH COUNCIL,http://statistics.data.gov.uk/id/local-authority/00EU,"Economic Regeneration, Growth and Environment",FOL,Care Purchase Adults Central,54135,CP-Domicil.External,440950,25-Nov-13,1900133132,916.00,Next Stage A Way Forward Ltd,101217
WARRINGTON BOROUGH COUNCIL,http://statistics.data.gov.uk/id/local-authority/00EU,"Economic Regeneration, Growth and Environment",FOL,Care Purchase Adults Central,54135,CP-Domicil.External,440950,25-Nov-13,1900133129,"1,648.00",Next Stage A Way Forward Ltd,101217
WARRINGTON BOROUGH COUNCIL,http://statistics.data.gov.uk/id/local-authority/00EU,"Economic Regeneration, Growth and Environment",FOL,Care Purchase Adults Central,54135,CP-Domicil.External,440950,25-Nov-13,1900133128,"1,465.00",Next Stage A Way Forward Ltd,101217
WARRINGTON BOROUGH COUNCIL,http://statistics.data.gov.uk/id/local-authority/00EU,"Economic Regeneration, Growth and Environment",FOL,Care Purchase Adults Central,54135,CP-Domicil.External,440950,25-Nov-13,1900133136,"1,190.00",Next Stage A Way Forward Ltd,101217
WARRINGTON BOROUGH COUNCIL,http://statistics.data.gov.uk/id/local-authority/00EU,"Economic Regeneration, Growth and Environment",FOL,Care Purchase Adults Central,54135,CP-Domicil.External,440950,25-Nov-13,1900133135,"1,465.00",Next Stage A Way Forward Ltd,101217
WARRINGTON BOROUGH COUNCIL,http://statistics.data.gov.uk/id/local-authority/00EU,"Economic Regeneration, Growth and Environment",FOL,Care Purchase Adults Central,54135,CP-Domicil.External,440950,25-Nov-13,1900133138,"1,099.00",Next Stage A Way Forward Ltd,101217
WARRINGTON BOROUGH COUNCIL,http://statistics.data.gov.uk/id/local-authority/00EU,"Economic Regeneration, Growth and Environment",FOL,Care Purchase Adults Central,54135,CP-Domicil.External,440950,25-Nov-13,1900133141,"1,862.00",Next Stage A Way Forward Ltd,101217
WARRINGTON BOROUGH COUNCIL,http://statistics.data.gov.uk/id/local-authority/00EU,"Economic Regeneration, Growth and Environment",FOL,Care Purchase Adults Central,54135,CP-Domicil.External,440950,25-Nov-13,1900133140,"4,028.00",Next Stage A Way Forward Ltd,101217
WARRINGTON BOROUGH COUNCIL,http://statistics.data.gov.uk/id/local-authority/00EU,"Economic Regeneration, Growth and Environment",FOL,Care Purchase Adults Central,54135,CP-Domicil.External,440950,25-Nov-13,1900133139,"2,155.00",Next Stage A Way Forward Ltd,101217
WARRINGTON BOROUGH COUNCIL,http://statistics.data.gov.uk/id/local-authority/00EU,"Economic Regeneration, Growth and Environment",FOL,Care Purchase Adults Central,54135,CP-Domicil.External,440950,26-Nov-13,1900133232,549.00,Next Stage A Way Forward Ltd,101217
WARRINGTON BOROUGH COUNCIL,http://statistics.data.gov.uk/id/local-authority/00EU,Resources and Strategic Commissioning,RSC,Coroners Service,11100,Post Mortem Fees-Rep,440250,22-Nov-13,1900133020,"1,804.00",Dr Jackie Elder,101240
WARRINGTON BOROUGH COUNCIL,http://statistics.data.gov.uk/id/local-authority/00EU,Families & Wellbeing,FWB,Care Purchase - Learning Disability,54450,Direct Payments,552000,12-Nov-13,1900132006,"2,815.00",Redacted Personal Data,101246
WARRINGTON BOROUGH COUNCIL,http://statistics.data.gov.uk/id/local-authority/00EU,Families & Wellbeing,FWB,Care Purchase - Learning Disability,54450,Direct Payments,552000,12-Nov-13,1900132007,520.00,Redacted Personal Data,101261
WARRINGTON BOROUGH COUNCIL,http://statistics.data.gov.uk/id/local-authority/00EU,Families & Wellbeing,FWB,Care Purchase - PD,54440,CP - Cont Care - External,441350,12-Nov-13,1900132008,"5,713.00",Redacted Personal Data,101276
WARRINGTON BOROUGH COUNCIL,http://statistics.data.gov.uk/id/local-authority/00EU,Families & Wellbeing,FWB,Child Disability,32212,Direct Payments,552000,12-Nov-13,1900132009,666.00,Redacted Personal Data,101322
WARRINGTON BOROUGH COUNCIL,http://statistics.data.gov.uk/id/local-authority/00EU,Families & Wellbeing,FWB,Care Purchase - PD,54440,Direct Payments,552000,12-Nov-13,1900132011,"2,328.00",Redacted Personal Data,101335
WARRINGTON BOROUGH COUNCIL,http://statistics.data.gov.uk/id/local-authority/00EU,Families & Wellbeing,FWB,Care Purchase - PD,54440,Direct Payments,552000,12-Nov-13,1900132012,939.00,Redacted Personal Data,101336
WARRINGTON BOROUGH COUNCIL,http://statistics.data.gov.uk/id/local-authority/00EU,Families & Wellbeing,FWB,Care Purchase - Learning Disability,54450,Direct Payments,552000,12-Nov-13,1900132013,"4,063.00",Redacted Personal Data,101341
WARRINGTON BOROUGH COUNCIL,http://statistics.data.gov.uk/id/local-authority/00EU,Families & Wellbeing,FWB,Care Purchase - PD,54440,Direct Payments,552000,12-Nov-13,1900132014,"1,231.00",Redacted Personal Data,101354
WARRINGTON BOROUGH COUNCIL,http://statistics.data.gov.uk/id/local-authority/00EU,Families & Wellbeing,FWB,DSG Early Years PVI Settings,32417,Private & Voluntary 3 Year Olds,470100,13-Nov-13,1900133079,"1,500.00",Birch Grove Day Nursery Ltd,101367
WARRINGTON BOROUGH COUNCIL,http://statistics.data.gov.uk/id/local-authority/00EU,Families & Wellbeing,FWB,Neighbourhood Co-o East,51306,Payment of Grants,470050,08-Nov-13,1900131820,"1,000.00",Croft Village Memorial Hall,101382
WARRINGTON BOROUGH COUNCIL,http://statistics.data.gov.uk/id/local-authority/00EU,Families & Wellbeing,FWB,Care Purchase - Learning Disability,54450,Direct Payments,552000,12-Nov-13,1900132015,800.00,Redacted Personal Data,101396
WARRINGTON BOROUGH COUNCIL,http://statistics.data.gov.uk/id/local-authority/00EU,Families & Wellbeing,FWB,Child Disability,32212,Direct Payments,552000,12-Nov-13,1900132016,984.00,Redacted Personal Data,101407
WARRINGTON BOROUGH COUNCIL,http://statistics.data.gov.uk/id/local-authority/00EU,Families & Wellbeing,FWB,Care Purchase - Learning Disability,54450,Direct Payments,552000,12-Nov-13,1900132017,"1,370.00",Redacted Personal Data,101420
WARRINGTON BOROUGH COUNCIL,http://statistics.data.gov.uk/id/local-authority/00EU,Families & Wellbeing,FWB,Care Purchase - PD,54440,Supporting People - External,441250,12-Nov-13,1900132018,637.00,Redacted Personal Data,101431
WARRINGTON BOROUGH COUNCIL,http://statistics.data.gov.uk/id/local-authority/00EU,Families & Wellbeing,FWB,Care Purchase - PD,54440,Direct Payments,552000,12-Nov-13,1900132018,764.00,Redacted Personal Data,101431
WARRINGTON BOROUGH COUNCIL,http://statistics.data.gov.uk/id/local-authority/00EU,Resources and Strategic Commissioning,RSC,Postal & Courier Services,52130,Postages,450000,11-Nov-13,1900131883,"1,418.00",Royal Mail,101445
WARRINGTON BOROUGH COUNCIL,http://statistics.data.gov.uk/id/local-authority/00EU,Resources and Strategic Commissioning,RSC,Electoral Registration,11500,Postages,450000,19-Nov-13,1900132700,"1,273.00",Royal Mail,101445
WARRINGTON BOROUGH COUNCIL,http://statistics.data.gov.uk/id/local-authority/00EU,Resources and Strategic Commissioning,RSC,HR Advisory,20005,Legal Costs Incurred,440200,27-Nov-13,1900133405,840.00,Weightmans Office AC,101452
WARRINGTON BOROUGH COUNCIL,http://statistics.data.gov.uk/id/local-authority/00EU,Families & Wellbeing,FWB,Care Purchase - Learning Disability,54450,CP - Cont Care - External,441350,12-Nov-13,1900132019,"5,718.00",Redacted Personal Data,101463
WARRINGTON BOROUGH COUNCIL,http://statistics.data.gov.uk/id/local-authority/00EU,Families & Wellbeing,FWB,Care Purchase - Learning Disability,54450,Direct Payments,552000,12-Nov-13,1900132021,"4,802.00",Redacted Personal Data,101472
WARRINGTON BOROUGH COUNCIL,http://statistics.data.gov.uk/id/local-authority/00EU,Families & Wellbeing,FWB,Care Purchase Budget,54490,CP - Cont Care - External,441350,01-Nov-13,1900131513,"3,960.00",St Marys Care Centre,101503
WARRINGTON BOROUGH COUNCIL,http://statistics.data.gov.uk/id/local-authority/00EU,Families & Wellbeing,FWB,Care Purchase Budget,54490,CP ExternalOther Exp,440800,06-Nov-13,1900131722,"8,254.00",St Marys Care Centre,101503
WARRINGTON BOROUGH COUNCIL,http://statistics.data.gov.uk/id/local-authority/00EU,Families & Wellbeing,FWB,Care Purchase Budget,54490,CP-LongStayExternal,441150,06-Nov-13,1900131733,800.00,St Marys Care Centre,101503
WARRINGTON BOROUGH COUNCIL,http://statistics.data.gov.uk/id/local-authority/00EU,Families & Wellbeing,FWB,Care Purchase Budget,54490,CP ExternalOther Exp,440800,13-Nov-13,1900132446,"36,000.00",St Marys Care Centre,101503
WARRINGTON BOROUGH COUNCIL,http://statistics.data.gov.uk/id/local-authority/00EU,Families & Wellbeing,FWB,Care Purchase Budget,54490,CP - Cont Care - External,441350,21-Nov-13,1900132843,"3,960.00",St Marys Care Centre,101503
WARRINGTON BOROUGH COUNCIL,http://statistics.data.gov.uk/id/local-authority/00EU,Families & Wellbeing,FWB,Care Purchase - ABI,54260,CP-Nursing Care-External,441200,26-Nov-13,1900133231,"5,000.00",St Marys Care Centre,101503
WARRINGTON BOROUGH COUNCIL,http://statistics.data.gov.uk/id/local-authority/00EU,"Economic Regeneration, Growth and Environment",ENO,Highways LTP,82004,Legal Costs Incurred,440200,15-Nov-13,1900132614,"3,342.00",Dwf LLP,101511
WARRINGTON BOROUGH COUNCIL,http://statistics.data.gov.uk/id/local-authority/00EU,Corporate Financing,COR,Debt Management Expenses,62080,Consult.& Prof. Serv,440000,27-Nov-13,1900133391,"1,003.00",Dwf LLP,101511
WARRINGTON BOROUGH COUNCIL,http://statistics.data.gov.uk/id/local-authority/00EU,Families & Wellbeing,FWB,Care Purchase - PD,54440,Direct Payments,552000,12-Nov-13,1900132023,729.00,Redacted Personal Data,101515
WARRINGTON BOROUGH COUNCIL,http://statistics.data.gov.uk/id/local-authority/00EU,Families & Wellbeing,FWB,Care Purchase - Learning Disability,54450,Direct Payments,552000,12-Nov-13,1900132024,"1,513.00",Redacted Personal Data,101516
WARRINGTON BOROUGH COUNCIL,http://statistics.data.gov.uk/id/local-authority/00EU,Families & Wellbeing,FWB,Care Purchase - PD,54440,Direct Payments,552000,12-Nov-13,1900132025,"1,188.00",Redacted Personal Data,101528
WARRINGTON BOROUGH COUNCIL,http://statistics.data.gov.uk/id/local-authority/00EU,Families & Wellbeing,FWB,Care Purchase - PD,54440,Direct Payments,552000,12-Nov-13,1900132027,912.00,Redacted Personal Data,101541
WARRINGTON BOROUGH COUNCIL,http://statistics.data.gov.uk/id/local-authority/00EU,Families & Wellbeing,FWB,Care Purchase - ABI,54260,Direct Payments,552000,12-Nov-13,1900132028,849.00,Redacted Personal Data,101542
WARRINGTON BOROUGH COUNCIL,http://statistics.data.gov.uk/id/local-authority/00EU,Families & Wellbeing,FWB,Care Purchase - Learning Disability,54450,Direct Payments,552000,12-Nov-13,1900132029,934.00,Redacted Personal Data,101547
WARRINGTON BOROUGH COUNCIL,http://statistics.data.gov.uk/id/local-authority/00EU,Families & Wellbeing,FWB,Care Purchase - Learning Disability,54450,CP - Cont Care - External,441350,12-Nov-13,1900132030,"1,542.00",Redacted Personal Data,101551
WARRINGTON BOROUGH COUNCIL,http://statistics.data.gov.uk/id/local-authority/00EU,Families & Wellbeing,FWB,Care Purchase - Learning Disability,54450,Direct Payments,552000,12-Nov-13,1900132030,"1,542.00",Redacted Personal Data,101551
WARRINGTON BOROUGH COUNCIL,http://statistics.data.gov.uk/id/local-authority/00EU,Families & Wellbeing,FWB,Care Purchase - PD,54440,Direct Payments,552000,12-Nov-13,1900132032,509.00,Redacted Personal Data,101558
WARRINGTON BOROUGH COUNCIL,http://statistics.data.gov.uk/id/local-authority/00EU,Families & Wellbeing,FWB,Care Purchase - Learning Disability,54450,Direct Payments,552000,12-Nov-13,1900132033,"2,462.00",Redacted Personal Data,101568
WARRINGTON BOROUGH COUNCIL,http://statistics.data.gov.uk/id/local-authority/00EU,Families & Wellbeing,FWB,Care Purchase - Learning Disability,54450,Direct Payments,552000,12-Nov-13,1900132034,"1,698.00",Redacted Personal Data,101584
WARRINGTON BOROUGH COUNCIL,http://statistics.data.gov.uk/id/local-authority/00EU,Families & Wellbeing,FWB,Care Purchase - OP & OT West,54470,Direct Payments,552000,12-Nov-13,1900132035,856.00,Redacted Personal Data,101592
WARRINGTON BOROUGH COUNCIL,http://statistics.data.gov.uk/id/local-authority/00EU,Families & Wellbeing,FWB,Child Disability,32212,Direct Payments,552000,12-Nov-13,1900132036,622.00,Redacted Personal Data,101595
WARRINGTON BOROUGH COUNCIL,http://statistics.data.gov.uk/id/local-authority/00EU,Families & Wellbeing,FWB,Care Purchase - Learning Disability,54450,Direct Payments,552000,12-Nov-13,1900132037,"1,417.00",Redacted Personal Data,101614
WARRINGTON BOROUGH COUNCIL,http://statistics.data.gov.uk/id/local-authority/00EU,Families & Wellbeing,FWB,Care Purchase - Learning Disability,54450,Direct Payments,552000,12-Nov-13,1900132038,"1,019.00",Redacted Personal Data,101625
WARRINGTON BOROUGH COUNCIL,http://statistics.data.gov.uk/id/local-authority/00EU,Families & Wellbeing,FWB,Child Disability,32212,CP - Cont Care - External,441350,12-Nov-13,1900132040,580.00,Redacted Personal Data,101630
WARRINGTON BOROUGH COUNCIL,http://statistics.data.gov.uk/id/local-authority/00EU,Families & Wellbeing,FWB,Child Disability,32212,Direct Payments,552000,12-Nov-13,1900132040,580.00,Redacted Personal Data,101630
WARRINGTON BOROUGH COUNCIL,http://statistics.data.gov.uk/id/local-authority/00EU,Families & Wellbeing,FWB,Care Purchase - Learning Disability,54450,CP-LongStayExternal,441150,04-Nov-13,1900131572,"12,348.00",Griffin Care Ltd,101672
WARRINGTON BOROUGH COUNCIL,http://statistics.data.gov.uk/id/local-authority/00EU,Families & Wellbeing,FWB,Care Purchase - Learning Disability,54450,CP-LongStayExternal,441150,04-Nov-13,1900131571,"12,348.00",Griffin Care Ltd,101672
WARRINGTON BOROUGH COUNCIL,http://statistics.data.gov.uk/id/local-authority/00EU,Families & Wellbeing,FWB,Care Purchase - Learning Disability,54450,CP-LongStayExternal,441150,26-Nov-13,1900133254,"12,348.00",Griffin Care Ltd,101672
WARRINGTON BOROUGH COUNCIL,http://statistics.data.gov.uk/id/local-authority/00EU,Families & Wellbeing,FWB,Care Purchase - Learning Disability,54450,CP-LongStayExternal,441150,27-Nov-13,1900133296,"12,348.00",Griffin Care Ltd,101672
WARRINGTON BOROUGH COUNCIL,http://statistics.data.gov.uk/id/local-authority/00EU,Families & Wellbeing,FWB,Care Purchase - PD,54440,Direct Payments,552000,12-Nov-13,1900132043,560.00,Redacted Personal Data,101677
WARRINGTON BOROUGH COUNCIL,http://statistics.data.gov.uk/id/local-authority/00EU,Families & Wellbeing,FWB,Care Purchase - Learning Disability,54450,Direct Payments,552000,12-Nov-13,1900132044,"2,177.00",Redacted Personal Data,101686
WARRINGTON BOROUGH COUNCIL,http://statistics.data.gov.uk/id/local-authority/00EU,Families & Wellbeing,FWB,Care Purchase - Learning Disability,54450,Direct Payments,552000,12-Nov-13,1900132045,"3,533.00",Redacted Personal Data,101701
WARRINGTON BOROUGH COUNCIL,http://statistics.data.gov.uk/id/local-authority/00EU,Families & Wellbeing,FWB,Care Purchase - Learning Disability,54450,Direct Payments,552000,12-Nov-13,1900132046,"3,533.00",Redacted Personal Data,101704
WARRINGTON BOROUGH COUNCIL,http://statistics.data.gov.uk/id/local-authority/00EU,Families & Wellbeing,FWB,CYPS - Rents & Charges,32422,Electricity,210000,18-Nov-13,1900132660,780.00,Scottish Power,101711
WARRINGTON BOROUGH COUNCIL,http://statistics.data.gov.uk/id/local-authority/00EU,Families & Wellbeing,FWB,EIG Funding - Youth Cafe,31536,Electricity,210000,14-Nov-13,1900132511,809.00,Southern Electric,101713
WARRINGTON BOROUGH COUNCIL,http://statistics.data.gov.uk/id/local-authority/00EU,Families & Wellbeing,FWB,Care Purchase - Learning Disability,54450,Direct Payments,552000,12-Nov-13,1900132048,"1,347.00",Redacted Personal Data,101730
WARRINGTON BOROUGH COUNCIL,http://statistics.data.gov.uk/id/local-authority/00EU,Families & Wellbeing,FWB,Care Purchase Budget,54490,CP-LongStayExternal,441150,11-Nov-13,1900131885,"2,834.00",Wcl - Heathside Mews,101742
WARRINGTON BOROUGH COUNCIL,http://statistics.data.gov.uk/id/local-authority/00EU,Families & Wellbeing,FWB,Care Purchase Budget,54490,CP ExternalOther Exp,440800,11-Nov-13,1900131890,"12,714.00",Wcl - Heathside Mews,101742
WARRINGTON BOROUGH COUNCIL,http://statistics.data.gov.uk/id/local-authority/00EU,Families & Wellbeing,FWB,Care Purchase Budget,54490,CP-LongStayExternal,441150,11-Nov-13,1900131888,"2,880.00",Wcl - Heathside Mews,101742
WARRINGTON BOROUGH COUNCIL,http://statistics.data.gov.uk/id/local-authority/00EU,Families & Wellbeing,FWB,Care Purchase Budget,54490,CP ExternalOther Exp,440800,13-Nov-13,1900132451,"24,000.00",Wcl - Heathside Mews,101742
WARRINGTON BOROUGH COUNCIL,http://statistics.data.gov.uk/id/local-authority/00EU,Families & Wellbeing,FWB,P.F.I.,43630,PFI,480000,01-Nov-13,1900131474,"76,109.00",Arena Options,101746
WARRINGTON BOROUGH COUNCIL,http://statistics.data.gov.uk/id/local-authority/00EU,Families & Wellbeing,FWB,P.F.I.,43630,PFI,480000,13-Nov-13,1900131961,"72,458.00",Arena Options,101746
WARRINGTON BOROUGH COUNCIL,http://statistics.data.gov.uk/id/local-authority/00EU,Families & Wellbeing,FWB,Care Purchase - Learning Disability,54450,Direct Payments,552000,12-Nov-13,1900132049,764.00,Redacted Personal Data,101748
WARRINGTON BOROUGH COUNCIL,http://statistics.data.gov.uk/id/local-authority/00EU,Families & Wellbeing,FWB,Care Purchase - PD,54440,Direct Payments,552000,12-Nov-13,1900132050,594.00,Redacted Personal Data,101752
WARRINGTON BOROUGH COUNCIL,http://statistics.data.gov.uk/id/local-authority/00EU,Families & Wellbeing,FWB,Child Disability,32212,Direct Payments,552000,12-Nov-13,1900132051,"1,002.00",Redacted Personal Data,101758
WARRINGTON BOROUGH COUNCIL,http://statistics.data.gov.uk/id/local-authority/00EU,Families & Wellbeing,FWB,Care Purchase - Learning Disability,54450,Direct Payments,552000,12-Nov-13,1900132052,509.00,Redacted Personal Data,101759
WARRINGTON BOROUGH COUNCIL,http://statistics.data.gov.uk/id/local-authority/00EU,Families & Wellbeing,FWB,Care Purchase - PD,54440,CP-Domicil.External,440950,27-Nov-13,1900133373,"3,746.00",Homelife Leeds Ltd,101794
WARRINGTON BOROUGH COUNCIL,http://statistics.data.gov.uk/id/local-authority/00EU,Families & Wellbeing,FWB,Care Purchase - PD,54440,CP-Domicil.External,440950,27-Nov-13,1900133375,"3,746.00",Homelife Leeds Ltd,101794
WARRINGTON BOROUGH COUNCIL,http://statistics.data.gov.uk/id/local-authority/00EU,Families & Wellbeing,FWB,Care Purchase - Mental Health Team 2,54240,Direct Payments,552000,12-Nov-13,1900132053,"1,949.00",Redacted Personal Data,101808
WARRINGTON BOROUGH COUNCIL,http://statistics.data.gov.uk/id/local-authority/00EU,Families & Wellbeing,FWB,Care Purchase - PD,54440,CP-Nursing Care-External,441200,22-Nov-13,1900132948,"4,136.00",Abbey Lawns Care Home Ltd,101816
WARRINGTON BOROUGH COUNCIL,http://statistics.data.gov.uk/id/local-authority/00EU,Families & Wellbeing,FWB,Care Purchase - Learning Disability,54450,CP-Domicil.External,440950,27-Nov-13,1900133292,687.00,Progress Adult Services Ltd,101817
WARRINGTON BOROUGH COUNCIL,http://statistics.data.gov.uk/id/local-authority/00EU,Families & Wellbeing,FWB,Care Purchase - Learning Disability,54450,CP-LongStayExternal,441150,27-Nov-13,1900133292,"11,238.00",Progress Adult Services Ltd,101817
WARRINGTON BOROUGH COUNCIL,http://statistics.data.gov.uk/id/local-authority/00EU,Families & Wellbeing,FWB,Care Purchase - Learning Disability,54450,CP-LongStayExternal,441150,27-Nov-13,1900133291,"11,238.00",Progress Adult Services Ltd,101817
WARRINGTON BOROUGH COUNCIL,http://statistics.data.gov.uk/id/local-authority/00EU,Families & Wellbeing,FWB,Care Purchase - OP & OT South,54480,Direct Payments,552000,12-Nov-13,1900132054,912.00,Redacted Personal Data,101825
WARRINGTON BOROUGH COUNCIL,http://statistics.data.gov.uk/id/local-authority/00EU,Resources and Strategic Commissioning,RSC,Coroners Service,11100,Consult.& Prof. Serv,440000,05-Nov-13,1900131625,"1,415.00",Geoff Roberts Assoc Ltd,101833
WARRINGTON BOROUGH COUNCIL,http://statistics.data.gov.uk/id/local-authority/00EU,Families & Wellbeing,FWB,Care Purchase - Learning Disability,54450,CP-LongStayExternal,441150,11-Nov-13,1900131864,"12,744.00",Inclusive Lifestyles Ltd,101840
WARRINGTON BOROUGH COUNCIL,http://statistics.data.gov.uk/id/local-authority/00EU,Families & Wellbeing,FWB,Care Purchase - Learning Disability,54450,CP-LongStayExternal,441150,11-Nov-13,1900131863,"12,532.00",Inclusive Lifestyles Ltd,101840
WARRINGTON BOROUGH COUNCIL,http://statistics.data.gov.uk/id/local-authority/00EU,Families & Wellbeing,FWB,Care Purchase - Learning Disability,54450,CP-LongStayExternal,441150,11-Nov-13,1900131865,"1,482.00",Inclusive Lifestyles Ltd,101840
WARRINGTON BOROUGH COUNCIL,http://statistics.data.gov.uk/id/local-authority/00EU,Families & Wellbeing,FWB,Care Purchase - Learning Disability,54450,CP-LongStayExternal,441150,11-Nov-13,1900131866,"1,258.00",Inclusive Lifestyles Ltd,101840
WARRINGTON BOROUGH COUNCIL,http://statistics.data.gov.uk/id/local-authority/00EU,Families & Wellbeing,FWB,Care Purchase - Learning Disability,54450,CP-LongStayExternal,441150,11-Nov-13,1900131870,"1,482.00",Inclusive Lifestyles Ltd,101840
WARRINGTON BOROUGH COUNCIL,http://statistics.data.gov.uk/id/local-authority/00EU,Families & Wellbeing,FWB,Care Purchase - Learning Disability,54450,CP-LongStayExternal,441150,11-Nov-13,1900131871,"1,258.00",Inclusive Lifestyles Ltd,101840
WARRINGTON BOROUGH COUNCIL,http://statistics.data.gov.uk/id/local-authority/00EU,Families & Wellbeing,FWB,Care Purchase - Learning Disability,54450,CP-LongStayExternal,441150,11-Nov-13,1900131908,"1,482.00",Inclusive Lifestyles Ltd,101840
WARRINGTON BOROUGH COUNCIL,http://statistics.data.gov.uk/id/local-authority/00EU,Families & Wellbeing,FWB,Care Purchase - Learning Disability,54450,CP-LongStayExternal,441150,11-Nov-13,1900131868,"1,258.00",Inclusive Lifestyles Ltd,101840
WARRINGTON BOROUGH COUNCIL,http://statistics.data.gov.uk/id/local-authority/00EU,Families & Wellbeing,FWB,Care Purchase - Learning Disability,54450,CP-LongStayExternal,441150,27-Nov-13,1900133355,"12,744.00",Inclusive Lifestyles Ltd,101840
WARRINGTON BOROUGH COUNCIL,http://statistics.data.gov.uk/id/local-authority/00EU,Families & Wellbeing,FWB,Care Purchase - Learning Disability,54450,CP-LongStayExternal,441150,27-Nov-13,1900133356,"12,532.00",Inclusive Lifestyles Ltd,101840
WARRINGTON BOROUGH COUNCIL,http://statistics.data.gov.uk/id/local-authority/00EU,Families & Wellbeing,FWB,Care Purchase - Learning Disability,54450,CP-LongStayExternal,441150,27-Nov-13,1900133368,"1,482.00",Inclusive Lifestyles Ltd,101840
WARRINGTON BOROUGH COUNCIL,http://statistics.data.gov.uk/id/local-authority/00EU,Families & Wellbeing,FWB,Care Purchase - Learning Disability,54450,CP-LongStayExternal,441150,27-Nov-13,1900133378,"1,258.00",Inclusive Lifestyles Ltd,101840
WARRINGTON BOROUGH COUNCIL,http://statistics.data.gov.uk/id/local-authority/00EU,Families & Wellbeing,FWB,Care Purchase - OP & OT South,54480,CP-LongStayExternal,441150,26-Nov-13,1900133250,"1,507.00",Meridian Healthcare Ltd,101845
WARRINGTON BOROUGH COUNCIL,http://statistics.data.gov.uk/id/local-authority/00EU,Families & Wellbeing,FWB,Care Purchase - OP & OT South,54480,CP-Nursing Care-External,441200,26-Nov-13,1900133249,"1,965.00",Meridian Healthcare Ltd,101845
WARRINGTON BOROUGH COUNCIL,http://statistics.data.gov.uk/id/local-authority/00EU,Families & Wellbeing,FWB,Care Purchase - OP & OT West,54470,CP-LongStayExternal,441150,27-Nov-13,1900133294,"1,848.00",Meridian Healthcare Ltd,101845
WARRINGTON BOROUGH COUNCIL,http://statistics.data.gov.uk/id/local-authority/00EU,Families & Wellbeing,FWB,Child Disability,32212,Direct Payments,552000,12-Nov-13,1900132056,"1,278.00",Redacted Personal Data,101849
WARRINGTON BOROUGH COUNCIL,http://statistics.data.gov.uk/id/local-authority/00EU,Families & Wellbeing,FWB,CIN Team 1,31001,Transport SLA,300400,12-Nov-13,1900131955,"2,250.00",Direct Taxis,101873
WARRINGTON BOROUGH COUNCIL,http://statistics.data.gov.uk/id/local-authority/00EU,Families & Wellbeing,FWB,CIN Team 1,31001,Transport SLA,300400,13-Nov-13,1900132468,"1,200.00",Direct Taxis,101873
WARRINGTON BOROUGH COUNCIL,http://statistics.data.gov.uk/id/local-authority/00EU,Holding Accounts,HOL,Single Billing Holding Account,91130,Electricity,210000,26-Nov-13,1900133148,"52,773.00",Npower Electricity,101884
WARRINGTON BOROUGH COUNCIL,http://statistics.data.gov.uk/id/local-authority/00EU,Holding Accounts,HOL,Single Billing Holding Account,91130,Electricity,210000,27-Nov-13,1900133354,"116,686.00",Npower Electricity,101884
WARRINGTON BOROUGH COUNCIL,http://statistics.data.gov.uk/id/local-authority/00EU,Holding Accounts,HOL,Single Billing Holding Account,91130,Electricity,210000,27-Nov-13,1900133346,"52,773.00",Npower Electricity,101884
WARRINGTON BOROUGH COUNCIL,http://statistics.data.gov.uk/id/local-authority/00EU,Families & Wellbeing,FWB,Care Purchase - OP & OT South,54480,CP-Domicil.External,440950,27-Nov-13,1900133350,"14,100.00",Dh Homecare,101961
WARRINGTON BOROUGH COUNCIL,http://statistics.data.gov.uk/id/local-authority/00EU,Families & Wellbeing,FWB,Care Purchase - OP & OT Central,54420,CP-Domicil.External,440950,27-Nov-13,1900133350,"2,042.00",Dh Homecare,101961
WARRINGTON BOROUGH COUNCIL,http://statistics.data.gov.uk/id/local-authority/00EU,Families & Wellbeing,FWB,Care Purchase -OP & OT East,54430,CP-Domicil.External,440950,27-Nov-13,1900133350,591.00,Dh Homecare,101961
WARRINGTON BOROUGH COUNCIL,http://statistics.data.gov.uk/id/local-authority/00EU,Families & Wellbeing,FWB,Care Purchase - PD,54440,CP-Domicil.External,440950,27-Nov-13,1900133350,"3,530.00",Dh Homecare,101961
WARRINGTON BOROUGH COUNCIL,http://statistics.data.gov.uk/id/local-authority/00EU,Families & Wellbeing,FWB,Care Purchase - PD,54440,Direct Payments,552000,12-Nov-13,1900132059,524.00,Redacted Personal Data,102010
WARRINGTON BOROUGH COUNCIL,http://statistics.data.gov.uk/id/local-authority/00EU,Families & Wellbeing,FWB,Child Disability,32212,Direct Payments,552000,12-Nov-13,1900132061,510.00,Redacted Personal Data,102107
WARRINGTON BOROUGH COUNCIL,http://statistics.data.gov.uk/id/local-authority/00EU,Resources and Strategic Commissioning,RSC,Legal Services,11200,Consult.& Prof. Serv,440000,27-Nov-13,1900133385,990.00,Bevan Brittan,102113
WARRINGTON BOROUGH COUNCIL,http://statistics.data.gov.uk/id/local-authority/00EU,Families & Wellbeing,FWB,Care Purchase - OP & OT West,54470,CP-Nursing Care-External,441200,26-Nov-13,1900133252,"2,628.00",The Turner Home,102163
WARRINGTON BOROUGH COUNCIL,http://statistics.data.gov.uk/id/local-authority/00EU,Families & Wellbeing,FWB,Care Purchase -OP & OT East,54430,CP-Nursing Care-External,441200,26-Nov-13,1900133248,"2,580.00",The Turner Home,102163
WARRINGTON BOROUGH COUNCIL,http://statistics.data.gov.uk/id/local-authority/00EU,Families & Wellbeing,FWB,Care Purchase - OP & OT West,54470,CP-LongStayExternal,441150,26-Nov-13,1900133236,"2,544.00",The Turner Home,102163
WARRINGTON BOROUGH COUNCIL,http://statistics.data.gov.uk/id/local-authority/00EU,Families & Wellbeing,FWB,Care Purchase - ABI,54260,CP-LongStayExternal,441150,26-Nov-13,1900133175,"5,660.00",Thames Health Care Ltd,102170
WARRINGTON BOROUGH COUNCIL,http://statistics.data.gov.uk/id/local-authority/00EU,Families & Wellbeing,FWB,Care Purchase - OP & OT Central,54420,Direct Payments,552000,12-Nov-13,1900132063,610.00,Redacted Personal Data,102183
WARRINGTON BOROUGH COUNCIL,http://statistics.data.gov.uk/id/local-authority/00EU,Families & Wellbeing,FWB,Child Disability,32212,CP-Domicil.External,440950,15-Nov-13,1900132639,"3,411.00",M-Power Activity Services Ltd,102186
WARRINGTON BOROUGH COUNCIL,http://statistics.data.gov.uk/id/local-authority/00EU,Families & Wellbeing,FWB,Child Disability,32212,CP-Domicil.External,440950,15-Nov-13,1900132640,"2,591.00",M-Power Activity Services Ltd,102186
WARRINGTON BOROUGH COUNCIL,http://statistics.data.gov.uk/id/local-authority/00EU,Families & Wellbeing,FWB,Care Purchase - Learning Disability,54450,CP-Domicil.External,440950,27-Nov-13,1900133290,"1,996.00",M-Power Activity Services Ltd,102186
WARRINGTON BOROUGH COUNCIL,http://statistics.data.gov.uk/id/local-authority/00EU,Families & Wellbeing,FWB,Care Purchase - Learning Disability,54450,Direct Payments,552000,12-Nov-13,1900132064,719.00,Redacted Personal Data,102217
WARRINGTON BOROUGH COUNCIL,http://statistics.data.gov.uk/id/local-authority/00EU,Families & Wellbeing,FWB,Care Purchase - PD,54440,Direct Payments,552000,12-Nov-13,1900132065,"1,051.00",Redacted Personal Data,102222
WARRINGTON BOROUGH COUNCIL,http://statistics.data.gov.uk/id/local-authority/00EU,"Economic Regeneration, Growth and Environment",EG0,Time Square,43551,Service Charges,220050,20-Nov-13,1900132707,"16,369.00",Knight Frank Llp,102232
WARRINGTON BOROUGH COUNCIL,http://statistics.data.gov.uk/id/local-authority/00EU,Families & Wellbeing,FWB,Care Purchase - PD,54440,CP Adult Placement,443450,06-Nov-13,1900131742,"1,510.00",Redacted Personal Data,102249
WARRINGTON BOROUGH COUNCIL,http://statistics.data.gov.uk/id/local-authority/00EU,Families & Wellbeing,FWB,Care Purchase - PD,54440,CP Adult Placement,443450,25-Nov-13,1900133123,"1,510.00",Redacted Personal Data,102249
WARRINGTON BOROUGH COUNCIL,http://statistics.data.gov.uk/id/local-authority/00EU,Resources and Strategic Commissioning,RSC,Council Tax & Recovery,10320,Court Costs,460100,04-Nov-13,1900131580,"1,698.00",Hmcs North Cheshire Collections,102261
WARRINGTON BOROUGH COUNCIL,http://statistics.data.gov.uk/id/local-authority/00EU,"Economic Regeneration, Growth and Environment",EG0,New Town House,43119,Trade Refuse Charges,440700,13-Nov-13,1900132491,683.00,B & M Waste,102293
WARRINGTON BOROUGH COUNCIL,http://statistics.data.gov.uk/id/local-authority/00EU,"Economic Regeneration, Growth and Environment",EG0,New Town House,43119,Trade Refuse Charges,440700,13-Nov-13,1900132490,683.00,B & M Waste,102293
WARRINGTON BOROUGH COUNCIL,http://statistics.data.gov.uk/id/local-authority/00EU,"Economic Regeneration, Growth and Environment",EG0,New Town House,43119,Trade Refuse Charges,440700,13-Nov-13,1900132492,683.00,B & M Waste,102293
WARRINGTON BOROUGH COUNCIL,http://statistics.data.gov.uk/id/local-authority/00EU,Families & Wellbeing,FWB,Care Purchase - OP & OT South,54480,CP-Nursing Care-External,441200,06-Nov-13,1900131738,"1,532.00",Flightcare Limited,102299
WARRINGTON BOROUGH COUNCIL,http://statistics.data.gov.uk/id/local-authority/00EU,Families & Wellbeing,FWB,Care Purchase - OP & OT South,54480,CP-Nursing Care-External,441200,27-Nov-13,1900133360,"1,532.00",Flightcare Limited,102299
WARRINGTON BOROUGH COUNCIL,http://statistics.data.gov.uk/id/local-authority/00EU,Families & Wellbeing,FWB,Care Purchase - OP & OT South,54480,CP-LongStayExternal,441150,01-Nov-13,1900131510,"1,596.00",Longview Care Home Ltd,102331
WARRINGTON BOROUGH COUNCIL,http://statistics.data.gov.uk/id/local-authority/00EU,Families & Wellbeing,FWB,Care Purchase - Learning Disability,54450,Direct Payments,552000,12-Nov-13,1900132067,"1,103.00",Redacted Personal Data,102348
WARRINGTON BOROUGH COUNCIL,http://statistics.data.gov.uk/id/local-authority/00EU,Families & Wellbeing,FWB,Reablement/ WP/ ASC Grant c/f,53700,Consult.& Prof. Serv,440000,25-Nov-13,1900133052,"1,100.00",Lloyds Pharmacy Ltd,102361
WARRINGTON BOROUGH COUNCIL,http://statistics.data.gov.uk/id/local-authority/00EU,Resources and Strategic Commissioning,RSC,Legal Services,11200,Subscriptions,470000,07-Nov-13,1900131767,"5,720.00",Law Society,102395
WARRINGTON BOROUGH COUNCIL,http://statistics.data.gov.uk/id/local-authority/00EU,"Economic Regeneration, Growth and Environment",EG0,Estates & Valuation,43520,Agency Supply - GF,180000,27-Nov-13,1900133414,"1,138.00",Nuttallroberts Ltd,102450
WARRINGTON BOROUGH COUNCIL,http://statistics.data.gov.uk/id/local-authority/00EU,"Economic Regeneration, Growth and Environment",EG0,Estates & Valuation,43520,Agency Supply - GF,180000,27-Nov-13,1900133416,"1,188.00",Nuttallroberts Ltd,102450
WARRINGTON BOROUGH COUNCIL,http://statistics.data.gov.uk/id/local-authority/00EU,Families & Wellbeing,FWB,Care Purchase - Learning Disability,54450,CP-LongStayExternal,441150,13-Nov-13,1900132443,"3,508.00",Potens Ltd TA Heath Lodge,102481
WARRINGTON BOROUGH COUNCIL,http://statistics.data.gov.uk/id/local-authority/00EU,Families & Wellbeing,FWB,Care Purchase - Learning Disability,54450,CP-LongStayExternal,441150,27-Nov-13,1900133298,"3,508.00",Potens Ltd TA Heath Lodge,102481
WARRINGTON BOROUGH COUNCIL,http://statistics.data.gov.uk/id/local-authority/00EU,"Economic Regeneration, Growth and Environment",FOL,Care Purchase Adults Central,54135,CP-LongStayExternal,441150,01-Nov-13,1900131518,"2,972.00",Ttp Counselling Centre Ltd,102499
WARRINGTON BOROUGH COUNCIL,http://statistics.data.gov.uk/id/local-authority/00EU,"Economic Regeneration, Growth and Environment",FOL,Care Purchase Adults Central,54135,CP-LongStayExternal,441150,01-Nov-13,1900131516,"2,879.00",Ttp Counselling Centre Ltd,102499
WARRINGTON BOROUGH COUNCIL,http://statistics.data.gov.uk/id/local-authority/00EU,"Economic Regeneration, Growth and Environment",FOL,Care Purchase Adults Central,54135,CP-LongStayExternal,441150,22-Nov-13,1900132874,"1,100.00",Ttp Counselling Centre Ltd,102499
WARRINGTON BOROUGH COUNCIL,http://statistics.data.gov.uk/id/local-authority/00EU,"Economic Regeneration, Growth and Environment",FOL,Care Purchase Adults Central,54135,CP-LongStayExternal,441150,26-Nov-13,1900133163,"2,436.00",Ttp Counselling Centre Ltd,102499
WARRINGTON BOROUGH COUNCIL,http://statistics.data.gov.uk/id/local-authority/00EU,Families & Wellbeing,FWB,Care Purchase Budget,54490,CP ExternalOther Exp,440800,13-Nov-13,1900132430,"163,000.00",Leyton Healthcare,102517
WARRINGTON BOROUGH COUNCIL,http://statistics.data.gov.uk/id/local-authority/00EU,Families & Wellbeing,FWB,Care Purchase Budget,54490,CP ExternalOther Exp,440800,22-Nov-13,1900132942,"12,834.00",Leyton Healthcare,102517
WARRINGTON BOROUGH COUNCIL,http://statistics.data.gov.uk/id/local-authority/00EU,Families & Wellbeing,FWB,Care Purchase Budget,54490,CP-LongStayExternal,441150,22-Nov-13,1900132941,"11,171.00",Leyton Healthcare,102517
WARRINGTON BOROUGH COUNCIL,http://statistics.data.gov.uk/id/local-authority/00EU,Families & Wellbeing,FWB,Care Purchase - OP & OT West,54470,CP-LongStayExternal,441150,06-Nov-13,1900131727,"1,904.00",Orchard Care Homes,102524
WARRINGTON BOROUGH COUNCIL,http://statistics.data.gov.uk/id/local-authority/00EU,Families & Wellbeing,FWB,Care Purchase - OP & OT South,54480,CP-LongStayExternal,441150,06-Nov-13,1900131737,"1,764.00",Orchard Care Homes,102524
WARRINGTON BOROUGH COUNCIL,http://statistics.data.gov.uk/id/local-authority/00EU,Families & Wellbeing,FWB,Care Purchase - Learning Disability,54450,Direct Payments,552000,12-Nov-13,1900132068,828.00,Redacted Personal Data,102547
WARRINGTON BOROUGH COUNCIL,http://statistics.data.gov.uk/id/local-authority/00EU,Families & Wellbeing,CYP,Childrens Other,81004,ICT Comms - Equipment Purchase,450100,08-Nov-13,1900131826,600.00,Lanway Corporate Business Systems,102559
WARRINGTON BOROUGH COUNCIL,http://statistics.data.gov.uk/id/local-authority/00EU,"Economic Regeneration, Growth and Environment",ENO,Housing Projects,82008,Disabled Persons Grant 1996,554000,21-Nov-13,1900132815,"3,632.00",Total Plumbing Solutions,102587
WARRINGTON BOROUGH COUNCIL,http://statistics.data.gov.uk/id/local-authority/00EU,"Economic Regeneration, Growth and Environment",ENO,Housing Projects,82008,Disabled Persons Grant 1996,554000,15-Nov-13,1900132633,"2,011.00",R Hough & Co,102596
WARRINGTON BOROUGH COUNCIL,http://statistics.data.gov.uk/id/local-authority/00EU,"Economic Regeneration, Growth and Environment",ENO,Housing Projects,82008,Disabled Persons Grant 1996,554000,18-Nov-13,1900132656,"2,086.00",R Hough & Co,102596
WARRINGTON BOROUGH COUNCIL,http://statistics.data.gov.uk/id/local-authority/00EU,"Economic Regeneration, Growth and Environment",ENO,Housing Projects,82008,Disabled Persons Grant 1996,554000,27-Nov-13,1900133300,"2,231.00",R Hough & Co,102596
WARRINGTON BOROUGH COUNCIL,http://statistics.data.gov.uk/id/local-authority/00EU,Families & Wellbeing,FWB,Care Purchase - Learning Disability,54450,Direct Payments,552000,12-Nov-13,1900132071,849.00,Redacted Personal Data,102667
WARRINGTON BOROUGH COUNCIL,http://statistics.data.gov.uk/id/local-authority/00EU,Families & Wellbeing,FWB,Care Purchase - Learning Disability,54450,Supporting People - External,441250,26-Nov-13,1900133240,"6,280.00",Warrington Mencap,102670
WARRINGTON BOROUGH COUNCIL,http://statistics.data.gov.uk/id/local-authority/00EU,Families & Wellbeing,FWB,Care Purchase - Learning Disability,54450,Supporting People - External,441250,27-Nov-13,1900133279,"4,584.00",Warrington Mencap,102670
WARRINGTON BOROUGH COUNCIL,http://statistics.data.gov.uk/id/local-authority/00EU,Families & Wellbeing,FWB,Care Purchase - Learning Disability,54450,Supporting People - External,441250,27-Nov-13,1900133258,"4,263.00",Warrington Mencap,102670
WARRINGTON BOROUGH COUNCIL,http://statistics.data.gov.uk/id/local-authority/00EU,Families & Wellbeing,FWB,Care Purchase - Learning Disability,54450,Direct Payments,552000,12-Nov-13,1900132072,"1,273.00",Redacted Personal Data,102710
WARRINGTON BOROUGH COUNCIL,http://statistics.data.gov.uk/id/local-authority/00EU,Families & Wellbeing,FWB,Care Purchase - Learning Disability,54450,Direct Payments,552000,12-Nov-13,1900132073,849.00,Redacted Personal Data,102718
WARRINGTON BOROUGH COUNCIL,http://statistics.data.gov.uk/id/local-authority/00EU,Resources and Strategic Commissioning,RSC,HR Advisory,20005,Subscriptions,470000,04-Nov-13,1900131554,"18,516.00",North West Employers,102754
WARRINGTON BOROUGH COUNCIL,http://statistics.data.gov.uk/id/local-authority/00EU,Families & Wellbeing,FWB,Care Purchase - Learning Disability,54450,Direct Payments,552000,12-Nov-13,1900132074,900.00,Redacted Personal Data,102759
WARRINGTON BOROUGH COUNCIL,http://statistics.data.gov.uk/id/local-authority/00EU,Families & Wellbeing,FWB,Care Purchase - Learning Disability,54450,CP-LongStayExternal,441150,01-Nov-13,1900131482,"8,464.00",Community Care Matters Limited,102791
WARRINGTON BOROUGH COUNCIL,http://statistics.data.gov.uk/id/local-authority/00EU,Families & Wellbeing,FWB,Care Purchase Budget,54490,CP - Cont Care - External,441350,01-Nov-13,1900131482,"20,100.00",Community Care Matters Limited,102791
WARRINGTON BOROUGH COUNCIL,http://statistics.data.gov.uk/id/local-authority/00EU,Families & Wellbeing,FWB,Care Purchase - Learning Disability,54450,CP-Nursing Care-External,441200,01-Nov-13,1900131483,"8,212.00",Community Care Matters Limited,102791
WARRINGTON BOROUGH COUNCIL,http://statistics.data.gov.uk/id/local-authority/00EU,Families & Wellbeing,FWB,Care Purchase Budget,54490,CP - Cont Care - External,441350,01-Nov-13,1900131483,"19,408.00",Community Care Matters Limited,102791
WARRINGTON BOROUGH COUNCIL,http://statistics.data.gov.uk/id/local-authority/00EU,"Economic Regeneration, Growth and Environment",EG0,Core Operational Business,41730,Works Contract Paymt,442500,29-Nov-13,1900133454,"10,867.00",Assist Streetcare,102956
WARRINGTON BOROUGH COUNCIL,http://statistics.data.gov.uk/id/local-authority/00EU,"Economic Regeneration, Growth and Environment",EG0,Core Operational Business,41730,Works Contract Paymt,442500,29-Nov-13,1900133448,"4,915.00",Assist Streetcare,102956
WARRINGTON BOROUGH COUNCIL,http://statistics.data.gov.uk/id/local-authority/00EU,"Economic Regeneration, Growth and Environment",EG0,Core Operational Business,41730,Works Contract Paymt,442500,29-Nov-13,1900133450,"20,965.00",Assist Streetcare,102956
WARRINGTON BOROUGH COUNCIL,http://statistics.data.gov.uk/id/local-authority/00EU,"Economic Regeneration, Growth and Environment",EG0,Core Operational Business,41730,Works Contract Paymt,442500,29-Nov-13,1900133451,745.00,Assist Streetcare,102956
WARRINGTON BOROUGH COUNCIL,http://statistics.data.gov.uk/id/local-authority/00EU,"Economic Regeneration, Growth and Environment",EG0,Core Operational Business,41730,Works Contract Paymt,442500,29-Nov-13,1900133452,"20,965.00",Assist Streetcare,102956
WARRINGTON BOROUGH COUNCIL,http://statistics.data.gov.uk/id/local-authority/00EU,Families & Wellbeing,FWB,Equipment Store,54930,Gas,210050,27-Nov-13,1900133406,"3,441.00",Scottish Power Manweb,103031
WARRINGTON BOROUGH COUNCIL,http://statistics.data.gov.uk/id/local-authority/00EU,Families & Wellbeing,FWB,DSG Early Years PVI Settings,32417,Private & Voluntary 3 Year Olds,470100,13-Nov-13,1900133098,"1,500.00",St Monica's Pre School,103081
WARRINGTON BOROUGH COUNCIL,http://statistics.data.gov.uk/id/local-authority/00EU,Resources and Strategic Commissioning,RSC,Coroners Service,11100,Removal Bodies & Exc,440350,14-Nov-13,1900132526,507.00,Dignity Funerals Ltd,103089
WARRINGTON BOROUGH COUNCIL,http://statistics.data.gov.uk/id/local-authority/00EU,Families & Wellbeing,FWB,Contracts - SM Commissioning Team 1,55910,Public Health Contract Payments,540000,01-Nov-13,1900131517,"5,804.00",Homestart Warrington,103200
WARRINGTON BOROUGH COUNCIL,http://statistics.data.gov.uk/id/local-authority/00EU,Families & Wellbeing,FWB,Care Purchase - OP & OT West,54470,CP-Domicil.External,440950,26-Nov-13,1900133158,"11,538.00",Safehands Network Ltd,103226
WARRINGTON BOROUGH COUNCIL,http://statistics.data.gov.uk/id/local-authority/00EU,Families & Wellbeing,FWB,Care Purchase - OP & OT Central,54420,CP-Domicil.External,440950,26-Nov-13,1900133158,"9,966.00",Safehands Network Ltd,103226
WARRINGTON BOROUGH COUNCIL,http://statistics.data.gov.uk/id/local-authority/00EU,Families & Wellbeing,FWB,Care Purchase -OP & OT East,54430,CP-Domicil.External,440950,26-Nov-13,1900133158,"8,983.00",Safehands Network Ltd,103226
WARRINGTON BOROUGH COUNCIL,http://statistics.data.gov.uk/id/local-authority/00EU,Families & Wellbeing,FWB,Care Purchase - OP & OT South,54480,CP-Domicil.External,440950,26-Nov-13,1900133158,"5,174.00",Safehands Network Ltd,103226
WARRINGTON BOROUGH COUNCIL,http://statistics.data.gov.uk/id/local-authority/00EU,Families & Wellbeing,FWB,Care Purchase - PD,54440,CP-Domicil.External,440950,26-Nov-13,1900133158,"3,158.00",Safehands Network Ltd,103226
WARRINGTON BOROUGH COUNCIL,http://statistics.data.gov.uk/id/local-authority/00EU,Families & Wellbeing,FWB,Care Purchase Budget,54490,CP - Cont Care - External,441350,26-Nov-13,1900133158,693.00,Safehands Network Ltd,103226
WARRINGTON BOROUGH COUNCIL,http://statistics.data.gov.uk/id/local-authority/00EU,Families & Wellbeing,FWB,Care Purchase - PD,54440,Direct Payments,552000,12-Nov-13,1900132083,935.00,Redacted Personal Data,103320
WARRINGTON BOROUGH COUNCIL,http://statistics.data.gov.uk/id/local-authority/00EU,Corporate Financing,COR,Concessionary Travel,60000,Railcards,505050,15-Nov-13,1900132623,"14,784.00",Cheshire West And Chester,103357
WARRINGTON BOROUGH COUNCIL,http://statistics.data.gov.uk/id/local-authority/00EU,"Economic Regeneration, Growth and Environment",EG0,Planning Policy,43440,Payment of Grants,470050,26-Nov-13,1900133167,"15,000.00",Cheshire West And Chester,103357
WARRINGTON BOROUGH COUNCIL,http://statistics.data.gov.uk/id/local-authority/00EU,Families & Wellbeing,FWB,Care Purchase - PD,54440,Direct Payments,552000,12-Nov-13,1900132084,"1,740.00",Redacted Personal Data,103372
WARRINGTON BOROUGH COUNCIL,http://statistics.data.gov.uk/id/local-authority/00EU,Families & Wellbeing,FWB,Care Purchase - PD,54440,Direct Payments,552000,12-Nov-13,1900132085,"1,732.00",Redacted Personal Data,103404
WARRINGTON BOROUGH COUNCIL,http://statistics.data.gov.uk/id/local-authority/00EU,"Economic Regeneration, Growth and Environment",ENP,Environment & Regeneration,82000,Specific Work,200200,21-Nov-13,1900132763,754.00,Sutcliffe,103561
WARRINGTON BOROUGH COUNCIL,http://statistics.data.gov.uk/id/local-authority/00EU,"Economic Regeneration, Growth and Environment",ENP,Environment & Regeneration,82000,Specific Work,200200,21-Nov-13,1900132764,"4,984.00",Sutcliffe,103561
WARRINGTON BOROUGH COUNCIL,http://statistics.data.gov.uk/id/local-authority/00EU,"Economic Regeneration, Growth and Environment",ENP,Environment & Regeneration,82000,Specific Work,200200,21-Nov-13,1900132765,"7,416.00",Sutcliffe,103561
WARRINGTON BOROUGH COUNCIL,http://statistics.data.gov.uk/id/local-authority/00EU,"Economic Regeneration, Growth and Environment",ENP,Environment & Regeneration,82000,Specific Work,200200,21-Nov-13,1900132766,"2,178.00",Sutcliffe,103561
WARRINGTON BOROUGH COUNCIL,http://statistics.data.gov.uk/id/local-authority/00EU,"Economic Regeneration, Growth and Environment",ENP,Environment & Regeneration,82000,Specific Work,200200,21-Nov-13,1900132767,"3,422.00",Sutcliffe,103561
WARRINGTON BOROUGH COUNCIL,http://statistics.data.gov.uk/id/local-authority/00EU,"Economic Regeneration, Growth and Environment",ENP,Environment & Regeneration,82000,Specific Work,200200,21-Nov-13,1900132768,"1,600.00",Sutcliffe,103561
WARRINGTON BOROUGH COUNCIL,http://statistics.data.gov.uk/id/local-authority/00EU,"Economic Regeneration, Growth and Environment",ENP,Environment & Regeneration,82000,Specific Work,200200,21-Nov-13,1900132769,"1,200.00",Sutcliffe,103561
WARRINGTON BOROUGH COUNCIL,http://statistics.data.gov.uk/id/local-authority/00EU,Families & Wellbeing,FWB,Care Purchase - Learning Disability,54450,Direct Payments,552000,12-Nov-13,1900132089,696.00,Redacted Personal Data,103573
WARRINGTON BOROUGH COUNCIL,http://statistics.data.gov.uk/id/local-authority/00EU,Families & Wellbeing,FWB,Care Purchase - PD,54440,Direct Payments,552000,12-Nov-13,1900132092,"1,109.00",Redacted Personal Data,103587
WARRINGTON BOROUGH COUNCIL,http://statistics.data.gov.uk/id/local-authority/00EU,Families & Wellbeing,FWB,Care Purchase - OP & OT West,54470,CP-Nursing Care-External,441200,22-Nov-13,1900132976,"1,427.00",Four Seasons Ta Cherry Trees,103592
WARRINGTON BOROUGH COUNCIL,http://statistics.data.gov.uk/id/local-authority/00EU,Families & Wellbeing,FWB,Care Purchase - PD,54440,Direct Payments,552000,12-Nov-13,1900132093,"1,046.00",Redacted Personal Data,103593
WARRINGTON BOROUGH COUNCIL,http://statistics.data.gov.uk/id/local-authority/00EU,Families & Wellbeing,FWB,Care Purchase - OP & OT South,54480,CP-LongStayExternal,441150,11-Nov-13,1900131902,"1,898.00",Lady Elsie Finney House Lancashire,103595
WARRINGTON BOROUGH COUNCIL,http://statistics.data.gov.uk/id/local-authority/00EU,Families & Wellbeing,FWB,EIG Funding - Childcare Team,31600,Payment of Grants,470050,04-Nov-13,1900131569,605.00,J K Links Clubs,103600
WARRINGTON BOROUGH COUNCIL,http://statistics.data.gov.uk/id/local-authority/00EU,Families & Wellbeing,FWB,Care Purchase - Learning Disability,54450,Direct Payments,552000,12-Nov-13,1900132094,"1,167.00",Redacted Personal Data,103611
WARRINGTON BOROUGH COUNCIL,http://statistics.data.gov.uk/id/local-authority/00EU,Families & Wellbeing,FWB,Care Purchase - PD,54440,Direct Payments,552000,12-Nov-13,1900132095,"1,594.00",Redacted Personal Data,103613
WARRINGTON BOROUGH COUNCIL,http://statistics.data.gov.uk/id/local-authority/00EU,Families & Wellbeing,FWB,Care Purchase - Learning Disability,54450,Direct Payments,552000,12-Nov-13,1900132096,"1,401.00",Redacted Personal Data,103614
WARRINGTON BOROUGH COUNCIL,http://statistics.data.gov.uk/id/local-authority/00EU,Families & Wellbeing,CYP,Childrens Other,81004,Contract Works,492550,13-Nov-13,1900132455,"1,550.00",Dtz Debenham,103647
WARRINGTON BOROUGH COUNCIL,http://statistics.data.gov.uk/id/local-authority/00EU,Families & Wellbeing,FWB,Care Purchase - Learning Disability,54450,Direct Payments,552000,12-Nov-13,1900132098,964.00,Redacted Personal Data,103660
WARRINGTON BOROUGH COUNCIL,http://statistics.data.gov.uk/id/local-authority/00EU,Families & Wellbeing,FWB,Care Purchase - PD,54440,Direct Payments,552000,12-Nov-13,1900132099,637.00,Redacted Personal Data,103674
WARRINGTON BOROUGH COUNCIL,http://statistics.data.gov.uk/id/local-authority/00EU,Families & Wellbeing,FWB,Care Purchase - Learning Disability,54450,CP-LongStayExternal,441150,22-Nov-13,1900132954,"10,388.00",Bank Hall Farm,103693
WARRINGTON BOROUGH COUNCIL,http://statistics.data.gov.uk/id/local-authority/00EU,Families & Wellbeing,FWB,Care Purchase - Learning Disability,54450,Direct Payments,552000,12-Nov-13,1900132100,"2,060.00",Redacted Personal Data,103696
WARRINGTON BOROUGH COUNCIL,http://statistics.data.gov.uk/id/local-authority/00EU,Families & Wellbeing,FWB,Care Purchase - Learning Disability,54450,Direct Payments,552000,12-Nov-13,1900132101,"1,146.00",Redacted Personal Data,103697
WARRINGTON BOROUGH COUNCIL,http://statistics.data.gov.uk/id/local-authority/00EU,Families & Wellbeing,FWB,Care Purchase - Learning Disability,54450,Direct Payments,552000,26-Nov-13,1900133398,598.00,Redacted Personal Data,103697
WARRINGTON BOROUGH COUNCIL,http://statistics.data.gov.uk/id/local-authority/00EU,Resources and Strategic Commissioning,RSC,IT - Contracts,23600,Computer Software - Purchase,450800,22-Nov-13,1900133010,"6,886.00",Sunrise Software Limited,103717
WARRINGTON BOROUGH COUNCIL,http://statistics.data.gov.uk/id/local-authority/00EU,Families & Wellbeing,FWB,Care Purchase -OP & OT East,54430,Direct Payments,552000,12-Nov-13,1900132103,881.00,Redacted Personal Data,103723
WARRINGTON BOROUGH COUNCIL,http://statistics.data.gov.uk/id/local-authority/00EU,Families & Wellbeing,FWB,Care Purchase - OP & OT West,54470,CP-LongStayExternal,441150,01-Nov-13,1900131491,"1,460.00",Croftwood Care Limited,103738
WARRINGTON BOROUGH COUNCIL,http://statistics.data.gov.uk/id/local-authority/00EU,Families & Wellbeing,FWB,Care Purchase - OP & OT West,54470,CP-LongStayExternal,441150,26-Nov-13,1900133244,"1,460.00",Croftwood Care Limited,103738
WARRINGTON BOROUGH COUNCIL,http://statistics.data.gov.uk/id/local-authority/00EU,Families & Wellbeing,FWB,Care Purchase - Learning Disability,54450,Direct Payments,552000,12-Nov-13,1900132108,"9,177.00",Redacted Personal Data,103771
WARRINGTON BOROUGH COUNCIL,http://statistics.data.gov.uk/id/local-authority/00EU,Families & Wellbeing,FWB,Care Purchase - PD,54440,Supporting People - External,441250,12-Nov-13,1900132109,849.00,Redacted Personal Data,103794
WARRINGTON BOROUGH COUNCIL,http://statistics.data.gov.uk/id/local-authority/00EU,Families & Wellbeing,FWB,Child Disability,32212,Direct Payments,552000,12-Nov-13,1900132110,502.00,Redacted Personal Data,103820
WARRINGTON BOROUGH COUNCIL,http://statistics.data.gov.uk/id/local-authority/00EU,Families & Wellbeing,FWB,Care Purchase - Learning Disability,54450,CP-LongStayExternal,441150,22-Nov-13,1900132991,"3,564.00",Manor Care Centre,103831
WARRINGTON BOROUGH COUNCIL,http://statistics.data.gov.uk/id/local-authority/00EU,Families & Wellbeing,FWB,Care Purchase - Learning Disability,54450,Direct Payments,552000,12-Nov-13,1900132112,672.00,Redacted Personal Data,103832
WARRINGTON BOROUGH COUNCIL,http://statistics.data.gov.uk/id/local-authority/00EU,Families & Wellbeing,FWB,Care Purchase - OP & OT South,54480,CP-Nursing Care-External,441200,01-Nov-13,1900131514,"2,064.00",St Monica Trust,104021
WARRINGTON BOROUGH COUNCIL,http://statistics.data.gov.uk/id/local-authority/00EU,Families & Wellbeing,FWB,Care Purchase - OP & OT South,54480,CP-Domicil.External,440950,06-Nov-13,1900131734,"4,046.00",St Monica Trust,104021
WARRINGTON BOROUGH COUNCIL,http://statistics.data.gov.uk/id/local-authority/00EU,Families & Wellbeing,FWB,Care Purchase - PD,54440,CP-Nursing Care-External,441200,27-Nov-13,1900133390,"2,064.00",St Monica Trust,104021
WARRINGTON BOROUGH COUNCIL,http://statistics.data.gov.uk/id/local-authority/00EU,"Economic Regeneration, Growth and Environment",FOL,Care Purchase Adults Central,54135,CP-Domicil.External,440950,27-Nov-13,1900133306,"2,078.00",Bluebird Care Warrington,104094
WARRINGTON BOROUGH COUNCIL,http://statistics.data.gov.uk/id/local-authority/00EU,Families & Wellbeing,FWB,Care Purchase - OP & OT South,54480,CP-Domicil.External,440950,27-Nov-13,1900133306,"15,791.00",Bluebird Care Warrington,104094
WARRINGTON BOROUGH COUNCIL,http://statistics.data.gov.uk/id/local-authority/00EU,Families & Wellbeing,FWB,Care Purchase -OP & OT East,54430,CP-Domicil.External,440950,27-Nov-13,1900133306,"14,992.00",Bluebird Care Warrington,104094
WARRINGTON BOROUGH COUNCIL,http://statistics.data.gov.uk/id/local-authority/00EU,Families & Wellbeing,FWB,Care Purchase - OP & OT West,54470,CP-Domicil.External,440950,27-Nov-13,1900133306,"11,970.00",Bluebird Care Warrington,104094
WARRINGTON BOROUGH COUNCIL,http://statistics.data.gov.uk/id/local-authority/00EU,Families & Wellbeing,FWB,Care Purchase - OP & OT Central,54420,CP-Domicil.External,440950,27-Nov-13,1900133306,"3,897.00",Bluebird Care Warrington,104094
WARRINGTON BOROUGH COUNCIL,http://statistics.data.gov.uk/id/local-authority/00EU,Families & Wellbeing,FWB,Care Purchase - PD,54440,CP-Domicil.External,440950,27-Nov-13,1900133306,"12,887.00",Bluebird Care Warrington,104094
WARRINGTON BOROUGH COUNCIL,http://statistics.data.gov.uk/id/local-authority/00EU,Families & Wellbeing,FWB,Care Purchase - PD,54440,Supporting People - External,441250,27-Nov-13,1900133306,"1,572.00",Bluebird Care Warrington,104094
WARRINGTON BOROUGH COUNCIL,http://statistics.data.gov.uk/id/local-authority/00EU,Families & Wellbeing,FWB,Care Purchase Budget,54490,CP - Cont Care - External,441350,27-Nov-13,1900133306,570.00,Bluebird Care Warrington,104094
WARRINGTON BOROUGH COUNCIL,http://statistics.data.gov.uk/id/local-authority/00EU,Families & Wellbeing,FWB,Care Purchase - PD,54440,Direct Payments,552000,12-Nov-13,1900132121,"1,179.00",Redacted Personal Data,104205
WARRINGTON BOROUGH COUNCIL,http://statistics.data.gov.uk/id/local-authority/00EU,Families & Wellbeing,FWB,DAT Pooled Budget,53860,Drug Action,443600,27-Nov-13,1900133345,582.00,Medicx Pharmacy Ltd,104278
WARRINGTON BOROUGH COUNCIL,http://statistics.data.gov.uk/id/local-authority/00EU,Families & Wellbeing,FWB,Care Purchase - OP & OT Central,54420,CP-LongStayExternal,441150,26-Nov-13,1900133172,"1,893.00",HC1 Ltd County Homes,104325
WARRINGTON BOROUGH COUNCIL,http://statistics.data.gov.uk/id/local-authority/00EU,Families & Wellbeing,FWB,Care Purchase - OP & OT Central,54420,CP-Nursing Care-External,441200,26-Nov-13,1900133176,"2,208.00",HC1 Ltd County Homes,104325
WARRINGTON BOROUGH COUNCIL,http://statistics.data.gov.uk/id/local-authority/00EU,Families & Wellbeing,FWB,Care Purchase - PD,54440,Direct Payments,552000,12-Nov-13,1900132123,849.00,Redacted Personal Data,104327
WARRINGTON BOROUGH COUNCIL,http://statistics.data.gov.uk/id/local-authority/00EU,Families & Wellbeing,FWB,Care Purchase -OP & OT East,54430,CP-LongStayExternal,441150,22-Nov-13,1900132949,"1,540.00",Abbeydale Residential Home,104446
WARRINGTON BOROUGH COUNCIL,http://statistics.data.gov.uk/id/local-authority/00EU,Families & Wellbeing,FWB,Contracts - OM HPHL Team,55940,Public Health Contribution Payments,540010,13-Nov-13,1900132463,"1,642.00",Clear Channel Uk,104454
WARRINGTON BOROUGH COUNCIL,http://statistics.data.gov.uk/id/local-authority/00EU,Families & Wellbeing,FWB,Care Purchase - Learning Disability,54450,CP-Domicil.External,440950,19-Nov-13,1900132697,"68,333.00",Alternative Futures Group,104468
WARRINGTON BOROUGH COUNCIL,http://statistics.data.gov.uk/id/local-authority/00EU,Families & Wellbeing,FWB,Care Purchase - Learning Disability,54450,Supporting People - External,441250,19-Nov-13,1900132697,"7,300.00",Alternative Futures Group,104468
WARRINGTON BOROUGH COUNCIL,http://statistics.data.gov.uk/id/local-authority/00EU,"Economic Regeneration, Growth and Environment",FOL,Care Purchase Adults Central,54135,CP-Domicil.External,440950,22-Nov-13,1900132881,996.00,Alternative Futures Group,104468
WARRINGTON BOROUGH COUNCIL,http://statistics.data.gov.uk/id/local-authority/00EU,Families & Wellbeing,FWB,Care Purchase - Learning Disability,54450,CP-Domicil.External,440950,27-Nov-13,1900133293,"3,163.00",Alternative Futures Group,104468
WARRINGTON BOROUGH COUNCIL,http://statistics.data.gov.uk/id/local-authority/00EU,Families & Wellbeing,FWB,Care Purchase Budget,54490,CP-LongStayExternal,441150,13-Nov-13,1900131963,"2,583.00",Arlington House,104491
WARRINGTON BOROUGH COUNCIL,http://statistics.data.gov.uk/id/local-authority/00EU,Families & Wellbeing,FWB,Care Purchase Budget,54490,CP ExternalOther Exp,440800,13-Nov-13,1900132407,"3,635.00",Arlington House,104491
WARRINGTON BOROUGH COUNCIL,http://statistics.data.gov.uk/id/local-authority/00EU,Families & Wellbeing,FWB,Care Purchase Budget,54490,CP-LongStayExternal,441150,13-Nov-13,1900131968,"2,543.00",Arlington House,104491
WARRINGTON BOROUGH COUNCIL,http://statistics.data.gov.uk/id/local-authority/00EU,Families & Wellbeing,FWB,Care Purchase Budget,54490,CP ExternalOther Exp,440800,13-Nov-13,1900132412,"22,000.00",Arlington House,104491
WARRINGTON BOROUGH COUNCIL,http://statistics.data.gov.uk/id/local-authority/00EU,Families & Wellbeing,FWB,Care Purchase - Learning Disability,54450,CP-Domicil.External,440950,13-Nov-13,1900132414,537.00,Autism Initiatives,104503
WARRINGTON BOROUGH COUNCIL,http://statistics.data.gov.uk/id/local-authority/00EU,Families & Wellbeing,FWB,Care Purchase - Learning Disability,54450,CP-LongStayExternal,441150,22-Nov-13,1900132968,"4,496.00",Autism Initiatives,104503
WARRINGTON BOROUGH COUNCIL,http://statistics.data.gov.uk/id/local-authority/00EU,Families & Wellbeing,FWB,Care Purchase - Learning Disability,54450,CP-Day Care-External,441100,22-Nov-13,1900132996,"3,651.00",Autism Initiatives,104503
WARRINGTON BOROUGH COUNCIL,http://statistics.data.gov.uk/id/local-authority/00EU,Families & Wellbeing,FWB,Care Purchase - Learning Disability,54450,CP-Day Care-External,441100,22-Nov-13,1900132955,"2,931.00",Autism Initiatives,104503
WARRINGTON BOROUGH COUNCIL,http://statistics.data.gov.uk/id/local-authority/00EU,Families & Wellbeing,FWB,Care Purchase - Learning Disability,54450,CP-Domicil.External,440950,26-Nov-13,1900133169,"6,926.00",Autism Initiatives,104503
WARRINGTON BOROUGH COUNCIL,http://statistics.data.gov.uk/id/local-authority/00EU,Families & Wellbeing,FWB,Care Purchase - Learning Disability,54450,CP-Domicil.External,440950,26-Nov-13,1900133168,"6,563.00",Autism Initiatives,104503
WARRINGTON BOROUGH COUNCIL,http://statistics.data.gov.uk/id/local-authority/00EU,Families & Wellbeing,FWB,Care Purchase - Learning Disability,54450,CP-Domicil.External,440950,26-Nov-13,1900133161,"5,685.00",Autism Initiatives,104503
WARRINGTON BOROUGH COUNCIL,http://statistics.data.gov.uk/id/local-authority/00EU,Holding Accounts,HOL,Single Billing Holding Account,91130,Gas,210050,26-Nov-13,1900133144,"57,412.00",British Gas Business,104540
WARRINGTON BOROUGH COUNCIL,http://statistics.data.gov.uk/id/local-authority/00EU,Holding Accounts,HOL,Single Billing Holding Account,91130,Gas,210050,26-Nov-13,1900133144,"4,455.00",British Gas Business,104540
WARRINGTON BOROUGH COUNCIL,http://statistics.data.gov.uk/id/local-authority/00EU,"Economic Regeneration, Growth and Environment",EG0,Urban Traffic Management Control,44370,Signal Management,531600,04-Nov-13,1900131574,"12,136.00",British Telecommunications Plc,104543
WARRINGTON BOROUGH COUNCIL,http://statistics.data.gov.uk/id/local-authority/00EU,Families & Wellbeing,FWB,Care Purchase - OP & OT Central,54420,CP-LongStayExternal,441150,22-Nov-13,1900132956,"1,764.00",Bupa Care Homes - Broadoak Manor,104546
WARRINGTON BOROUGH COUNCIL,http://statistics.data.gov.uk/id/local-authority/00EU,Families & Wellbeing,FWB,Care Purchase - OP & OT South,54480,CP-LongStayExternal,441150,26-Nov-13,1900133215,"1,700.00",Barchester Healthcare Brookfield,104548
WARRINGTON BOROUGH COUNCIL,http://statistics.data.gov.uk/id/local-authority/00EU,Families & Wellbeing,FWB,Care Purchase - OP & OT South,54480,CP-LongStayExternal,441150,26-Nov-13,1900133218,"1,700.00",Barchester Healthcare Brookfield,104548
WARRINGTON BOROUGH COUNCIL,http://statistics.data.gov.uk/id/local-authority/00EU,Families & Wellbeing,FWB,Care Purchase - OP & OT South,54480,CP-LongStayExternal,441150,26-Nov-13,1900133235,"1,700.00",Barchester Healthcare Brookfield,104548
WARRINGTON BOROUGH COUNCIL,http://statistics.data.gov.uk/id/local-authority/00EU,Families & Wellbeing,FWB,Care Purchase - OP & OT South,54480,CP-LongStayExternal,441150,26-Nov-13,1900133219,"1,700.00",Barchester Healthcare Brookfield,104548
WARRINGTON BOROUGH COUNCIL,http://statistics.data.gov.uk/id/local-authority/00EU,Families & Wellbeing,FWB,Care Purchase - OP & OT South,54480,CP-LongStayExternal,441150,26-Nov-13,1900133220,"1,700.00",Barchester Healthcare Brookfield,104548
WARRINGTON BOROUGH COUNCIL,http://statistics.data.gov.uk/id/local-authority/00EU,Families & Wellbeing,FWB,Care Purchase - OP & OT South,54480,CP-LongStayExternal,441150,26-Nov-13,1900133213,"1,700.00",Barchester Healthcare Brookfield,104548
WARRINGTON BOROUGH COUNCIL,http://statistics.data.gov.uk/id/local-authority/00EU,Families & Wellbeing,FWB,Care Purchase - OP & OT South,54480,CP-LongStayExternal,441150,26-Nov-13,1900133233,"1,700.00",Barchester Healthcare Brookfield,104548
WARRINGTON BOROUGH COUNCIL,http://statistics.data.gov.uk/id/local-authority/00EU,Families & Wellbeing,FWB,Care Purchase - OP & OT South,54480,CP-LongStayExternal,441150,26-Nov-13,1900133214,"1,700.00",Barchester Healthcare Brookfield,104548
WARRINGTON BOROUGH COUNCIL,http://statistics.data.gov.uk/id/local-authority/00EU,Families & Wellbeing,FWB,Care Purchase Budget,54490,CP-LongStayExternal,441150,11-Nov-13,1900131877,"11,217.00",Bupa Care Homes,104572
WARRINGTON BOROUGH COUNCIL,http://statistics.data.gov.uk/id/local-authority/00EU,Families & Wellbeing,FWB,Care Purchase Budget,54490,CP ExternalOther Exp,440800,13-Nov-13,1900132449,"4,738.00",Bupa Care Homes,104572
WARRINGTON BOROUGH COUNCIL,http://statistics.data.gov.uk/id/local-authority/00EU,Families & Wellbeing,FWB,Care Purchase Budget,54490,CP ExternalOther Exp,440800,13-Nov-13,1900132432,"170,000.00",Bupa Care Homes,104572
WARRINGTON BOROUGH COUNCIL,http://statistics.data.gov.uk/id/local-authority/00EU,Families & Wellbeing,FWB,Care Purchase -OP & OT East,54430,CP-Domicil.External,440950,26-Nov-13,1900133166,"12,082.00",Carewatch North Cheshire,104573
WARRINGTON BOROUGH COUNCIL,http://statistics.data.gov.uk/id/local-authority/00EU,Families & Wellbeing,FWB,Care Purchase - Learning Disability,54450,CP-Domicil.External,440950,26-Nov-13,1900133166,"5,713.00",Carewatch North Cheshire,104573
WARRINGTON BOROUGH COUNCIL,http://statistics.data.gov.uk/id/local-authority/00EU,Families & Wellbeing,FWB,Care Purchase - PD,54440,CP-Domicil.External,440950,26-Nov-13,1900133166,"2,242.00",Carewatch North Cheshire,104573
WARRINGTON BOROUGH COUNCIL,http://statistics.data.gov.uk/id/local-authority/00EU,Families & Wellbeing,FWB,Care Purchase - Learning Disability,54450,Supporting People - External,441250,26-Nov-13,1900133166,533.00,Carewatch North Cheshire,104573
WARRINGTON BOROUGH COUNCIL,http://statistics.data.gov.uk/id/local-authority/00EU,Families & Wellbeing,FWB,Contracts - OM HPHL Team,55940,Public Health Contract Payments,540000,13-Nov-13,1900132456,"1,270.00",University Of Chester,104599
WARRINGTON BOROUGH COUNCIL,http://statistics.data.gov.uk/id/local-authority/00EU,Resources and Strategic Commissioning,RSC,HR Advisory,20005,Subscriptions,470000,21-Nov-13,1900132753,"2,325.00",CIPFA,104607
WARRINGTON BOROUGH COUNCIL,http://statistics.data.gov.uk/id/local-authority/00EU,Families & Wellbeing,FWB,Care Purchase Budget,54490,CP ExternalOther Exp,440800,06-Nov-13,1900131706,"7,737.00",Cls Care Services Ltd,104615
WARRINGTON BOROUGH COUNCIL,http://statistics.data.gov.uk/id/local-authority/00EU,Families & Wellbeing,FWB,Care Purchase Budget,54490,CP-LongStayExternal,441150,06-Nov-13,1900131707,"3,657.00",Cls Care Services Ltd,104615
WARRINGTON BOROUGH COUNCIL,http://statistics.data.gov.uk/id/local-authority/00EU,Families & Wellbeing,FWB,Care Purchase Budget,54490,CP-LongStayExternal,441150,06-Nov-13,1900131708,"3,309.00",Cls Care Services Ltd,104615
WARRINGTON BOROUGH COUNCIL,http://statistics.data.gov.uk/id/local-authority/00EU,Families & Wellbeing,FWB,Care Purchase Budget,54490,CP ExternalOther Exp,440800,11-Nov-13,1900131917,824.00,Cls Care Services Ltd,104615
WARRINGTON BOROUGH COUNCIL,http://statistics.data.gov.uk/id/local-authority/00EU,Families & Wellbeing,FWB,Care Purchase Budget,54490,CP-LongStayExternal,441150,11-Nov-13,1900131916,"2,720.00",Cls Care Services Ltd,104615
WARRINGTON BOROUGH COUNCIL,http://statistics.data.gov.uk/id/local-authority/00EU,Families & Wellbeing,FWB,Care Purchase Budget,54490,CP-LongStayExternal,441150,11-Nov-13,1900131918,"3,520.00",Cls Care Services Ltd,104615
WARRINGTON BOROUGH COUNCIL,http://statistics.data.gov.uk/id/local-authority/00EU,Families & Wellbeing,FWB,Care Purchase Budget,54490,CP ExternalOther Exp,440800,13-Nov-13,1900132428,"60,000.00",Cls Care Services Ltd,104615
WARRINGTON BOROUGH COUNCIL,http://statistics.data.gov.uk/id/local-authority/00EU,Resources and Strategic Commissioning,RSC,Sports Development,51200,Community Action Projects,470200,12-Nov-13,1900131960,"2,800.00",Coachwise Ltd,104616
WARRINGTON BOROUGH COUNCIL,http://statistics.data.gov.uk/id/local-authority/00EU,Families & Wellbeing,FWB,James Phoenix House,54720,Photocopier,430000,27-Nov-13,1900133323,713.00,Concept Rental Services Ltd,104631
WARRINGTON BOROUGH COUNCIL,http://statistics.data.gov.uk/id/local-authority/00EU,Families & Wellbeing,FWB,Care Purchase - PD,54440,CP-Day Care-External,441100,26-Nov-13,1900133251,"2,068.00",Cotebrook,104638
WARRINGTON BOROUGH COUNCIL,http://statistics.data.gov.uk/id/local-authority/00EU,Families & Wellbeing,FWB,Care Purchase - OP & OT South,54480,CP-LongStayExternal,441150,26-Nov-13,1900133222,"9,776.00",Cotebrook,104638
WARRINGTON BOROUGH COUNCIL,http://statistics.data.gov.uk/id/local-authority/00EU,Families & Wellbeing,FWB,Care Purchase - OP & OT South,54480,CP-LongStayExternal,441150,26-Nov-13,1900133241,"4,888.00",Cotebrook,104638
WARRINGTON BOROUGH COUNCIL,http://statistics.data.gov.uk/id/local-authority/00EU,Families & Wellbeing,FWB,Care Purchase - ABI,54260,CP-LongStayExternal,441150,26-Nov-13,1900133241,"3,295.00",Cotebrook,104638
WARRINGTON BOROUGH COUNCIL,http://statistics.data.gov.uk/id/local-authority/00EU,Families & Wellbeing,FWB,Care Purchase - Learning Disability,54450,CP-LongStayExternal,441150,26-Nov-13,1900133241,"2,444.00",Cotebrook,104638
WARRINGTON BOROUGH COUNCIL,http://statistics.data.gov.uk/id/local-authority/00EU,Families & Wellbeing,FWB,Care Purchase - PD,54440,CP-LongStayExternal,441150,26-Nov-13,1900133241,"16,160.00",Cotebrook,104638
WARRINGTON BOROUGH COUNCIL,http://statistics.data.gov.uk/id/local-authority/00EU,Families & Wellbeing,FWB,Care Purchase - Learning Disability,54450,CP-Day Care-External,441100,27-Nov-13,1900133287,"2,217.00",Deafness Support Network,104657
WARRINGTON BOROUGH COUNCIL,http://statistics.data.gov.uk/id/local-authority/00EU,"Economic Regeneration, Growth and Environment",EG0,Estates & Valuation,43520,Agency Supply - GF,180000,27-Nov-13,1900133304,562.00,Eden Brown Recruitment Ltd,104686
WARRINGTON BOROUGH COUNCIL,http://statistics.data.gov.uk/id/local-authority/00EU,Holding Accounts,HOL,Insurance Fund,91100,Insurance Claims,443400,27-Nov-13,1900133413,"74,615.00",Gallagher Bassett International Ltd,104739
WARRINGTON BOROUGH COUNCIL,http://statistics.data.gov.uk/id/local-authority/00EU,Resources and Strategic Commissioning,RSC,People & Improvement,20000,Veh Maint. Materials,300000,11-Nov-13,1900131909,"19,700.00",Halfords Ltd,104764
WARRINGTON BOROUGH COUNCIL,http://statistics.data.gov.uk/id/local-authority/00EU,Resources and Strategic Commissioning,RSC,People & Improvement,20000,Veh Maint. Materials,300000,21-Nov-13,1900132838,"1,917.00",Halfords Ltd,104764
WARRINGTON BOROUGH COUNCIL,http://statistics.data.gov.uk/id/local-authority/00EU,Families & Wellbeing,FWB,Care Purchase Budget,54490,CP ExternalOther Exp,440800,13-Nov-13,1900132413,"130,000.00",Ashberry Healthcare Ltd,104776
WARRINGTON BOROUGH COUNCIL,http://statistics.data.gov.uk/id/local-authority/00EU,Families & Wellbeing,FWB,Care Purchase Budget,54490,CP-LongStayExternal,441150,22-Nov-13,1900132867,"11,383.00",Ashberry Healthcare Ltd,104776
WARRINGTON BOROUGH COUNCIL,http://statistics.data.gov.uk/id/local-authority/00EU,Families & Wellbeing,FWB,Care Purchase Budget,54490,CP ExternalOther Exp,440800,25-Nov-13,1900133049,"15,127.00",Ashberry Healthcare Ltd,104776
WARRINGTON BOROUGH COUNCIL,http://statistics.data.gov.uk/id/local-authority/00EU,Families & Wellbeing,FWB,Care Purchase Budget,54490,CP ExternalOther Exp,440800,11-Nov-13,1900131884,"7,859.00",Heathside Elderly Persons Home,104777
WARRINGTON BOROUGH COUNCIL,http://statistics.data.gov.uk/id/local-authority/00EU,Families & Wellbeing,FWB,Care Purchase Budget,54490,CP-LongStayExternal,441150,11-Nov-13,1900131882,"4,851.00",Heathside Elderly Persons Home,104777
WARRINGTON BOROUGH COUNCIL,http://statistics.data.gov.uk/id/local-authority/00EU,Families & Wellbeing,FWB,Care Purchase Budget,54490,CP ExternalOther Exp,440800,13-Nov-13,1900132448,"45,000.00",Heathside Elderly Persons Home,104777
WARRINGTON BOROUGH COUNCIL,http://statistics.data.gov.uk/id/local-authority/00EU,Families & Wellbeing,FWB,Care Purchase Budget,54490,CP ExternalOther Exp,440800,22-Nov-13,1900132868,"15,127.00",The Helping Hand Co (Ledbury) Ltd,104778
WARRINGTON BOROUGH COUNCIL,http://statistics.data.gov.uk/id/local-authority/00EU,"Economic Regeneration, Growth and Environment",FOL,Care Purchase Adults Central,54135,CP-LongStayExternal,441150,22-Nov-13,1900132872,"1,564.00",Hilton Residential Homes Ltd,104783
WARRINGTON BOROUGH COUNCIL,http://statistics.data.gov.uk/id/local-authority/00EU,"Economic Regeneration, Growth and Environment",EG0,Public Conveniences,43510,Rent Of Premises,220000,27-Nov-13,1900133412,"17,583.00",Jcdecaux Uk Ltd,104827
WARRINGTON BOROUGH COUNCIL,http://statistics.data.gov.uk/id/local-authority/00EU,Families & Wellbeing,CYP,Childrens Other,81004,Furniture & Fittings,400150,20-Nov-13,1900132720,"3,160.00",H Jenkinson + Co Ltd,104829
WARRINGTON BOROUGH COUNCIL,http://statistics.data.gov.uk/id/local-authority/00EU,Families & Wellbeing,FWB,Care Purchase Budget,54490,CP-LongStayExternal,441150,06-Nov-13,1900131719,"1,326.00",Keate House Residential Home,104849
WARRINGTON BOROUGH COUNCIL,http://statistics.data.gov.uk/id/local-authority/00EU,Families & Wellbeing,FWB,Care Purchase Budget,54490,CP-LongStayExternal,441150,06-Nov-13,1900131718,"3,931.00",Keate House Residential Home,104849
WARRINGTON BOROUGH COUNCIL,http://statistics.data.gov.uk/id/local-authority/00EU,Families & Wellbeing,FWB,Care Purchase Budget,54490,CP ExternalOther Exp,440800,06-Nov-13,1900131716,"2,341.00",Keate House Residential Home,104849
WARRINGTON BOROUGH COUNCIL,http://statistics.data.gov.uk/id/local-authority/00EU,Families & Wellbeing,FWB,Care Purchase Budget,54490,CP-LongStayExternal,441150,06-Nov-13,1900131721,"3,851.00",Keate House Residential Home,104849
WARRINGTON BOROUGH COUNCIL,http://statistics.data.gov.uk/id/local-authority/00EU,Families & Wellbeing,FWB,Care Purchase Budget,54490,CP ExternalOther Exp,440800,13-Nov-13,1900132452,"35,000.00",Keate House Residential Home,104849
WARRINGTON BOROUGH COUNCIL,http://statistics.data.gov.uk/id/local-authority/00EU,Resources and Strategic Commissioning,RSC,Coroners Service,11100,Post Mortem Fees-Rep,440250,14-Nov-13,1900132521,"1,231.00",Dr W E Kenyon,104851
WARRINGTON BOROUGH COUNCIL,http://statistics.data.gov.uk/id/local-authority/00EU,Families & Wellbeing,FWB,Care Purchase - Learning Disability,54450,CP-Nursing Care-External,441200,22-Nov-13,1900132962,"10,016.00",The David Lewis Centre,104879
WARRINGTON BOROUGH COUNCIL,http://statistics.data.gov.uk/id/local-authority/00EU,Families & Wellbeing,FWB,Care Purchase Budget,54490,CP - Cont Care - External,441350,22-Nov-13,1900132975,"13,864.00",The David Lewis Centre,104879
WARRINGTON BOROUGH COUNCIL,http://statistics.data.gov.uk/id/local-authority/00EU,Families & Wellbeing,FWB,Care Purchase - PD,54440,CP-LongStayExternal,441150,26-Nov-13,1900133171,"6,895.00",The David Lewis Centre,104879
WARRINGTON BOROUGH COUNCIL,http://statistics.data.gov.uk/id/local-authority/00EU,Families & Wellbeing,FWB,Care Purchase - Learning Disability,54450,CP-LongStayExternal,441150,26-Nov-13,1900133170,"9,448.00",The David Lewis Centre,104879
WARRINGTON BOROUGH COUNCIL,http://statistics.data.gov.uk/id/local-authority/00EU,Corporate Financing,COR,Corporate Planning Items,61020,Consult.& Prof. Serv,440000,25-Nov-13,1900133131,"1,007.00",Local Government Association,104893
WARRINGTON BOROUGH COUNCIL,http://statistics.data.gov.uk/id/local-authority/00EU,Families & Wellbeing,FWB,Care Purchase - Learning Disability,54450,CP-Day Care-External,441100,11-Nov-13,1900131889,560.00,Macintyre Care,104907
WARRINGTON BOROUGH COUNCIL,http://statistics.data.gov.uk/id/local-authority/00EU,Families & Wellbeing,FWB,Care Purchase - Learning Disability,54450,CP-Domicil.External,440950,13-Nov-13,1900132418,"18,789.00",Macintyre Care,104907
WARRINGTON BOROUGH COUNCIL,http://statistics.data.gov.uk/id/local-authority/00EU,Families & Wellbeing,FWB,Care Purchase - Learning Disability,54450,CP-Domicil.External,440950,13-Nov-13,1900132445,"6,375.00",Macintyre Care,104907
WARRINGTON BOROUGH COUNCIL,http://statistics.data.gov.uk/id/local-authority/00EU,Families & Wellbeing,FWB,Care Purchase - Learning Disability,54450,CP-Domicil.External,440950,13-Nov-13,1900132427,"101,580.00",Macintyre Care,104907
WARRINGTON BOROUGH COUNCIL,http://statistics.data.gov.uk/id/local-authority/00EU,Families & Wellbeing,FWB,Care Purchase - Learning Disability,54450,Supporting People - External,441250,13-Nov-13,1900132427,"25,832.00",Macintyre Care,104907
WARRINGTON BOROUGH COUNCIL,http://statistics.data.gov.uk/id/local-authority/00EU,Families & Wellbeing,FWB,Care Purchase Budget,54490,Voids,515150,13-Nov-13,1900132427,"1,103.00",Macintyre Care,104907
WARRINGTON BOROUGH COUNCIL,http://statistics.data.gov.uk/id/local-authority/00EU,Families & Wellbeing,FWB,Care Purchase - Learning Disability,54450,CP-Day Care-External,441100,22-Nov-13,1900132891,"16,423.00",Macintyre Care,104907
WARRINGTON BOROUGH COUNCIL,http://statistics.data.gov.uk/id/local-authority/00EU,Families & Wellbeing,FWB,Care Purchase - Learning Disability,54450,CP-LongStayExternal,441150,22-Nov-13,1900132869,"5,076.00",Macintyre Care,104907
WARRINGTON BOROUGH COUNCIL,http://statistics.data.gov.uk/id/local-authority/00EU,"Economic Regeneration, Growth and Environment",EG0,Land Drainage,44120,Environmental Works,531050,05-Nov-13,1900131636,"13,500.00",The Bridgewater Canal Company Ltd,104919
WARRINGTON BOROUGH COUNCIL,http://statistics.data.gov.uk/id/local-authority/00EU,"Economic Regeneration, Growth and Environment",FOL,Care Purchase Adults Central,54135,CP-Domicil.External,440950,26-Nov-13,1900133156,673.00,Mayfield Home Care Agency,104928
WARRINGTON BOROUGH COUNCIL,http://statistics.data.gov.uk/id/local-authority/00EU,Families & Wellbeing,FWB,Care Purchase - OP & OT South,54480,CP-Domicil.External,440950,26-Nov-13,1900133156,"1,208.00",Mayfield Home Care Agency,104928
WARRINGTON BOROUGH COUNCIL,http://statistics.data.gov.uk/id/local-authority/00EU,Families & Wellbeing,FWB,Care Purchase - OP & OT Central,54420,CP-Domicil.External,440950,26-Nov-13,1900133156,928.00,Mayfield Home Care Agency,104928
WARRINGTON BOROUGH COUNCIL,http://statistics.data.gov.uk/id/local-authority/00EU,Families & Wellbeing,FWB,Care Purchase - OP & OT West,54470,CP-Domicil.External,440950,26-Nov-13,1900133156,812.00,Mayfield Home Care Agency,104928
WARRINGTON BOROUGH COUNCIL,http://statistics.data.gov.uk/id/local-authority/00EU,Families & Wellbeing,FWB,Care Purchase - Learning Disability,54450,CP-Domicil.External,440950,26-Nov-13,1900133156,"2,543.00",Mayfield Home Care Agency,104928
WARRINGTON BOROUGH COUNCIL,http://statistics.data.gov.uk/id/local-authority/00EU,Families & Wellbeing,FWB,Care Purchase Budget,54490,CP - Cont Care - External,441350,26-Nov-13,1900133156,"12,392.00",Mayfield Home Care Agency,104928
WARRINGTON BOROUGH COUNCIL,http://statistics.data.gov.uk/id/local-authority/00EU,"Economic Regeneration, Growth and Environment",EG0,Local Bus Contracts,44430,Equipment Purchase & Contract,400000,25-Nov-13,1900133069,"3,000.00",Merseytravel,104933
WARRINGTON BOROUGH COUNCIL,http://statistics.data.gov.uk/id/local-authority/00EU,"Economic Regeneration, Growth and Environment",EG0,Markets,43711,Resaleables,400600,08-Nov-13,1900131827,"3,520.00",National Express Ltd,104957
WARRINGTON BOROUGH COUNCIL,http://statistics.data.gov.uk/id/local-authority/00EU,Families & Wellbeing,FWB,Care Purchase -OP & OT East,54430,CP-Domicil.External,440950,27-Nov-13,1900133318,"14,420.00",Nightingales Homecare Services Agen,104972
WARRINGTON BOROUGH COUNCIL,http://statistics.data.gov.uk/id/local-authority/00EU,Families & Wellbeing,FWB,Care Purchase - OP & OT South,54480,CP-Domicil.External,440950,27-Nov-13,1900133318,"10,262.00",Nightingales Homecare Services Agen,104972
WARRINGTON BOROUGH COUNCIL,http://statistics.data.gov.uk/id/local-authority/00EU,Families & Wellbeing,FWB,Care Purchase - OP & OT Central,54420,CP-Domicil.External,440950,27-Nov-13,1900133318,"9,152.00",Nightingales Homecare Services Agen,104972
WARRINGTON BOROUGH COUNCIL,http://statistics.data.gov.uk/id/local-authority/00EU,Families & Wellbeing,FWB,Care Purchase - OP & OT West,54470,CP-Domicil.External,440950,27-Nov-13,1900133318,"8,652.00",Nightingales Homecare Services Agen,104972
WARRINGTON BOROUGH COUNCIL,http://statistics.data.gov.uk/id/local-authority/00EU,Families & Wellbeing,FWB,Care Purchase - PD,54440,CP-Domicil.External,440950,27-Nov-13,1900133318,"7,497.00",Nightingales Homecare Services Agen,104972
WARRINGTON BOROUGH COUNCIL,http://statistics.data.gov.uk/id/local-authority/00EU,Families & Wellbeing,FWB,Care Purchase - PD,54440,Supporting People - External,441250,27-Nov-13,1900133318,773.00,Nightingales Homecare Services Agen,104972
WARRINGTON BOROUGH COUNCIL,http://statistics.data.gov.uk/id/local-authority/00EU,Holding Accounts,HOL,Single Billing Holding Account,91130,Water & Sewerage Chg,240000,06-Nov-13,1900131709,"3,737.00",United Utilities Water Limited,104982
WARRINGTON BOROUGH COUNCIL,http://statistics.data.gov.uk/id/local-authority/00EU,Families & Wellbeing,FWB,Care Purchase Budget,54490,CP ExternalOther Exp,440800,13-Nov-13,1900131966,"20,000.00",Old Rectory Private Nursing Home,104990
WARRINGTON BOROUGH COUNCIL,http://statistics.data.gov.uk/id/local-authority/00EU,Families & Wellbeing,FWB,Care Purchase Budget,54490,CP Free Nursing Care External,443500,22-Nov-13,1900132885,"1,395.00",Old Rectory Private Nursing Home,104990
WARRINGTON BOROUGH COUNCIL,http://statistics.data.gov.uk/id/local-authority/00EU,Families & Wellbeing,FWB,Care Purchase Budget,54490,CP ExternalOther Exp,440800,22-Nov-13,1900132879,"5,177.00",Old Rectory Private Nursing Home,104990
WARRINGTON BOROUGH COUNCIL,http://statistics.data.gov.uk/id/local-authority/00EU,Families & Wellbeing,FWB,Care Purchase Budget,54490,CP-LongStayExternal,441150,22-Nov-13,1900132877,"1,120.00",Old Rectory Private Nursing Home,104990
WARRINGTON BOROUGH COUNCIL,http://statistics.data.gov.uk/id/local-authority/00EU,Families & Wellbeing,FWB,Care Purchase - Learning Disability,54450,CP-Domicil.External,440950,13-Nov-13,1900132426,650.00,P S S,105048
WARRINGTON BOROUGH COUNCIL,http://statistics.data.gov.uk/id/local-authority/00EU,"Economic Regeneration, Growth and Environment",FOL,Care Purchase Adults Central,54135,CP-Domicil.External,440950,01-Nov-13,1900131475,"1,486.00",Medico Nursing and Homecare,105063
WARRINGTON BOROUGH COUNCIL,http://statistics.data.gov.uk/id/local-authority/00EU,Families & Wellbeing,FWB,Care Purchase - OP & OT Central,54420,CP-Domicil.External,440950,01-Nov-13,1900131475,"6,789.00",Medico Nursing and Homecare,105063
WARRINGTON BOROUGH COUNCIL,http://statistics.data.gov.uk/id/local-authority/00EU,Families & Wellbeing,FWB,Care Purchase - OP & OT South,54480,CP-Domicil.External,440950,01-Nov-13,1900131475,"3,360.00",Medico Nursing and Homecare,105063
WARRINGTON BOROUGH COUNCIL,http://statistics.data.gov.uk/id/local-authority/00EU,Families & Wellbeing,FWB,Care Purchase -OP & OT East,54430,CP-Domicil.External,440950,01-Nov-13,1900131475,"2,404.00",Medico Nursing and Homecare,105063
WARRINGTON BOROUGH COUNCIL,http://statistics.data.gov.uk/id/local-authority/00EU,Families & Wellbeing,FWB,Care Purchase - OP & OT West,54470,CP-Domicil.External,440950,01-Nov-13,1900131475,"1,792.00",Medico Nursing and Homecare,105063
WARRINGTON BOROUGH COUNCIL,http://statistics.data.gov.uk/id/local-authority/00EU,Families & Wellbeing,FWB,Care Purchase - PD,54440,CP-Domicil.External,440950,01-Nov-13,1900131475,"4,185.00",Medico Nursing and Homecare,105063
WARRINGTON BOROUGH COUNCIL,http://statistics.data.gov.uk/id/local-authority/00EU,Families & Wellbeing,FWB,Care Purchase Budget,54490,CP-LongStayExternal,441150,06-Nov-13,1900131725,"2,080.00",Rosevilla Residential Home,105084
WARRINGTON BOROUGH COUNCIL,http://statistics.data.gov.uk/id/local-authority/00EU,Families & Wellbeing,FWB,Care Purchase Budget,54490,CP-LongStayExternal,441150,06-Nov-13,1900131723,"2,080.00",Rosevilla Residential Home,105084
WARRINGTON BOROUGH COUNCIL,http://statistics.data.gov.uk/id/local-authority/00EU,Families & Wellbeing,FWB,Care Purchase Budget,54490,CP ExternalOther Exp,440800,06-Nov-13,1900131729,"3,412.00",Rosevilla Residential Home,105084
WARRINGTON BOROUGH COUNCIL,http://statistics.data.gov.uk/id/local-authority/00EU,Families & Wellbeing,FWB,Care Purchase Budget,54490,CP ExternalOther Exp,440800,13-Nov-13,1900132453,"18,000.00",Rosevilla Residential Home,105084
WARRINGTON BOROUGH COUNCIL,http://statistics.data.gov.uk/id/local-authority/00EU,Families & Wellbeing,FWB,Care Purchase - Learning Disability,54450,CP-LongStayExternal,441150,06-Nov-13,1900131731,"18,603.00",St Helens Mbc,105097
WARRINGTON BOROUGH COUNCIL,http://statistics.data.gov.uk/id/local-authority/00EU,Families & Wellbeing,FWB,Care Purchase - PD,54440,CP-LongStayExternal,441150,22-Nov-13,1900132994,"4,584.00",Scope,105109
WARRINGTON BOROUGH COUNCIL,http://statistics.data.gov.uk/id/local-authority/00EU,Resources and Strategic Commissioning,RSC,Coroners Service,11100,Post Mortem Fees-Rep,440250,05-Nov-13,1900131653,"1,720.00",Dr D S Shareef,105121
WARRINGTON BOROUGH COUNCIL,http://statistics.data.gov.uk/id/local-authority/00EU,"Economic Regeneration, Growth and Environment",FOL,Care Purchase Adults Central,54135,CP-Domicil.External,440950,27-Nov-13,1900133319,"2,777.00",Premier Care Cheshire Ltd,105142
WARRINGTON BOROUGH COUNCIL,http://statistics.data.gov.uk/id/local-authority/00EU,Families & Wellbeing,FWB,Care Purchase - OP & OT West,54470,CP-Domicil.External,440950,27-Nov-13,1900133319,"19,508.00",Premier Care Cheshire Ltd,105142
WARRINGTON BOROUGH COUNCIL,http://statistics.data.gov.uk/id/local-authority/00EU,Families & Wellbeing,FWB,Care Purchase -OP & OT East,54430,CP-Domicil.External,440950,27-Nov-13,1900133319,"14,408.00",Premier Care Cheshire Ltd,105142
WARRINGTON BOROUGH COUNCIL,http://statistics.data.gov.uk/id/local-authority/00EU,Families & Wellbeing,FWB,Care Purchase - OP & OT Central,54420,CP-Domicil.External,440950,27-Nov-13,1900133319,"13,267.00",Premier Care Cheshire Ltd,105142
WARRINGTON BOROUGH COUNCIL,http://statistics.data.gov.uk/id/local-authority/00EU,Families & Wellbeing,FWB,Care Purchase - OP & OT South,54480,CP-Domicil.External,440950,27-Nov-13,1900133319,"9,085.00",Premier Care Cheshire Ltd,105142
WARRINGTON BOROUGH COUNCIL,http://statistics.data.gov.uk/id/local-authority/00EU,Families & Wellbeing,FWB,Care Purchase - Learning Disability,54450,CP-Domicil.External,440950,27-Nov-13,1900133319,"2,843.00",Premier Care Cheshire Ltd,105142
WARRINGTON BOROUGH COUNCIL,http://statistics.data.gov.uk/id/local-authority/00EU,Families & Wellbeing,FWB,Care Purchase - PD,54440,CP-Domicil.External,440950,27-Nov-13,1900133319,"9,298.00",Premier Care Cheshire Ltd,105142
WARRINGTON BOROUGH COUNCIL,http://statistics.data.gov.uk/id/local-authority/00EU,Families & Wellbeing,FWB,Care Purchase Budget,54490,CP - Cont Care - External,441350,27-Nov-13,1900133319,"1,205.00",Premier Care Cheshire Ltd,105142
WARRINGTON BOROUGH COUNCIL,http://statistics.data.gov.uk/id/local-authority/00EU,Families & Wellbeing,FWB,Care Purchase Budget,54490,CP ExternalOther Exp,440800,13-Nov-13,1900131962,"6,199.00",Summerville Nursing Home -Private C,105162
WARRINGTON BOROUGH COUNCIL,http://statistics.data.gov.uk/id/local-authority/00EU,Families & Wellbeing,FWB,Care Purchase Budget,54490,CP ExternalOther Exp,440800,13-Nov-13,1900131971,"53,000.00",Summerville Nursing Home -Private C,105162
WARRINGTON BOROUGH COUNCIL,http://statistics.data.gov.uk/id/local-authority/00EU,Families & Wellbeing,FWB,Care Purchase Budget,54490,CP Free Nursing Care External,443500,18-Nov-13,1900132674,"2,259.00",Summerville Nursing Home -Private C,105162
WARRINGTON BOROUGH COUNCIL,http://statistics.data.gov.uk/id/local-authority/00EU,Families & Wellbeing,FWB,Care Purchase Budget,54490,CP ExternalOther Exp,440800,13-Nov-13,1900131965,"18,000.00",Thelwall Grange Nursing Home,105174
WARRINGTON BOROUGH COUNCIL,http://statistics.data.gov.uk/id/local-authority/00EU,Families & Wellbeing,FWB,Care Purchase Budget,54490,CP ExternalOther Exp,440800,22-Nov-13,1900132870,"8,184.00",Thelwall Grange Nursing Home,105174
WARRINGTON BOROUGH COUNCIL,http://statistics.data.gov.uk/id/local-authority/00EU,Families & Wellbeing,FWB,Care Purchase Budget,54490,CP-LongStayExternal,441150,22-Nov-13,1900132871,"2,229.00",Thelwall Grange Nursing Home,105174
WARRINGTON BOROUGH COUNCIL,http://statistics.data.gov.uk/id/local-authority/00EU,Families & Wellbeing,FWB,Care Purchase Budget,54490,CP ExternalOther Exp,440800,06-Nov-13,1900131705,"4,447.00",Minster Care Management Ltd,105179
WARRINGTON BOROUGH COUNCIL,http://statistics.data.gov.uk/id/local-authority/00EU,Families & Wellbeing,FWB,Care Purchase Budget,54490,CP-LongStayExternal,441150,06-Nov-13,1900131704,"5,160.00",Minster Care Management Ltd,105179
WARRINGTON BOROUGH COUNCIL,http://statistics.data.gov.uk/id/local-authority/00EU,Families & Wellbeing,FWB,Care Purchase Budget,54490,CP ExternalOther Exp,440800,13-Nov-13,1900132416,"52,000.00",Minster Care Management Ltd,105179
WARRINGTON BOROUGH COUNCIL,http://statistics.data.gov.uk/id/local-authority/00EU,"Economic Regeneration, Growth and Environment",EG0,Traffic and Safety,44350,Training,190150,22-Nov-13,1900132876,"2,350.00",Tms Consultancy,105180
WARRINGTON BOROUGH COUNCIL,http://statistics.data.gov.uk/id/local-authority/00EU,Families & Wellbeing,CYP,Childrens & Young People,81000,Materials,400500,04-Nov-13,1900131583,745.00,Tts Group Ltd,105196
WARRINGTON BOROUGH COUNCIL,http://statistics.data.gov.uk/id/local-authority/00EU,Families & Wellbeing,FWB,CYPS - Rents & Charges,32422,Consult.& Prof. Serv,440000,04-Nov-13,1900131581,"3,064.00",Uniqwin UK,105210
WARRINGTON BOROUGH COUNCIL,http://statistics.data.gov.uk/id/local-authority/00EU,Families & Wellbeing,FWB,CYPS - Rents & Charges,32422,Consult.& Prof. Serv,440000,15-Nov-13,1900132601,"5,048.00",Uniqwin UK,105210
WARRINGTON BOROUGH COUNCIL,http://statistics.data.gov.uk/id/local-authority/00EU,"Economic Regeneration, Growth and Environment",EG0,Or Rm C'way & F'way,44260,Bailiff Fees,441400,29-Nov-13,1900133500,"1,800.00",Uniqwin UK,105210
WARRINGTON BOROUGH COUNCIL,http://statistics.data.gov.uk/id/local-authority/00EU,Families & Wellbeing,FWB,EIG Funding - Quality Support Grants,31604,ICT Comms - Line Rental,450200,11-Nov-13,1900131851,"2,190.00",Vodafone Corporate Ltd,105222
WARRINGTON BOROUGH COUNCIL,http://statistics.data.gov.uk/id/local-authority/00EU,Families & Wellbeing,FWB,Care Purchase Budget,54490,CP ExternalOther Exp,440800,11-Nov-13,1900131906,"7,088.00",Warrington Community Care,105229
WARRINGTON BOROUGH COUNCIL,http://statistics.data.gov.uk/id/local-authority/00EU,Families & Wellbeing,FWB,Care Purchase Budget,54490,CP ExternalOther Exp,440800,13-Nov-13,1900131970,"75,000.00",Warrington Community Care,105229
WARRINGTON BOROUGH COUNCIL,http://statistics.data.gov.uk/id/local-authority/00EU,Families & Wellbeing,FWB,Care Purchase - Learning Disability,54450,CP-LongStayExternal,441150,19-Nov-13,1900132689,"32,781.00",WCL - Warrington Community Living,105230
WARRINGTON BOROUGH COUNCIL,http://statistics.data.gov.uk/id/local-authority/00EU,Families & Wellbeing,FWB,Care Purchase Budget,54490,Voids,515150,19-Nov-13,1900132689,"3,549.00",WCL - Warrington Community Living,105230
WARRINGTON BOROUGH COUNCIL,http://statistics.data.gov.uk/id/local-authority/00EU,Families & Wellbeing,FWB,Care Purchase - Learning Disability,54450,CP-Domicil.External,440950,19-Nov-13,1900132688,"6,997.00",WCL - Warrington Community Living,105230
WARRINGTON BOROUGH COUNCIL,http://statistics.data.gov.uk/id/local-authority/00EU,Families & Wellbeing,FWB,Care Purchase - Learning Disability,54450,CP-LongStayExternal,441150,19-Nov-13,1900132695,"5,400.00",WCL - Warrington Community Living,105230
WARRINGTON BOROUGH COUNCIL,http://statistics.data.gov.uk/id/local-authority/00EU,Families & Wellbeing,FWB,Care Purchase - Learning Disability,54450,CP-Nursing Care-External,441200,19-Nov-13,1900132695,"47,743.00",WCL - Warrington Community Living,105230
WARRINGTON BOROUGH COUNCIL,http://statistics.data.gov.uk/id/local-authority/00EU,Families & Wellbeing,FWB,Care Purchase Budget,54490,CP Free Nursing Care External,443500,19-Nov-13,1900132695,"3,131.00",WCL - Warrington Community Living,105230
WARRINGTON BOROUGH COUNCIL,http://statistics.data.gov.uk/id/local-authority/00EU,Families & Wellbeing,FWB,Care Purchase Budget,54490,Voids,515150,19-Nov-13,1900132695,"3,112.00",WCL - Warrington Community Living,105230
WARRINGTON BOROUGH COUNCIL,http://statistics.data.gov.uk/id/local-authority/00EU,Families & Wellbeing,FWB,Care Purchase Budget,54490,CP Free Nursing Care External,443500,13-Nov-13,1900132417,"13,669.00",Barchester Homes Westvale House,105246
WARRINGTON BOROUGH COUNCIL,http://statistics.data.gov.uk/id/local-authority/00EU,Families & Wellbeing,FWB,Care Purchase Budget,54490,CP-LongStayExternal,441150,13-Nov-13,1900132415,"3,789.00",Barchester Homes Westvale House,105246
WARRINGTON BOROUGH COUNCIL,http://statistics.data.gov.uk/id/local-authority/00EU,Families & Wellbeing,FWB,Care Purchase - OP & OT West,54470,CP-Nursing Care-External,441200,13-Nov-13,1900132420,"2,031.00",Barchester Homes Westvale House,105246
WARRINGTON BOROUGH COUNCIL,http://statistics.data.gov.uk/id/local-authority/00EU,Families & Wellbeing,FWB,Care Purchase - OP & OT West,54470,CP-Nursing Care-External,441200,13-Nov-13,1900131964,"35,585.00",Barchester Homes Westvale House,105246
WARRINGTON BOROUGH COUNCIL,http://statistics.data.gov.uk/id/local-authority/00EU,Families & Wellbeing,FWB,Care Purchase - OP & OT South,54480,CP-Nursing Care-External,441200,13-Nov-13,1900131964,"1,712.00",Barchester Homes Westvale House,105246
WARRINGTON BOROUGH COUNCIL,http://statistics.data.gov.uk/id/local-authority/00EU,Families & Wellbeing,FWB,Care Purchase -OP & OT East,54430,CP-Nursing Care-External,441200,13-Nov-13,1900131964,"1,712.00",Barchester Homes Westvale House,105246
WARRINGTON BOROUGH COUNCIL,http://statistics.data.gov.uk/id/local-authority/00EU,Families & Wellbeing,FWB,Care Purchase - OP & OT Central,54420,CP-Nursing Care-External,441200,13-Nov-13,1900131964,"1,529.00",Barchester Homes Westvale House,105246
WARRINGTON BOROUGH COUNCIL,http://statistics.data.gov.uk/id/local-authority/00EU,Families & Wellbeing,FWB,Care Purchase Budget,54490,CP - Cont Care - External,441350,13-Nov-13,1900131964,"28,165.00",Barchester Homes Westvale House,105246
WARRINGTON BOROUGH COUNCIL,http://statistics.data.gov.uk/id/local-authority/00EU,Families & Wellbeing,FWB,Care Purchase - Learning Disability,54450,CP-Domicil.External,440950,11-Nov-13,1900131896,"2,622.00",Wirral Autistic Society,105251
WARRINGTON BOROUGH COUNCIL,http://statistics.data.gov.uk/id/local-authority/00EU,Families & Wellbeing,FWB,Care Purchase - Learning Disability,54450,CP-Day Care-External,441100,11-Nov-13,1900131896,"1,180.00",Wirral Autistic Society,105251
WARRINGTON BOROUGH COUNCIL,http://statistics.data.gov.uk/id/local-authority/00EU,Resources and Strategic Commissioning,RSC,Printing & Graphics,23040,Equipment Purchase & Contract,400000,25-Nov-13,1700007338,"1,697.00",Xerox Finance,105255
WARRINGTON BOROUGH COUNCIL,http://statistics.data.gov.uk/id/local-authority/00EU,Resources and Strategic Commissioning,RSC,Printing & Graphics,23040,Equipment Purchase & Contract,400000,25-Nov-13,1700007337,"4,468.00",Xerox Finance,105255
WARRINGTON BOROUGH COUNCIL,http://statistics.data.gov.uk/id/local-authority/00EU,Resources and Strategic Commissioning,RSC,Printing & Graphics,23040,Equipment Purchase & Contract,400000,25-Nov-13,1700007339,"2,811.00",Xerox Finance,105255
WARRINGTON BOROUGH COUNCIL,http://statistics.data.gov.uk/id/local-authority/00EU,Holding Accounts,HOL,Insurance Fund,91100,Insurance Claims,443400,27-Nov-13,1900133379,"7,281.00",Zurich Insurance Company,105263
WARRINGTON BOROUGH COUNCIL,http://statistics.data.gov.uk/id/local-authority/00EU,Families & Wellbeing,FWB,Care Purchase - OP & OT Central,54420,CP-Domicil.External,440950,11-Nov-13,1900131913,"3,567.00",Castlerock Recruitment Group,105279
WARRINGTON BOROUGH COUNCIL,http://statistics.data.gov.uk/id/local-authority/00EU,Families & Wellbeing,FWB,Care Purchase - OP & OT South,54480,CP-Domicil.External,440950,11-Nov-13,1900131913,832.00,Castlerock Recruitment Group,105279
WARRINGTON BOROUGH COUNCIL,http://statistics.data.gov.uk/id/local-authority/00EU,Families & Wellbeing,FWB,Care Purchase -OP & OT East,54430,CP-Domicil.External,440950,11-Nov-13,1900131913,805.00,Castlerock Recruitment Group,105279
WARRINGTON BOROUGH COUNCIL,http://statistics.data.gov.uk/id/local-authority/00EU,Families & Wellbeing,FWB,Care Purchase - PD,54440,CP-Domicil.External,440950,11-Nov-13,1900131913,"1,518.00",Castlerock Recruitment Group,105279
WARRINGTON BOROUGH COUNCIL,http://statistics.data.gov.uk/id/local-authority/00EU,Families & Wellbeing,FWB,Care Purchase - OP & OT Central,54420,CP-Domicil.External,440950,11-Nov-13,1900131911,"4,027.00",Castlerock Recruitment Group,105279
WARRINGTON BOROUGH COUNCIL,http://statistics.data.gov.uk/id/local-authority/00EU,Families & Wellbeing,FWB,Care Purchase - OP & OT Central,54420,CP-Domicil.External,440950,11-Nov-13,1900131912,"4,027.00",Castlerock Recruitment Group,105279
WARRINGTON BOROUGH COUNCIL,http://statistics.data.gov.uk/id/local-authority/00EU,Families & Wellbeing,FWB,Care Purchase - OP & OT South,54480,CP-Domicil.External,440950,11-Nov-13,1900131911,"1,340.00",Castlerock Recruitment Group,105279
WARRINGTON BOROUGH COUNCIL,http://statistics.data.gov.uk/id/local-authority/00EU,Families & Wellbeing,FWB,Care Purchase - OP & OT South,54480,CP-Domicil.External,440950,11-Nov-13,1900131912,"1,340.00",Castlerock Recruitment Group,105279
WARRINGTON BOROUGH COUNCIL,http://statistics.data.gov.uk/id/local-authority/00EU,Families & Wellbeing,FWB,Care Purchase -OP & OT East,54430,CP-Domicil.External,440950,11-Nov-13,1900131911,863.00,Castlerock Recruitment Group,105279
WARRINGTON BOROUGH COUNCIL,http://statistics.data.gov.uk/id/local-authority/00EU,Families & Wellbeing,FWB,Care Purchase -OP & OT East,54430,CP-Domicil.External,440950,11-Nov-13,1900131912,863.00,Castlerock Recruitment Group,105279
WARRINGTON BOROUGH COUNCIL,http://statistics.data.gov.uk/id/local-authority/00EU,Families & Wellbeing,FWB,Care Purchase - PD,54440,CP-Domicil.External,440950,11-Nov-13,1900131911,"1,537.00",Castlerock Recruitment Group,105279
WARRINGTON BOROUGH COUNCIL,http://statistics.data.gov.uk/id/local-authority/00EU,Families & Wellbeing,FWB,Care Purchase - PD,54440,CP-Domicil.External,440950,11-Nov-13,1900131912,"1,537.00",Castlerock Recruitment Group,105279
WARRINGTON BOROUGH COUNCIL,http://statistics.data.gov.uk/id/local-authority/00EU,Families & Wellbeing,FWB,Care Purchase - OP & OT Central,54420,CP-Domicil.External,440950,11-Nov-13,1900131914,"3,806.00",Castlerock Recruitment Group,105279
WARRINGTON BOROUGH COUNCIL,http://statistics.data.gov.uk/id/local-authority/00EU,Families & Wellbeing,FWB,Care Purchase - OP & OT South,54480,CP-Domicil.External,440950,11-Nov-13,1900131914,"1,663.00",Castlerock Recruitment Group,105279
WARRINGTON BOROUGH COUNCIL,http://statistics.data.gov.uk/id/local-authority/00EU,Families & Wellbeing,FWB,Care Purchase -OP & OT East,54430,CP-Domicil.External,440950,11-Nov-13,1900131914,862.00,Castlerock Recruitment Group,105279
WARRINGTON BOROUGH COUNCIL,http://statistics.data.gov.uk/id/local-authority/00EU,Families & Wellbeing,FWB,Care Purchase - PD,54440,CP-Domicil.External,440950,11-Nov-13,1900131914,"1,594.00",Castlerock Recruitment Group,105279
WARRINGTON BOROUGH COUNCIL,http://statistics.data.gov.uk/id/local-authority/00EU,Families & Wellbeing,FWB,Care Purchase - OP & OT Central,54420,CP-Domicil.External,440950,11-Nov-13,1900131910,"3,865.00",Castlerock Recruitment Group,105279
WARRINGTON BOROUGH COUNCIL,http://statistics.data.gov.uk/id/local-authority/00EU,Families & Wellbeing,FWB,Care Purchase - OP & OT South,54480,CP-Domicil.External,440950,11-Nov-13,1900131910,"1,537.00",Castlerock Recruitment Group,105279
WARRINGTON BOROUGH COUNCIL,http://statistics.data.gov.uk/id/local-authority/00EU,Families & Wellbeing,FWB,Care Purchase -OP & OT East,54430,CP-Domicil.External,440950,11-Nov-13,1900131910,922.00,Castlerock Recruitment Group,105279
WARRINGTON BOROUGH COUNCIL,http://statistics.data.gov.uk/id/local-authority/00EU,Families & Wellbeing,FWB,Care Purchase - PD,54440,CP-Domicil.External,440950,11-Nov-13,1900131910,"1,546.00",Castlerock Recruitment Group,105279
WARRINGTON BOROUGH COUNCIL,http://statistics.data.gov.uk/id/local-authority/00EU,Families & Wellbeing,FWB,Care Purchase - OP & OT Central,54420,CP-Domicil.External,440950,27-Nov-13,1900133357,"3,678.00",Castlerock Recruitment Group,105279
WARRINGTON BOROUGH COUNCIL,http://statistics.data.gov.uk/id/local-authority/00EU,Families & Wellbeing,FWB,Care Purchase - OP & OT Central,54420,CP-Domicil.External,440950,27-Nov-13,1900133366,"3,504.00",Castlerock Recruitment Group,105279
WARRINGTON BOROUGH COUNCIL,http://statistics.data.gov.uk/id/local-authority/00EU,Families & Wellbeing,FWB,Care Purchase - OP & OT South,54480,CP-Domicil.External,440950,27-Nov-13,1900133366,"1,567.00",Castlerock Recruitment Group,105279
WARRINGTON BOROUGH COUNCIL,http://statistics.data.gov.uk/id/local-authority/00EU,Families & Wellbeing,FWB,Care Purchase - OP & OT South,54480,CP-Domicil.External,440950,27-Nov-13,1900133357,"1,455.00",Castlerock Recruitment Group,105279
WARRINGTON BOROUGH COUNCIL,http://statistics.data.gov.uk/id/local-authority/00EU,Families & Wellbeing,FWB,Care Purchase -OP & OT East,54430,CP-Domicil.External,440950,27-Nov-13,1900133366,870.00,Castlerock Recruitment Group,105279
WARRINGTON BOROUGH COUNCIL,http://statistics.data.gov.uk/id/local-authority/00EU,Families & Wellbeing,FWB,Care Purchase -OP & OT East,54430,CP-Domicil.External,440950,27-Nov-13,1900133357,846.00,Castlerock Recruitment Group,105279
WARRINGTON BOROUGH COUNCIL,http://statistics.data.gov.uk/id/local-authority/00EU,Families & Wellbeing,FWB,Care Purchase - PD,54440,CP-Domicil.External,440950,27-Nov-13,1900133357,"1,594.00",Castlerock Recruitment Group,105279
WARRINGTON BOROUGH COUNCIL,http://statistics.data.gov.uk/id/local-authority/00EU,Families & Wellbeing,FWB,Care Purchase - PD,54440,CP-Domicil.External,440950,27-Nov-13,1900133366,"1,452.00",Castlerock Recruitment Group,105279
WARRINGTON BOROUGH COUNCIL,http://statistics.data.gov.uk/id/local-authority/00EU,Families & Wellbeing,FWB,Care Purchase Budget,54490,CP - Cont Care - External,441350,27-Nov-13,1900133366,642.00,Castlerock Recruitment Group,105279
WARRINGTON BOROUGH COUNCIL,http://statistics.data.gov.uk/id/local-authority/00EU,Families & Wellbeing,FWB,Care Purchase - OP & OT Central,54420,CP-Domicil.External,440950,27-Nov-13,1900133359,"3,528.00",Castlerock Recruitment Group,105279
WARRINGTON BOROUGH COUNCIL,http://statistics.data.gov.uk/id/local-authority/00EU,Families & Wellbeing,FWB,Care Purchase - OP & OT South,54480,CP-Domicil.External,440950,27-Nov-13,1900133359,"1,485.00",Castlerock Recruitment Group,105279
WARRINGTON BOROUGH COUNCIL,http://statistics.data.gov.uk/id/local-authority/00EU,Families & Wellbeing,FWB,Care Purchase -OP & OT East,54430,CP-Domicil.External,440950,27-Nov-13,1900133359,955.00,Castlerock Recruitment Group,105279
WARRINGTON BOROUGH COUNCIL,http://statistics.data.gov.uk/id/local-authority/00EU,Families & Wellbeing,FWB,Care Purchase - PD,54440,CP-Domicil.External,440950,27-Nov-13,1900133359,"1,552.00",Castlerock Recruitment Group,105279
WARRINGTON BOROUGH COUNCIL,http://statistics.data.gov.uk/id/local-authority/00EU,Families & Wellbeing,FWB,Care Purchase - OP & OT Central,54420,CP-Domicil.External,440950,27-Nov-13,1900133382,"3,748.00",Castlerock Recruitment Group,105279
WARRINGTON BOROUGH COUNCIL,http://statistics.data.gov.uk/id/local-authority/00EU,Families & Wellbeing,FWB,Care Purchase - OP & OT South,54480,CP-Domicil.External,440950,27-Nov-13,1900133382,"1,401.00",Castlerock Recruitment Group,105279
WARRINGTON BOROUGH COUNCIL,http://statistics.data.gov.uk/id/local-authority/00EU,Families & Wellbeing,FWB,Care Purchase -OP & OT East,54430,CP-Domicil.External,440950,27-Nov-13,1900133382,900.00,Castlerock Recruitment Group,105279
WARRINGTON BOROUGH COUNCIL,http://statistics.data.gov.uk/id/local-authority/00EU,Families & Wellbeing,FWB,Care Purchase - PD,54440,CP-Domicil.External,440950,27-Nov-13,1900133382,"1,455.00",Castlerock Recruitment Group,105279
WARRINGTON BOROUGH COUNCIL,http://statistics.data.gov.uk/id/local-authority/00EU,Resources and Strategic Commissioning,RSC,Coroners Service,11100,Analysts Fees,440300,05-Nov-13,1900131629,"3,222.00",Roar Forensics Ltd,105295
WARRINGTON BOROUGH COUNCIL,http://statistics.data.gov.uk/id/local-authority/00EU,Families & Wellbeing,CYP,Childrens Other,81004,Furniture & Fittings,400150,12-Nov-13,1900131954,"8,701.00",Tudor (Nw) Ltd,105307
WARRINGTON BOROUGH COUNCIL,http://statistics.data.gov.uk/id/local-authority/00EU,"Economic Regeneration, Growth and Environment",ENO,Housing Projects,82008,Disabled Persons Grant 1996,554000,04-Nov-13,1900131563,"3,806.00",ThyssenKrupp Encasa Ltd,105382
WARRINGTON BOROUGH COUNCIL,http://statistics.data.gov.uk/id/local-authority/00EU,"Economic Regeneration, Growth and Environment",ENO,Housing Projects,82008,Disabled Persons Grant 1996,554000,04-Nov-13,1900131566,"1,766.00",ThyssenKrupp Encasa Ltd,105382
WARRINGTON BOROUGH COUNCIL,http://statistics.data.gov.uk/id/local-authority/00EU,"Economic Regeneration, Growth and Environment",ENO,Housing Projects,82008,Disabled Persons Grant 1996,554000,12-Nov-13,1900131941,"1,800.00",ThyssenKrupp Encasa Ltd,105382
WARRINGTON BOROUGH COUNCIL,http://statistics.data.gov.uk/id/local-authority/00EU,"Economic Regeneration, Growth and Environment",ENO,Housing Projects,82008,Disabled Persons Grant 1996,554000,19-Nov-13,1900132686,"1,663.00",ThyssenKrupp Encasa Ltd,105382
WARRINGTON BOROUGH COUNCIL,http://statistics.data.gov.uk/id/local-authority/00EU,"Economic Regeneration, Growth and Environment",ENO,Housing Projects,82008,Disabled Persons Grant 1996,554000,20-Nov-13,1900132708,"1,776.00",ThyssenKrupp Encasa Ltd,105382
WARRINGTON BOROUGH COUNCIL,http://statistics.data.gov.uk/id/local-authority/00EU,"Economic Regeneration, Growth and Environment",ENO,Housing Projects,82008,Disabled Persons Grant 1996,554000,26-Nov-13,1900133182,"3,851.00",ThyssenKrupp Encasa Ltd,105382
WARRINGTON BOROUGH COUNCIL,http://statistics.data.gov.uk/id/local-authority/00EU,"Economic Regeneration, Growth and Environment",ENO,Housing Projects,82008,Disabled Persons Grant 1996,554000,28-Nov-13,1900133440,"1,901.00",ThyssenKrupp Encasa Ltd,105382
WARRINGTON BOROUGH COUNCIL,http://statistics.data.gov.uk/id/local-authority/00EU,"Economic Regeneration, Growth and Environment",ENO,Housing Projects,82008,Disabled Persons Grant 1996,554000,28-Nov-13,1900133438,"1,519.00",ThyssenKrupp Encasa Ltd,105382
WARRINGTON BOROUGH COUNCIL,http://statistics.data.gov.uk/id/local-authority/00EU,"Economic Regeneration, Growth and Environment",EG0,Other Commercial Prop.,43560,Non BMP General Repairs,200050,27-Nov-13,1900133415,"1,525.00",B & K Landscapes,105448
WARRINGTON BOROUGH COUNCIL,http://statistics.data.gov.uk/id/local-authority/00EU,"Economic Regeneration, Growth and Environment",ENO,Housing Projects,82008,Disabled Persons Grant 1996,554000,20-Nov-13,1900132724,"5,330.00",Domestic Services And Installations,105462
WARRINGTON BOROUGH COUNCIL,http://statistics.data.gov.uk/id/local-authority/00EU,"Economic Regeneration, Growth and Environment",ENO,Housing Projects,82008,Disabled Persons Grant 1996,554000,12-Nov-13,1900131942,"4,584.00",Showering Solutions,105490
WARRINGTON BOROUGH COUNCIL,http://statistics.data.gov.uk/id/local-authority/00EU,Resources and Strategic Commissioning,RSC,Electoral Registration,11500,External Printing,430100,15-Nov-13,1900132616,"10,424.00",Print Image Network Limited,105535
WARRINGTON BOROUGH COUNCIL,http://statistics.data.gov.uk/id/local-authority/00EU,"Economic Regeneration, Growth and Environment",ENO,Housing Projects,82008,Safe & Secure Energy House Assistance,554100,01-Nov-13,1900131536,936.00,Acorn Building Projects Ltd,105557
WARRINGTON BOROUGH COUNCIL,http://statistics.data.gov.uk/id/local-authority/00EU,"Economic Regeneration, Growth and Environment",ENO,Housing Projects,82008,Safe & Secure Energy House Assistance,554100,04-Nov-13,1900131570,"5,448.00",Acorn Building Projects Ltd,105557
WARRINGTON BOROUGH COUNCIL,http://statistics.data.gov.uk/id/local-authority/00EU,"Economic Regeneration, Growth and Environment",ENO,Housing Projects,82008,Disabled Persons Grant 1996,554000,04-Nov-13,1900131560,"4,285.00",Acorn Building Projects Ltd,105557
WARRINGTON BOROUGH COUNCIL,http://statistics.data.gov.uk/id/local-authority/00EU,"Economic Regeneration, Growth and Environment",ENO,Housing Projects,82008,Safe & Secure Energy House Assistance,554100,22-Nov-13,1900132966,691.00,Acorn Building Projects Ltd,105557
WARRINGTON BOROUGH COUNCIL,http://statistics.data.gov.uk/id/local-authority/00EU,Families & Wellbeing,FWB,Care Purchase - Learning Disability,54450,Direct Payments,552000,12-Nov-13,1900132125,"1,240.00",Redacted Personal Data,105576
WARRINGTON BOROUGH COUNCIL,http://statistics.data.gov.uk/id/local-authority/00EU,Families & Wellbeing,FWB,Care Purchase - Learning Disability,54450,Direct Payments,552000,12-Nov-13,1900132127,538.00,Redacted Personal Data,105598
WARRINGTON BOROUGH COUNCIL,http://statistics.data.gov.uk/id/local-authority/00EU,Resources and Strategic Commissioning,RSC,Printing & Graphics,23040,Equipment Purchase & Contract,400000,25-Nov-13,1900133072,"9,966.00",Xerox Global Services,105611
WARRINGTON BOROUGH COUNCIL,http://statistics.data.gov.uk/id/local-authority/00EU,Families & Wellbeing,FWB,Care Purchase - Learning Disability,54450,Direct Payments,552000,12-Nov-13,1900132129,"1,010.00",Redacted Personal Data,105621
WARRINGTON BOROUGH COUNCIL,http://statistics.data.gov.uk/id/local-authority/00EU,Families & Wellbeing,FWB,Care Purchase - Learning Disability,54450,Direct Payments,552000,12-Nov-13,1900132133,638.00,Redacted Personal Data,105625
WARRINGTON BOROUGH COUNCIL,http://statistics.data.gov.uk/id/local-authority/00EU,Families & Wellbeing,FWB,Care Purchase - Learning Disability,54450,Direct Payments,552000,12-Nov-13,1900132138,669.00,Redacted Personal Data,105641
WARRINGTON BOROUGH COUNCIL,http://statistics.data.gov.uk/id/local-authority/00EU,Holding Accounts,HOL,Single Billing Holding Account,91130,Specific Work,200200,06-Nov-13,1900131689,"32,511.00",Manchester Working Limited,105646
WARRINGTON BOROUGH COUNCIL,http://statistics.data.gov.uk/id/local-authority/00EU,Holding Accounts,HOL,Single Billing Holding Account,91130,Servicing Contracts,200150,06-Nov-13,1900131690,"2,586.00",Manchester Working Limited,105646
WARRINGTON BOROUGH COUNCIL,http://statistics.data.gov.uk/id/local-authority/00EU,Holding Accounts,HOL,Single Billing Holding Account,91130,Non BMP General Repairs,200050,21-Nov-13,1900132821,"1,427.00",Manchester Working Limited,105646
WARRINGTON BOROUGH COUNCIL,http://statistics.data.gov.uk/id/local-authority/00EU,Holding Accounts,HOL,Single Billing Holding Account,91130,Specific Work,200200,21-Nov-13,1900132823,"5,796.00",Manchester Working Limited,105646
WARRINGTON BOROUGH COUNCIL,http://statistics.data.gov.uk/id/local-authority/00EU,Holding Accounts,HOL,Single Billing Holding Account,91130,Non BMP General Repairs,200050,21-Nov-13,1900132825,"23,787.00",Manchester Working Limited,105646
WARRINGTON BOROUGH COUNCIL,http://statistics.data.gov.uk/id/local-authority/00EU,Holding Accounts,HOL,Single Billing Holding Account,91130,Non BMP General Repairs,200050,21-Nov-13,1900132817,"2,006.00",Manchester Working Limited,105646
WARRINGTON BOROUGH COUNCIL,http://statistics.data.gov.uk/id/local-authority/00EU,Holding Accounts,HOL,Single Billing Holding Account,91130,Specific Work,200200,21-Nov-13,1900132820,"5,796.00",Manchester Working Limited,105646
WARRINGTON BOROUGH COUNCIL,http://statistics.data.gov.uk/id/local-authority/00EU,Holding Accounts,HOL,Single Billing Holding Account,91130,Specific Work,200200,21-Nov-13,1900132818,"8,571.00",Manchester Working Limited,105646
WARRINGTON BOROUGH COUNCIL,http://statistics.data.gov.uk/id/local-authority/00EU,Holding Accounts,HOL,Single Billing Holding Account,91130,Specific Work,200200,27-Nov-13,1900133271,"3,392.00",Manchester Working Limited,105646
WARRINGTON BOROUGH COUNCIL,http://statistics.data.gov.uk/id/local-authority/00EU,Holding Accounts,HOL,Single Billing Holding Account,91130,Specific Work,200200,28-Nov-13,1900133417,"77,408.00",Manchester Working Limited,105646
WARRINGTON BOROUGH COUNCIL,http://statistics.data.gov.uk/id/local-authority/00EU,Families & Wellbeing,FWB,Care Purchase - PD,54440,Direct Payments,552000,12-Nov-13,1900132139,784.00,Redacted Personal Data,105665
WARRINGTON BOROUGH COUNCIL,http://statistics.data.gov.uk/id/local-authority/00EU,Families & Wellbeing,FWB,Care Purchase - OP & OT Central,54420,Direct Payments,552000,12-Nov-13,1900132140,576.00,Redacted Personal Data,105666
WARRINGTON BOROUGH COUNCIL,http://statistics.data.gov.uk/id/local-authority/00EU,Families & Wellbeing,FWB,Care Purchase - OP & OT South,54480,Direct Payments,552000,12-Nov-13,1900132143,"1,570.00",Redacted Personal Data,105687
WARRINGTON BOROUGH COUNCIL,http://statistics.data.gov.uk/id/local-authority/00EU,Families & Wellbeing,FWB,DSG Early Years PVI Settings,32417,Private & Voluntary 3 Year Olds,470100,13-Nov-13,1900133087,"1,500.00",Kids Planet Warrington,105710
WARRINGTON BOROUGH COUNCIL,http://statistics.data.gov.uk/id/local-authority/00EU,Families & Wellbeing,FWB,Care Purchase - PD,54440,Direct Payments,552000,12-Nov-13,1900132145,"2,912.00",Redacted Personal Data,105727
WARRINGTON BOROUGH COUNCIL,http://statistics.data.gov.uk/id/local-authority/00EU,Families & Wellbeing,FWB,Care Purchase - OP & OT Central,54420,Direct Payments,552000,12-Nov-13,1900132147,964.00,Redacted Personal Data,105729
WARRINGTON BOROUGH COUNCIL,http://statistics.data.gov.uk/id/local-authority/00EU,Families & Wellbeing,FWB,Care Purchase - PD,54440,Direct Payments,552000,12-Nov-13,1900132149,849.00,Redacted Personal Data,105758
WARRINGTON BOROUGH COUNCIL,http://statistics.data.gov.uk/id/local-authority/00EU,Families & Wellbeing,FWB,Care Purchase -OP & OT East,54430,CP-Day Care-External,441100,01-Nov-13,1900131479,"5,290.00",CareConcepts (Appleton) Ltd,105804
WARRINGTON BOROUGH COUNCIL,http://statistics.data.gov.uk/id/local-authority/00EU,Families & Wellbeing,FWB,Care Purchase - OP & OT South,54480,CP-Day Care-External,441100,01-Nov-13,1900131479,"3,839.00",CareConcepts (Appleton) Ltd,105804
WARRINGTON BOROUGH COUNCIL,http://statistics.data.gov.uk/id/local-authority/00EU,Families & Wellbeing,FWB,Care Purchase - OP & OT Central,54420,CP-Day Care-External,441100,01-Nov-13,1900131479,"2,878.00",CareConcepts (Appleton) Ltd,105804
WARRINGTON BOROUGH COUNCIL,http://statistics.data.gov.uk/id/local-authority/00EU,Families & Wellbeing,FWB,Care Purchase - OP & OT West,54470,CP-Day Care-External,441100,01-Nov-13,1900131479,"2,842.00",CareConcepts (Appleton) Ltd,105804
WARRINGTON BOROUGH COUNCIL,http://statistics.data.gov.uk/id/local-authority/00EU,Families & Wellbeing,FWB,Care Purchase Budget,54490,CP - Cont Care - External,441350,01-Nov-13,1900131479,791.00,CareConcepts (Appleton) Ltd,105804
WARRINGTON BOROUGH COUNCIL,http://statistics.data.gov.uk/id/local-authority/00EU,Families & Wellbeing,FWB,Care Purchase Budget,54490,Voids,515150,01-Nov-13,1900131479,"3,960.00",CareConcepts (Appleton) Ltd,105804
WARRINGTON BOROUGH COUNCIL,http://statistics.data.gov.uk/id/local-authority/00EU,Families & Wellbeing,FWB,Care Purchase - IC,54290,CP - Intermediate Care - External,441300,01-Nov-13,1900131480,"35,202.00",CareConcepts (Appleton) Ltd,105804
WARRINGTON BOROUGH COUNCIL,http://statistics.data.gov.uk/id/local-authority/00EU,Families & Wellbeing,FWB,Care Purchase Budget,54490,CP-LongStayExternal,441150,01-Nov-13,1900131478,"3,663.00",CareConcepts (Appleton) Ltd,105804
WARRINGTON BOROUGH COUNCIL,http://statistics.data.gov.uk/id/local-authority/00EU,Families & Wellbeing,FWB,Intermediate Care Assesment,54630,Medical & Hygiene Supplies,401050,05-Nov-13,1900131668,"1,000.00",CareConcepts (Appleton) Ltd,105804
WARRINGTON BOROUGH COUNCIL,http://statistics.data.gov.uk/id/local-authority/00EU,Families & Wellbeing,FWB,Care Purchase - IC,54290,CP - Intermediate Care - External,441300,06-Nov-13,1900131720,"19,200.00",CareConcepts (Appleton) Ltd,105804
WARRINGTON BOROUGH COUNCIL,http://statistics.data.gov.uk/id/local-authority/00EU,Families & Wellbeing,FWB,Care Purchase - OP & OT South,54480,CP-LongStayExternal,441150,07-Nov-13,1900131754,"7,228.00",CareConcepts (Appleton) Ltd,105804
WARRINGTON BOROUGH COUNCIL,http://statistics.data.gov.uk/id/local-authority/00EU,Families & Wellbeing,FWB,Care Purchase - OP & OT South,54480,CP-Nursing Care-External,441200,07-Nov-13,1900131754,"28,224.00",CareConcepts (Appleton) Ltd,105804
WARRINGTON BOROUGH COUNCIL,http://statistics.data.gov.uk/id/local-authority/00EU,Families & Wellbeing,FWB,Care Purchase -OP & OT East,54430,CP-Nursing Care-External,441200,07-Nov-13,1900131754,"3,562.00",CareConcepts (Appleton) Ltd,105804
WARRINGTON BOROUGH COUNCIL,http://statistics.data.gov.uk/id/local-authority/00EU,Families & Wellbeing,FWB,Care Purchase - OP & OT West,54470,CP-Nursing Care-External,441200,07-Nov-13,1900131754,"1,852.00",CareConcepts (Appleton) Ltd,105804
WARRINGTON BOROUGH COUNCIL,http://statistics.data.gov.uk/id/local-authority/00EU,Families & Wellbeing,FWB,Care Purchase Budget,54490,CP - Cont Care - External,441350,07-Nov-13,1900131754,"35,149.00",CareConcepts (Appleton) Ltd,105804
WARRINGTON BOROUGH COUNCIL,http://statistics.data.gov.uk/id/local-authority/00EU,Families & Wellbeing,FWB,Care Purchase Budget,54490,CP Free Nursing Care External,443500,07-Nov-13,1900131754,"9,175.00",CareConcepts (Appleton) Ltd,105804
WARRINGTON BOROUGH COUNCIL,http://statistics.data.gov.uk/id/local-authority/00EU,Families & Wellbeing,FWB,Care Purchase - IC,54290,CP - Intermediate Care - External,441300,27-Nov-13,1900133361,"37,602.00",CareConcepts (Appleton) Ltd,105804
WARRINGTON BOROUGH COUNCIL,http://statistics.data.gov.uk/id/local-authority/00EU,Families & Wellbeing,FWB,Care Purchase -OP & OT East,54430,CP-Day Care-External,441100,27-Nov-13,1900133352,"5,141.00",CareConcepts (Appleton) Ltd,105804
WARRINGTON BOROUGH COUNCIL,http://statistics.data.gov.uk/id/local-authority/00EU,Families & Wellbeing,FWB,Care Purchase - OP & OT South,54480,CP-Day Care-External,441100,27-Nov-13,1900133352,"4,823.00",CareConcepts (Appleton) Ltd,105804
WARRINGTON BOROUGH COUNCIL,http://statistics.data.gov.uk/id/local-authority/00EU,Families & Wellbeing,FWB,Care Purchase - OP & OT Central,54420,CP-Day Care-External,441100,27-Nov-13,1900133352,"2,800.00",CareConcepts (Appleton) Ltd,105804
WARRINGTON BOROUGH COUNCIL,http://statistics.data.gov.uk/id/local-authority/00EU,Families & Wellbeing,FWB,Care Purchase - OP & OT West,54470,CP-Day Care-External,441100,27-Nov-13,1900133352,"2,248.00",CareConcepts (Appleton) Ltd,105804
WARRINGTON BOROUGH COUNCIL,http://statistics.data.gov.uk/id/local-authority/00EU,Families & Wellbeing,FWB,Care Purchase Budget,54490,CP - Cont Care - External,441350,27-Nov-13,1900133352,749.00,CareConcepts (Appleton) Ltd,105804
WARRINGTON BOROUGH COUNCIL,http://statistics.data.gov.uk/id/local-authority/00EU,Families & Wellbeing,FWB,Care Purchase Budget,54490,Voids,515150,27-Nov-13,1900133352,"3,839.00",CareConcepts (Appleton) Ltd,105804
WARRINGTON BOROUGH COUNCIL,http://statistics.data.gov.uk/id/local-authority/00EU,Families & Wellbeing,FWB,Care Purchase - OP & OT Central,54420,Direct Payments,552000,12-Nov-13,1900132150,834.00,Redacted Personal Data,105861
WARRINGTON BOROUGH COUNCIL,http://statistics.data.gov.uk/id/local-authority/00EU,Families & Wellbeing,FWB,Care Purchase - PD,54440,Direct Payments,552000,12-Nov-13,1900132152,"1,273.00",Redacted Personal Data,105909
WARRINGTON BOROUGH COUNCIL,http://statistics.data.gov.uk/id/local-authority/00EU,Resources and Strategic Commissioning,RSC,Coroners Service,11100,Post Mortem Fees-Rep,440250,22-Nov-13,1900133014,"1,719.00",Dr Suboda M Weerasinghe,105924
WARRINGTON BOROUGH COUNCIL,http://statistics.data.gov.uk/id/local-authority/00EU,Families & Wellbeing,FWB,Care Purchase - Learning Disability,54450,Direct Payments,552000,12-Nov-13,1900132154,637.00,Redacted Personal Data,106066
WARRINGTON BOROUGH COUNCIL,http://statistics.data.gov.uk/id/local-authority/00EU,Families & Wellbeing,FWB,Assistant Director - Adult Social Care,54000,Car Leasing Charges,350000,04-Nov-13,1900131548,650.00,Alphabet UK Fleet Management,106080
WARRINGTON BOROUGH COUNCIL,http://statistics.data.gov.uk/id/local-authority/00EU,Resources and Strategic Commissioning,RSC,Coroners Service,11100,Post Mortem Fees-Rep,440250,05-Nov-13,1900131622,596.00,Dr Jo McPartland,106129
WARRINGTON BOROUGH COUNCIL,http://statistics.data.gov.uk/id/local-authority/00EU,Families & Wellbeing,FWB,Care Purchase - PD,54440,Direct Payments,552000,12-Nov-13,1900132156,529.00,Redacted Personal Data,106145
WARRINGTON BOROUGH COUNCIL,http://statistics.data.gov.uk/id/local-authority/00EU,Families & Wellbeing,CYP,Childrens Other,81004,Contract Works,492550,12-Nov-13,1900131946,"10,235.00",Groundlevel,106160
WARRINGTON BOROUGH COUNCIL,http://statistics.data.gov.uk/id/local-authority/00EU,Families & Wellbeing,CYP,Primary,81001,Contract Works,492550,12-Nov-13,1900131945,"13,186.00",Groundlevel,106160
WARRINGTON BOROUGH COUNCIL,http://statistics.data.gov.uk/id/local-authority/00EU,Families & Wellbeing,CYP,Childrens Other,81004,Contract Works,492550,12-Nov-13,1900131945,"6,359.00",Groundlevel,106160
WARRINGTON BOROUGH COUNCIL,http://statistics.data.gov.uk/id/local-authority/00EU,Families & Wellbeing,CYP,Childrens Other,81004,Contract Works,492550,20-Nov-13,1900132717,"10,500.00",Groundlevel,106160
WARRINGTON BOROUGH COUNCIL,http://statistics.data.gov.uk/id/local-authority/00EU,Families & Wellbeing,FWB,Care Purchase - Learning Disability,54450,CP ExternalOther Exp,440800,11-Nov-13,1900131904,"2,420.00",G-Map Services,106244
WARRINGTON BOROUGH COUNCIL,http://statistics.data.gov.uk/id/local-authority/00EU,Families & Wellbeing,FWB,DSG Early Years PVI Settings,32417,Private & Voluntary 3 Year Olds,470100,13-Nov-13,1900133083,"1,500.00",Redacted Personal Data,106386
WARRINGTON BOROUGH COUNCIL,http://statistics.data.gov.uk/id/local-authority/00EU,Families & Wellbeing,FWB,Care Purchase - OP & OT West,54470,Direct Payments,552000,12-Nov-13,1900132158,706.00,Redacted Personal Data,106441
WARRINGTON BOROUGH COUNCIL,http://statistics.data.gov.uk/id/local-authority/00EU,Families & Wellbeing,FWB,SCM Grappenhall Heys Primary School,33166,ICT Support - Maintenance,450600,29-Nov-13,1900133498,525.00,Cunninghams EPOS Solutions,106562
WARRINGTON BOROUGH COUNCIL,http://statistics.data.gov.uk/id/local-authority/00EU,Families & Wellbeing,FWB,SCM Woolston CE Primary School,33152,ICT Support - Maintenance,450600,29-Nov-13,1900133496,730.00,Cunninghams EPOS Solutions,106562
WARRINGTON BOROUGH COUNCIL,http://statistics.data.gov.uk/id/local-authority/00EU,Families & Wellbeing,FWB,SCM Barrowhall Lane Primary School,33156,ICT Support - Maintenance,450600,29-Nov-13,1900133495,730.00,Cunninghams EPOS Solutions,106562
WARRINGTON BOROUGH COUNCIL,http://statistics.data.gov.uk/id/local-authority/00EU,Families & Wellbeing,FWB,Care Purchase - PD,54440,Direct Payments,552000,12-Nov-13,1900132162,855.00,Redacted Personal Data,106630
WARRINGTON BOROUGH COUNCIL,http://statistics.data.gov.uk/id/local-authority/00EU,Families & Wellbeing,FWB,Child Disability,32212,Direct Payments,552000,12-Nov-13,1900132164,687.00,Redacted Personal Data,106708
WARRINGTON BOROUGH COUNCIL,http://statistics.data.gov.uk/id/local-authority/00EU,Families & Wellbeing,FWB,Alder Lodge Supporting People,43651,ICT Comms - Line Rental,450200,20-Nov-13,1900132741,"2,050.00",Virgin Media Business,106824
WARRINGTON BOROUGH COUNCIL,http://statistics.data.gov.uk/id/local-authority/00EU,Resources and Strategic Commissioning,RSC,Schools & Libraries Internet Project,23030,ICT Comms - Line Rental,450200,20-Nov-13,1900132741,"62,985.00",Virgin Media Business,106824
WARRINGTON BOROUGH COUNCIL,http://statistics.data.gov.uk/id/local-authority/00EU,Resources and Strategic Commissioning,RSC,ICT & Business Improvement,23020,ICT Comms - Line Rental,450200,20-Nov-13,1900132741,"5,236.00",Virgin Media Business,106824
WARRINGTON BOROUGH COUNCIL,http://statistics.data.gov.uk/id/local-authority/00EU,Resources and Strategic Commissioning,RSC,ICT Networks,23400,ICT Comms - Line Rental,450200,22-Nov-13,1900133022,"6,000.00",Virgin Media Business,106824
WARRINGTON BOROUGH COUNCIL,http://statistics.data.gov.uk/id/local-authority/00EU,Families & Wellbeing,CYP,Childrens Other,81004,Contract Works,492550,21-Nov-13,1900132802,724.00,Fairview Windows,106844
WARRINGTON BOROUGH COUNCIL,http://statistics.data.gov.uk/id/local-authority/00EU,"Economic Regeneration, Growth and Environment",ENO,Housing Projects,82008,Disabled Persons Grant 1996,554000,06-Nov-13,1900131692,"6,555.00",Metro Developments,106845
WARRINGTON BOROUGH COUNCIL,http://statistics.data.gov.uk/id/local-authority/00EU,Families & Wellbeing,FWB,Care Purchase - Learning Disability,54450,Direct Payments,552000,12-Nov-13,1900132167,668.00,Redacted Personal Data,106866
WARRINGTON BOROUGH COUNCIL,http://statistics.data.gov.uk/id/local-authority/00EU,Resources and Strategic Commissioning,RSC,Coroners Service,11100,Post Mortem Fees-Rep,440250,14-Nov-13,1900132529,"3,441.00",Dr Debdeep Dey,106869
WARRINGTON BOROUGH COUNCIL,http://statistics.data.gov.uk/id/local-authority/00EU,Families & Wellbeing,FWB,Child Disability,32212,CP-Domicil.External,440950,18-Nov-13,1900132643,"1,053.00",Glenelg Support,107016
WARRINGTON BOROUGH COUNCIL,http://statistics.data.gov.uk/id/local-authority/00EU,Families & Wellbeing,CYP,Childrens Other,81004,Contract Works,492550,25-Nov-13,1900133076,"114,038.00",Blackburn Diocesan Board of Educati,107093
WARRINGTON BOROUGH COUNCIL,http://statistics.data.gov.uk/id/local-authority/00EU,Families & Wellbeing,FWB,Homelessness,43650,Bond Guarantee Scme,530100,29-Nov-13,1900133445,795.00,E G Lettings,107252
WARRINGTON BOROUGH COUNCIL,http://statistics.data.gov.uk/id/local-authority/00EU,Families & Wellbeing,FWB,Care Purchase - Learning Disability,54450,Direct Payments,552000,12-Nov-13,1900132173,679.00,Redacted Personal Data,107297
WARRINGTON BOROUGH COUNCIL,http://statistics.data.gov.uk/id/local-authority/00EU,Families & Wellbeing,FWB,Care Purchase - PD,54440,Direct Payments,552000,12-Nov-13,1900132175,606.00,Redacted Personal Data,107299
WARRINGTON BOROUGH COUNCIL,http://statistics.data.gov.uk/id/local-authority/00EU,Families & Wellbeing,FWB,Care Purchase - PD,54440,Direct Payments,552000,12-Nov-13,1900132176,645.00,Redacted Personal Data,107363
WARRINGTON BOROUGH COUNCIL,http://statistics.data.gov.uk/id/local-authority/00EU,Families & Wellbeing,FWB,Fostering Team,31105,Volunteer Travel Expenses,460200,05-Nov-13,1900131665,575.00,Redacted Personal Data,107397
WARRINGTON BOROUGH COUNCIL,http://statistics.data.gov.uk/id/local-authority/00EU,Families & Wellbeing,FWB,Care Purchase -OP & OT East,54430,Direct Payments,552000,12-Nov-13,1900132178,687.00,Redacted Personal Data,107436
WARRINGTON BOROUGH COUNCIL,http://statistics.data.gov.uk/id/local-authority/00EU,Families & Wellbeing,FWB,Care Purchase - Learning Disability,54450,Direct Payments,552000,12-Nov-13,1900132179,"1,202.00",Redacted Personal Data,107437
WARRINGTON BOROUGH COUNCIL,http://statistics.data.gov.uk/id/local-authority/00EU,Holding Accounts,HOL,Single Billing Holding Account,91130,Agency Supply - GF,180000,04-Nov-13,1900131542,"36,832.00",Hays Specialist Recruitment Ltd,107512
WARRINGTON BOROUGH COUNCIL,http://statistics.data.gov.uk/id/local-authority/00EU,Holding Accounts,HOL,Single Billing Holding Account,91130,Agency Supply - GF,180000,08-Nov-13,1900131812,"37,142.00",Hays Specialist Recruitment Ltd,107512
WARRINGTON BOROUGH COUNCIL,http://statistics.data.gov.uk/id/local-authority/00EU,Holding Accounts,HOL,Single Billing Holding Account,91130,Agency Supply - GF,180000,14-Nov-13,1900132501,"37,544.00",Hays Specialist Recruitment Ltd,107512
WARRINGTON BOROUGH COUNCIL,http://statistics.data.gov.uk/id/local-authority/00EU,Holding Accounts,HOL,Single Billing Holding Account,91130,Agency Supply - GF,180000,21-Nov-13,1900132780,"35,204.00",Hays Specialist Recruitment Ltd,107512
WARRINGTON BOROUGH COUNCIL,http://statistics.data.gov.uk/id/local-authority/00EU,Holding Accounts,HOL,Single Billing Holding Account,91130,Agency Supply - GF,180000,27-Nov-13,1900133377,"39,965.00",Hays Specialist Recruitment Ltd,107512
WARRINGTON BOROUGH COUNCIL,http://statistics.data.gov.uk/id/local-authority/00EU,Families & Wellbeing,CYP,Childrens Other,81004,Equipment Purchase & Contract,400000,12-Nov-13,1900131959,"3,800.00",Rockmicro Ltd,107536
WARRINGTON BOROUGH COUNCIL,http://statistics.data.gov.uk/id/local-authority/00EU,Resources and Strategic Commissioning,RSC,Coroners Service,11100,Post Mortem Fees-Rep,440250,22-Nov-13,1900133012,729.00,Dr Michael Wall,107545
WARRINGTON BOROUGH COUNCIL,http://statistics.data.gov.uk/id/local-authority/00EU,Families & Wellbeing,FWB,Care Purchase - Learning Disability,54450,CP-LongStayExternal,441150,22-Nov-13,1900132880,"11,150.00",Kisimul School,107620
WARRINGTON BOROUGH COUNCIL,http://statistics.data.gov.uk/id/local-authority/00EU,Families & Wellbeing,FWB,DSG Independent School Fees,32011,Independent School Fees,490200,22-Nov-13,1900132880,"7,183.00",Kisimul School,107620
WARRINGTON BOROUGH COUNCIL,http://statistics.data.gov.uk/id/local-authority/00EU,Families & Wellbeing,FWB,Care Purchase - PD,54440,Direct Payments,552000,12-Nov-13,1900132182,"1,019.00",Redacted Personal Data,107665
WARRINGTON BOROUGH COUNCIL,http://statistics.data.gov.uk/id/local-authority/00EU,Families & Wellbeing,FWB,Care Purchase - OP & OT West,54470,Direct Payments,552000,12-Nov-13,1900132183,561.00,Redacted Personal Data,107667
WARRINGTON BOROUGH COUNCIL,http://statistics.data.gov.uk/id/local-authority/00EU,Families & Wellbeing,FWB,Care Purchase - Learning Disability,54450,CP-Nursing Care-External,441200,27-Nov-13,1900133370,"2,445.00",Thornton Manor,107806
WARRINGTON BOROUGH COUNCIL,http://statistics.data.gov.uk/id/local-authority/00EU,Families & Wellbeing,FWB,Care Purchase - Learning Disability,54450,CP-LongStayExternal,441150,27-Nov-13,1900133365,"2,880.00",Thornton Manor,107806
WARRINGTON BOROUGH COUNCIL,http://statistics.data.gov.uk/id/local-authority/00EU,Families & Wellbeing,CYP,Childrens Other,81004,Equipment Purchase & Contract,400000,15-Nov-13,1900132625,"1,870.00",Lloyds Business Communications Ltd,107808
WARRINGTON BOROUGH COUNCIL,http://statistics.data.gov.uk/id/local-authority/00EU,"Economic Regeneration, Growth and Environment",EG0,Finance Office Services,42110,Subscriptions,470000,26-Nov-13,1900133194,"1,000.00",Emap Ltd,107862
WARRINGTON BOROUGH COUNCIL,http://statistics.data.gov.uk/id/local-authority/00EU,Families & Wellbeing,FWB,Care Purchase - Learning Disability,54450,CP-LongStayExternal,441150,22-Nov-13,1900132967,"19,951.00",Oliver House Priory,107946
WARRINGTON BOROUGH COUNCIL,http://statistics.data.gov.uk/id/local-authority/00EU,"Economic Regeneration, Growth and Environment",FOL,Care Purchase Adults Central,54135,CP-LongStayExternal,441150,11-Nov-13,1900131903,"2,106.00",Ley Community Drug Services,107958
WARRINGTON BOROUGH COUNCIL,http://statistics.data.gov.uk/id/local-authority/00EU,Families & Wellbeing,FWB,Care Purchase - OP & OT Central,54420,Direct Payments,552000,12-Nov-13,1900132192,637.00,Redacted Personal Data,107960
WARRINGTON BOROUGH COUNCIL,http://statistics.data.gov.uk/id/local-authority/00EU,Families & Wellbeing,FWB,Care Purchase - Learning Disability,54450,CP-LongStayExternal,441150,26-Nov-13,1900133199,"4,200.00",Health & Social Care Partnerships,107996
WARRINGTON BOROUGH COUNCIL,http://statistics.data.gov.uk/id/local-authority/00EU,Families & Wellbeing,FWB,Care Purchase - Learning Disability,54450,CP-Nursing Care-External,441200,26-Nov-13,1900133198,"4,200.00",Health & Social Care Partnerships,107996
WARRINGTON BOROUGH COUNCIL,http://statistics.data.gov.uk/id/local-authority/00EU,Families & Wellbeing,FWB,Care Purchase - Learning Disability,54450,CP-Nursing Care-External,441200,26-Nov-13,1900133207,"4,200.00",Health & Social Care Partnerships,107996
WARRINGTON BOROUGH COUNCIL,http://statistics.data.gov.uk/id/local-authority/00EU,Families & Wellbeing,FWB,Care Purchase - Learning Disability,54450,CP-Nursing Care-External,441200,26-Nov-13,1900133204,"9,240.00",Health & Social Care Partnerships,107996
WARRINGTON BOROUGH COUNCIL,http://statistics.data.gov.uk/id/local-authority/00EU,Families & Wellbeing,FWB,Care Purchase - Learning Disability,54450,CP-Nursing Care-External,441200,26-Nov-13,1900133230,"6,000.00",Health & Social Care Partnerships,107996
WARRINGTON BOROUGH COUNCIL,http://statistics.data.gov.uk/id/local-authority/00EU,Families & Wellbeing,FWB,Care Purchase - Learning Disability,54450,CP-Nursing Care-External,441200,26-Nov-13,1900133203,"4,800.00",Health & Social Care Partnerships,107996
WARRINGTON BOROUGH COUNCIL,http://statistics.data.gov.uk/id/local-authority/00EU,Families & Wellbeing,FWB,Care Purchase - Learning Disability,54450,CP-Nursing Care-External,441200,26-Nov-13,1900133200,"4,800.00",Health & Social Care Partnerships,107996
WARRINGTON BOROUGH COUNCIL,http://statistics.data.gov.uk/id/local-authority/00EU,Families & Wellbeing,FWB,Care Purchase - Learning Disability,54450,CP-Nursing Care-External,441200,26-Nov-13,1900133202,"4,200.00",Health & Social Care Partnerships,107996
WARRINGTON BOROUGH COUNCIL,http://statistics.data.gov.uk/id/local-authority/00EU,Families & Wellbeing,FWB,Care Purchase Budget,54490,CP - Cont Care - External,441350,27-Nov-13,1900133387,"9,600.00",Health & Social Care Partnerships,107996
WARRINGTON BOROUGH COUNCIL,http://statistics.data.gov.uk/id/local-authority/00EU,Families & Wellbeing,FWB,Care Purchase - OP & OT Central,54420,CP-LongStayExternal,441150,27-Nov-13,1900133372,"1,640.00",Ideal Carehomes (Number One) Ltd,108328
WARRINGTON BOROUGH COUNCIL,http://statistics.data.gov.uk/id/local-authority/00EU,"Economic Regeneration, Growth and Environment",ENO,Housing Projects,82008,Disabled Persons Grant 1996,554000,06-Nov-13,1900131749,"10,000.00",Ehlen Construction,108366
WARRINGTON BOROUGH COUNCIL,http://statistics.data.gov.uk/id/local-authority/00EU,Families & Wellbeing,FWB,Care Purchase - OP & OT West,54470,CP-LongStayExternal,441150,06-Nov-13,1900131728,"1,713.00",Ennerdale Nursing & Residential Hom,108529
WARRINGTON BOROUGH COUNCIL,http://statistics.data.gov.uk/id/local-authority/00EU,"Economic Regeneration, Growth and Environment",ENO,Housing Projects,82008,Disabled Persons Grant 1996,554000,20-Nov-13,1900132711,896.00,Prism Medical UK,108616
WARRINGTON BOROUGH COUNCIL,http://statistics.data.gov.uk/id/local-authority/00EU,Families & Wellbeing,FWB,Special Schools Transport,33208,Warrington BC Schools Transport,300700,07-Nov-13,1900131760,700.00,Redacted Personal Data,108639
WARRINGTON BOROUGH COUNCIL,http://statistics.data.gov.uk/id/local-authority/00EU,Families & Wellbeing,FWB,Care Purchase - Learning Disability,54450,CP-Nursing Care-External,441200,11-Nov-13,1900131905,"4,860.00",Action on Hearing Loss,108881
WARRINGTON BOROUGH COUNCIL,http://statistics.data.gov.uk/id/local-authority/00EU,Families & Wellbeing,FWB,Care Purchase - Learning Disability,54450,CP-LongStayExternal,441150,26-Nov-13,1900133247,"11,896.00",Progress Care and Education Ltd,108888
WARRINGTON BOROUGH COUNCIL,http://statistics.data.gov.uk/id/local-authority/00EU,Families & Wellbeing,FWB,Care Purchase -OP & OT East,54430,CP-LongStayExternal,441150,22-Nov-13,1900132946,"2,480.00",Barchester The Wheatlands,108909
WARRINGTON BOROUGH COUNCIL,http://statistics.data.gov.uk/id/local-authority/00EU,Families & Wellbeing,FWB,Contracts - SM Commissioning Team 1,55910,Public Health Contract Payments,540000,20-Nov-13,1900132731,"4,167.00",Bridgewater Community Healthcare,108932
WARRINGTON BOROUGH COUNCIL,http://statistics.data.gov.uk/id/local-authority/00EU,Families & Wellbeing,FWB,Reablement/ WP/ ASC Grant c/f,53700,Joint Arrangements,505200,26-Nov-13,1900133145,"37,739.00",Bridgewater Community Healthcare,108932
WARRINGTON BOROUGH COUNCIL,http://statistics.data.gov.uk/id/local-authority/00EU,Families & Wellbeing,FWB,Reablement/ WP/ ASC Grant c/f,53700,Joint Arrangements,505200,26-Nov-13,1900133146,756.00,Bridgewater Community Healthcare,108932
WARRINGTON BOROUGH COUNCIL,http://statistics.data.gov.uk/id/local-authority/00EU,Families & Wellbeing,FWB,Intermediate Care,54770,Gen. Personal Needs,490850,26-Nov-13,1900133147,"2,284.00",Bridgewater Community Healthcare,108932
WARRINGTON BOROUGH COUNCIL,http://statistics.data.gov.uk/id/local-authority/00EU,Families & Wellbeing,FWB,Contracts - SM Commissioning Team 1,55910,Public Health Contract Payments,540000,26-Nov-13,1900133181,"187,083.00",Bridgewater Community Healthcare,108932
WARRINGTON BOROUGH COUNCIL,http://statistics.data.gov.uk/id/local-authority/00EU,Families & Wellbeing,FWB,Contracts - SM Commissioning Team 1,55910,Public Health Contract Payments,540000,26-Nov-13,1900133149,"187,083.00",Bridgewater Community Healthcare,108932
WARRINGTON BOROUGH COUNCIL,http://statistics.data.gov.uk/id/local-authority/00EU,Families & Wellbeing,FWB,Care Purchase Budget,54490,CP ExternalOther Exp,440800,13-Nov-13,1900132431,"110,000.00",Leyton Healthcare Limited,108970
WARRINGTON BOROUGH COUNCIL,http://statistics.data.gov.uk/id/local-authority/00EU,Families & Wellbeing,FWB,Care Purchase Budget,54490,CP ExternalOther Exp,440800,22-Nov-13,1900132972,"8,848.00",Leyton Healthcare Limited,108970
WARRINGTON BOROUGH COUNCIL,http://statistics.data.gov.uk/id/local-authority/00EU,Families & Wellbeing,FWB,Care Purchase Budget,54490,CP-LongStayExternal,441150,22-Nov-13,1900132974,"6,194.00",Leyton Healthcare Limited,108970
WARRINGTON BOROUGH COUNCIL,http://statistics.data.gov.uk/id/local-authority/00EU,Families & Wellbeing,FWB,Adoption Reform Grant,31117,Agency Supply - GF,180000,05-Nov-13,1900131659,"2,880.00",K Kerfoot Ltd,109052
WARRINGTON BOROUGH COUNCIL,http://statistics.data.gov.uk/id/local-authority/00EU,Families & Wellbeing,FWB,Adoption Reform Grant,31117,Agency Supply - GF,180000,06-Nov-13,1900131748,"3,600.00",K Kerfoot Ltd,109052
WARRINGTON BOROUGH COUNCIL,http://statistics.data.gov.uk/id/local-authority/00EU,Families & Wellbeing,FWB,Adoption Reform Grant,31117,Agency Supply - GF,180000,18-Nov-13,1900132657,"1,200.00",K Kerfoot Ltd,109052
WARRINGTON BOROUGH COUNCIL,http://statistics.data.gov.uk/id/local-authority/00EU,Families & Wellbeing,FWB,CIN Team 1,31001,Consult.& Prof. Serv,440000,12-Nov-13,1900131939,650.00,Cellmark,109099
WARRINGTON BOROUGH COUNCIL,http://statistics.data.gov.uk/id/local-authority/00EU,Families & Wellbeing,FWB,Care Purchase - Learning Disability,54450,CP-Domicil.External,440950,06-Nov-13,1900131753,650.00,Sanctuary Carr-Gomm,109157
WARRINGTON BOROUGH COUNCIL,http://statistics.data.gov.uk/id/local-authority/00EU,Families & Wellbeing,FWB,DSG Early Years PVI Settings,32417,Private & Voluntary 3 Year Olds,470100,13-Nov-13,1900133081,"1,500.00",Croft Village Pre School,109167
WARRINGTON BOROUGH COUNCIL,http://statistics.data.gov.uk/id/local-authority/00EU,Families & Wellbeing,FWB,Care Purchase Budget,54490,CP ExternalOther Exp,440800,13-Nov-13,1900132442,"8,054.00",London & Manchester Healthcare Ltd,109185
WARRINGTON BOROUGH COUNCIL,http://statistics.data.gov.uk/id/local-authority/00EU,Families & Wellbeing,FWB,Care Purchase Budget,54490,CP ExternalOther Exp,440800,13-Nov-13,1900132429,"110,000.00",London & Manchester Healthcare Ltd,109185
WARRINGTON BOROUGH COUNCIL,http://statistics.data.gov.uk/id/local-authority/00EU,Families & Wellbeing,FWB,Care Purchase Budget,54490,CP-LongStayExternal,441150,22-Nov-13,1900132888,"4,406.00",London & Manchester Healthcare Ltd,109185
WARRINGTON BOROUGH COUNCIL,http://statistics.data.gov.uk/id/local-authority/00EU,Families & Wellbeing,FWB,Care Purchase Budget,54490,CP-LongStayExternal,441150,22-Nov-13,1900132889,"4,800.00",London & Manchester Healthcare Ltd,109185
WARRINGTON BOROUGH COUNCIL,http://statistics.data.gov.uk/id/local-authority/00EU,Families & Wellbeing,CYP,Primary,81001,ICT Comms - Equipment Purchase,450100,20-Nov-13,1900132718,"8,584.00",CDEC Limited,109195
WARRINGTON BOROUGH COUNCIL,http://statistics.data.gov.uk/id/local-authority/00EU,Families & Wellbeing,FWB,Legal Fees - Safeguarding,30100,Legal Costs Incurred,440200,21-Nov-13,1900132760,"1,955.00",Redacted Personal Data,109208
WARRINGTON BOROUGH COUNCIL,http://statistics.data.gov.uk/id/local-authority/00EU,Families & Wellbeing,FWB,Care Purchase Budget,54490,CP ExternalOther Exp,440800,13-Nov-13,1900132454,"33,000.00",Four Seasons ta St Oswalds Care Hom,109422
WARRINGTON BOROUGH COUNCIL,http://statistics.data.gov.uk/id/local-authority/00EU,Families & Wellbeing,FWB,Care Purchase Budget,54490,CP ExternalOther Exp,440800,26-Nov-13,1900133227,"4,839.00",Four Seasons ta St Oswalds Care Hom,109422
WARRINGTON BOROUGH COUNCIL,http://statistics.data.gov.uk/id/local-authority/00EU,"Economic Regeneration, Growth and Environment",FOL,Care Purchase Adults Central,54135,CP-Domicil.External,440950,25-Nov-13,1900133130,"1,053.00",Next Steps Care Management Ltd,109592
WARRINGTON BOROUGH COUNCIL,http://statistics.data.gov.uk/id/local-authority/00EU,Families & Wellbeing,FWB,Care Purchase - OP & OT South,54480,CP-LongStayExternal,441150,26-Nov-13,1900133239,"1,615.00",Burrswood House Nursing & Residenti,109619
WARRINGTON BOROUGH COUNCIL,http://statistics.data.gov.uk/id/local-authority/00EU,Families & Wellbeing,FWB,Neighbourhood Co-o Central,51309,Payment of Grants,470050,28-Nov-13,1900133418,685.00,Festival Ave Community Club,109633
WARRINGTON BOROUGH COUNCIL,http://statistics.data.gov.uk/id/local-authority/00EU,Families & Wellbeing,FWB,Care Purchase Budget,54490,CP-LongStayExternal,441150,06-Nov-13,1900131714,"5,114.00",Bondcare St Andrews,109634
WARRINGTON BOROUGH COUNCIL,http://statistics.data.gov.uk/id/local-authority/00EU,Families & Wellbeing,FWB,Care Purchase Budget,54490,CP ExternalOther Exp,440800,06-Nov-13,1900131735,"10,471.00",Bondcare St Andrews,109634
WARRINGTON BOROUGH COUNCIL,http://statistics.data.gov.uk/id/local-authority/00EU,Families & Wellbeing,FWB,Care Purchase Budget,54490,CP ExternalOther Exp,440800,13-Nov-13,1900132423,"75,000.00",Bondcare St Andrews,109634
WARRINGTON BOROUGH COUNCIL,http://statistics.data.gov.uk/id/local-authority/00EU,Families & Wellbeing,FWB,Care Purchase Budget,54490,CP-LongStayExternal,441150,11-Nov-13,1900131895,"8,074.00",HC-One Limited Callands,109640
WARRINGTON BOROUGH COUNCIL,http://statistics.data.gov.uk/id/local-authority/00EU,Families & Wellbeing,FWB,Care Purchase Budget,54490,CP-LongStayExternal,441150,11-Nov-13,1900131892,"8,434.00",HC-One Limited Callands,109640
WARRINGTON BOROUGH COUNCIL,http://statistics.data.gov.uk/id/local-authority/00EU,Families & Wellbeing,FWB,Care Purchase Budget,54490,CP ExternalOther Exp,440800,13-Nov-13,1900132433,"145,000.00",HC-One Limited Callands,109640
WARRINGTON BOROUGH COUNCIL,http://statistics.data.gov.uk/id/local-authority/00EU,Families & Wellbeing,FWB,Care Purchase Budget,54490,CP ExternalOther Exp,440800,22-Nov-13,1900132866,"16,099.00",HC-One Limited Callands,109640
WARRINGTON BOROUGH COUNCIL,http://statistics.data.gov.uk/id/local-authority/00EU,"Economic Regeneration, Growth and Environment",ENO,Housing Projects,82008,Disabled Persons Grant 1996,554000,15-Nov-13,1900132630,"4,944.00",Cpec Ltd,109834
WARRINGTON BOROUGH COUNCIL,http://statistics.data.gov.uk/id/local-authority/00EU,"Economic Regeneration, Growth and Environment",ENO,Housing Projects,82008,Disabled Persons Grant 1996,554000,15-Nov-13,1900132631,"6,079.00",Cpec Ltd,109834
WARRINGTON BOROUGH COUNCIL,http://statistics.data.gov.uk/id/local-authority/00EU,Families & Wellbeing,FWB,Alder Lodge Supporting People,43651,Servicing Contracts,200150,06-Nov-13,1900131701,"4,024.00",Cumbria Security Services (North) L,110006
WARRINGTON BOROUGH COUNCIL,http://statistics.data.gov.uk/id/local-authority/00EU,Families & Wellbeing,FWB,Care Purchase - Learning Disability,54450,CP-Domicil.External,440950,27-Nov-13,1900133257,660.00,Great Opportunities Together CIC,110076
WARRINGTON BOROUGH COUNCIL,http://statistics.data.gov.uk/id/local-authority/00EU,Families & Wellbeing,FWB,Care Purchase - Learning Disability,54450,CP-Day Care-External,441100,27-Nov-13,1900133257,720.00,Great Opportunities Together CIC,110076
WARRINGTON BOROUGH COUNCIL,http://statistics.data.gov.uk/id/local-authority/00EU,Families & Wellbeing,FWB,Fostering Team,31105,Volunteer Travel Expenses,460200,05-Nov-13,1900131663,"2,015.00",Redacted Personal Data,110093
WARRINGTON BOROUGH COUNCIL,http://statistics.data.gov.uk/id/local-authority/00EU,"Economic Regeneration, Growth and Environment",FOL,Care Purchase Adults Central,54135,CP-Domicil.External,440950,22-Nov-13,1900132893,"2,909.00",Caring Alternatives limited,110164
WARRINGTON BOROUGH COUNCIL,http://statistics.data.gov.uk/id/local-authority/00EU,"Economic Regeneration, Growth and Environment",FOL,Care Purchase Adults Central,54135,CP-Domicil.External,440950,22-Nov-13,1900132860,"2,909.00",Caring Alternatives limited,110164
WARRINGTON BOROUGH COUNCIL,http://statistics.data.gov.uk/id/local-authority/00EU,"Economic Regeneration, Growth and Environment",FOL,Care Purchase Adults Central,54135,CP-Domicil.External,440950,01-Nov-13,1900131494,"4,000.00",East Cheshire Housing Consortium,110170
WARRINGTON BOROUGH COUNCIL,http://statistics.data.gov.uk/id/local-authority/00EU,"Economic Regeneration, Growth and Environment",FOL,Care Purchase Adults Central,54135,CP-Domicil.External,440950,27-Nov-13,1900133289,"4,000.00",East Cheshire Housing Consortium,110170
WARRINGTON BOROUGH COUNCIL,http://statistics.data.gov.uk/id/local-authority/00EU,"Economic Regeneration, Growth and Environment",ENO,Housing Projects,82008,Disabled Persons Grant 1996,554000,06-Nov-13,1900131693,"3,355.00",Independent Adaptations,110198
WARRINGTON BOROUGH COUNCIL,http://statistics.data.gov.uk/id/local-authority/00EU,Families & Wellbeing,FWB,Homelessness,43650,Bond Guarantee Scme,530100,06-Nov-13,1900131702,580.00,Infinite Property Ltd,110210
WARRINGTON BOROUGH COUNCIL,http://statistics.data.gov.uk/id/local-authority/00EU,Families & Wellbeing,FWB,Training,31203,DT - Training,198001,07-Nov-13,1900131756,766.00,Ann Woods Consultancy,110245
WARRINGTON BOROUGH COUNCIL,http://statistics.data.gov.uk/id/local-authority/00EU,Holding Accounts,HOL,Insurance Fund,91100,Insurance Claims,443400,11-Nov-13,1900131857,"3,124.00",Office King Ltd,110270
WARRINGTON BOROUGH COUNCIL,http://statistics.data.gov.uk/id/local-authority/00EU,Families & Wellbeing,FWB,Care Purchase -OP & OT East,54430,CP-LongStayExternal,441150,22-Nov-13,1900132965,"2,560.00",Adriana Ltd Ta The Priory,110286
WARRINGTON BOROUGH COUNCIL,http://statistics.data.gov.uk/id/local-authority/00EU,Families & Wellbeing,FWB,Care Purchase - OP & OT West,54470,CP-Nursing Care-External,441200,26-Nov-13,1900133228,"1,712.00",St Nicholas Nursing Home,110287
WARRINGTON BOROUGH COUNCIL,http://statistics.data.gov.uk/id/local-authority/00EU,Families & Wellbeing,FWB,Care Purchase - Learning Disability,54450,CP-LongStayExternal,441150,22-Nov-13,1900132861,"6,920.00",Clervaux Trust Ltd,110288
WARRINGTON BOROUGH COUNCIL,http://statistics.data.gov.uk/id/local-authority/00EU,Corporate Financing,COR,Car Leasing Scheme - Salary Sacrifice,52126,Car Leasing Charges,350000,01-Nov-13,1900131497,"2,196.00",NHC NHS Foundation Trust,110359
WARRINGTON BOROUGH COUNCIL,http://statistics.data.gov.uk/id/local-authority/00EU,Corporate Financing,COR,Car Leasing Scheme - Salary Sacrifice,52126,Car Leasing Charges,350000,01-Nov-13,1900131497,595.00,NHC NHS Foundation Trust,110359
WARRINGTON BOROUGH COUNCIL,http://statistics.data.gov.uk/id/local-authority/00EU,Corporate Financing,COR,Car Leasing Scheme - Salary Sacrifice,52126,Car Leasing Charges,350000,01-Nov-13,1900131501,"2,691.00",NHC NHS Foundation Trust,110359
WARRINGTON BOROUGH COUNCIL,http://statistics.data.gov.uk/id/local-authority/00EU,Corporate Financing,COR,Car Leasing Scheme - Salary Sacrifice,52126,Car Leasing Charges,350000,01-Nov-13,1900131501,670.00,NHC NHS Foundation Trust,110359
WARRINGTON BOROUGH COUNCIL,http://statistics.data.gov.uk/id/local-authority/00EU,Corporate Financing,COR,Car Leasing Scheme - Salary Sacrifice,52126,Car Leasing Charges,350000,01-Nov-13,1900131500,"3,761.00",NHC NHS Foundation Trust,110359
WARRINGTON BOROUGH COUNCIL,http://statistics.data.gov.uk/id/local-authority/00EU,Corporate Financing,COR,Car Leasing Scheme - Salary Sacrifice,52126,Car Leasing Charges,350000,01-Nov-13,1900131500,670.00,NHC NHS Foundation Trust,110359
WARRINGTON BOROUGH COUNCIL,http://statistics.data.gov.uk/id/local-authority/00EU,Corporate Financing,COR,Car Leasing Scheme - Salary Sacrifice,52126,Car Leasing Charges,350000,01-Nov-13,1900131499,"2,856.00",NHC NHS Foundation Trust,110359
WARRINGTON BOROUGH COUNCIL,http://statistics.data.gov.uk/id/local-authority/00EU,Corporate Financing,COR,Car Leasing Scheme - Salary Sacrifice,52126,Car Leasing Charges,350000,01-Nov-13,1900131499,670.00,NHC NHS Foundation Trust,110359
WARRINGTON BOROUGH COUNCIL,http://statistics.data.gov.uk/id/local-authority/00EU,Corporate Financing,COR,Car Leasing Scheme - Salary Sacrifice,52126,Car Leasing Charges,350000,01-Nov-13,1900131496,"3,519.00",NHC NHS Foundation Trust,110359
WARRINGTON BOROUGH COUNCIL,http://statistics.data.gov.uk/id/local-authority/00EU,Corporate Financing,COR,Car Leasing Scheme - Salary Sacrifice,52126,Car Leasing Charges,350000,01-Nov-13,1900131496,670.00,NHC NHS Foundation Trust,110359
WARRINGTON BOROUGH COUNCIL,http://statistics.data.gov.uk/id/local-authority/00EU,Corporate Financing,COR,Car Leasing Scheme - Salary Sacrifice,52126,Car Leasing Charges,350000,04-Nov-13,1900131547,"2,160.00",NHC NHS Foundation Trust,110359
WARRINGTON BOROUGH COUNCIL,http://statistics.data.gov.uk/id/local-authority/00EU,Corporate Financing,COR,Car Leasing Scheme - Salary Sacrifice,52126,Car Leasing Charges,350000,04-Nov-13,1900131547,595.00,NHC NHS Foundation Trust,110359
WARRINGTON BOROUGH COUNCIL,http://statistics.data.gov.uk/id/local-authority/00EU,Corporate Financing,COR,Car Leasing Scheme - Salary Sacrifice,52126,Car Leasing Charges,350000,04-Nov-13,1900131546,"2,925.00",NHC NHS Foundation Trust,110359
WARRINGTON BOROUGH COUNCIL,http://statistics.data.gov.uk/id/local-authority/00EU,Corporate Financing,COR,Car Leasing Scheme - Salary Sacrifice,52126,Car Leasing Charges,350000,04-Nov-13,1900131546,670.00,NHC NHS Foundation Trust,110359
WARRINGTON BOROUGH COUNCIL,http://statistics.data.gov.uk/id/local-authority/00EU,Corporate Financing,COR,Car Leasing Scheme - Salary Sacrifice,52126,Car Leasing Charges,350000,04-Nov-13,1900131545,"3,024.00",NHC NHS Foundation Trust,110359
WARRINGTON BOROUGH COUNCIL,http://statistics.data.gov.uk/id/local-authority/00EU,Corporate Financing,COR,Car Leasing Scheme - Salary Sacrifice,52126,Car Leasing Charges,350000,04-Nov-13,1900131545,670.00,NHC NHS Foundation Trust,110359
WARRINGTON BOROUGH COUNCIL,http://statistics.data.gov.uk/id/local-authority/00EU,Corporate Financing,COR,Car Leasing Scheme - Salary Sacrifice,52126,Car Leasing Charges,350000,04-Nov-13,1900131544,"3,709.00",NHC NHS Foundation Trust,110359
WARRINGTON BOROUGH COUNCIL,http://statistics.data.gov.uk/id/local-authority/00EU,Corporate Financing,COR,Car Leasing Scheme - Salary Sacrifice,52126,Car Leasing Charges,350000,04-Nov-13,1900131544,670.00,NHC NHS Foundation Trust,110359
WARRINGTON BOROUGH COUNCIL,http://statistics.data.gov.uk/id/local-authority/00EU,Corporate Financing,COR,Car Leasing Scheme - Salary Sacrifice,52126,Car Leasing Charges,350000,05-Nov-13,1900131677,"2,721.00",NHC NHS Foundation Trust,110359
WARRINGTON BOROUGH COUNCIL,http://statistics.data.gov.uk/id/local-authority/00EU,Corporate Financing,COR,Car Leasing Scheme - Salary Sacrifice,52126,Car Leasing Charges,350000,05-Nov-13,1900131677,739.00,NHC NHS Foundation Trust,110359
WARRINGTON BOROUGH COUNCIL,http://statistics.data.gov.uk/id/local-authority/00EU,Corporate Financing,COR,Car Leasing Scheme - Salary Sacrifice,52126,Car Leasing Charges,350000,11-Nov-13,1900131861,"1,310.00",NHC NHS Foundation Trust,110359
WARRINGTON BOROUGH COUNCIL,http://statistics.data.gov.uk/id/local-authority/00EU,Corporate Financing,COR,Car Leasing Scheme - Salary Sacrifice,52126,Car Leasing Charges,350000,11-Nov-13,1900131860,"3,366.00",NHC NHS Foundation Trust,110359
WARRINGTON BOROUGH COUNCIL,http://statistics.data.gov.uk/id/local-authority/00EU,Corporate Financing,COR,Car Leasing Scheme - Salary Sacrifice,52126,Car Leasing Charges,350000,11-Nov-13,1900131860,559.00,NHC NHS Foundation Trust,110359
WARRINGTON BOROUGH COUNCIL,http://statistics.data.gov.uk/id/local-authority/00EU,Corporate Financing,COR,Car Leasing Scheme - Salary Sacrifice,52126,Car Leasing Charges,350000,11-Nov-13,1900131862,"3,510.00",NHC NHS Foundation Trust,110359
WARRINGTON BOROUGH COUNCIL,http://statistics.data.gov.uk/id/local-authority/00EU,Corporate Financing,COR,Car Leasing Scheme - Salary Sacrifice,52126,Car Leasing Charges,350000,11-Nov-13,1900131862,739.00,NHC NHS Foundation Trust,110359
WARRINGTON BOROUGH COUNCIL,http://statistics.data.gov.uk/id/local-authority/00EU,Corporate Financing,COR,Car Leasing Scheme - Salary Sacrifice,52126,Car Leasing Charges,350000,11-Nov-13,1900131894,"3,067.00",NHC NHS Foundation Trust,110359
WARRINGTON BOROUGH COUNCIL,http://statistics.data.gov.uk/id/local-authority/00EU,Corporate Financing,COR,Car Leasing Scheme - Salary Sacrifice,52126,Car Leasing Charges,350000,11-Nov-13,1900131894,739.00,NHC NHS Foundation Trust,110359
WARRINGTON BOROUGH COUNCIL,http://statistics.data.gov.uk/id/local-authority/00EU,Corporate Financing,COR,Car Leasing Scheme - Salary Sacrifice,52126,Car Leasing Charges,350000,11-Nov-13,1900131858,"4,800.00",NHC NHS Foundation Trust,110359
WARRINGTON BOROUGH COUNCIL,http://statistics.data.gov.uk/id/local-authority/00EU,Corporate Financing,COR,Car Leasing Scheme - Salary Sacrifice,52126,Car Leasing Charges,350000,11-Nov-13,1900131858,739.00,NHC NHS Foundation Trust,110359
WARRINGTON BOROUGH COUNCIL,http://statistics.data.gov.uk/id/local-authority/00EU,Corporate Financing,COR,Car Leasing Scheme - Salary Sacrifice,52126,Car Leasing Charges,350000,11-Nov-13,1900131899,"1,985.00",NHC NHS Foundation Trust,110359
WARRINGTON BOROUGH COUNCIL,http://statistics.data.gov.uk/id/local-authority/00EU,Corporate Financing,COR,Car Leasing Scheme - Salary Sacrifice,52126,Car Leasing Charges,350000,11-Nov-13,1900131899,670.00,NHC NHS Foundation Trust,110359
WARRINGTON BOROUGH COUNCIL,http://statistics.data.gov.uk/id/local-authority/00EU,Corporate Financing,COR,Car Leasing Scheme - Salary Sacrifice,52126,Car Leasing Charges,350000,11-Nov-13,1900131859,"2,878.00",NHC NHS Foundation Trust,110359
WARRINGTON BOROUGH COUNCIL,http://statistics.data.gov.uk/id/local-authority/00EU,Corporate Financing,COR,Car Leasing Scheme - Salary Sacrifice,52126,Car Leasing Charges,350000,11-Nov-13,1900131859,670.00,NHC NHS Foundation Trust,110359
WARRINGTON BOROUGH COUNCIL,http://statistics.data.gov.uk/id/local-authority/00EU,Corporate Financing,COR,Car Leasing Scheme - Salary Sacrifice,52126,Car Leasing Charges,350000,15-Nov-13,1900132582,"2,940.00",NHC NHS Foundation Trust,110359
WARRINGTON BOROUGH COUNCIL,http://statistics.data.gov.uk/id/local-authority/00EU,Corporate Financing,COR,Car Leasing Scheme - Salary Sacrifice,52126,Car Leasing Charges,350000,15-Nov-13,1900132582,670.00,NHC NHS Foundation Trust,110359
WARRINGTON BOROUGH COUNCIL,http://statistics.data.gov.uk/id/local-authority/00EU,Corporate Financing,COR,Car Leasing Scheme - Salary Sacrifice,52126,Car Leasing Charges,350000,15-Nov-13,1900132599,"3,426.00",NHC NHS Foundation Trust,110359
WARRINGTON BOROUGH COUNCIL,http://statistics.data.gov.uk/id/local-authority/00EU,Corporate Financing,COR,Car Leasing Scheme - Salary Sacrifice,52126,Car Leasing Charges,350000,15-Nov-13,1900132599,670.00,NHC NHS Foundation Trust,110359
WARRINGTON BOROUGH COUNCIL,http://statistics.data.gov.uk/id/local-authority/00EU,Corporate Financing,COR,Car Leasing Scheme - Salary Sacrifice,52126,Car Leasing Charges,350000,15-Nov-13,1900132600,"4,257.00",NHC NHS Foundation Trust,110359
WARRINGTON BOROUGH COUNCIL,http://statistics.data.gov.uk/id/local-authority/00EU,Corporate Financing,COR,Car Leasing Scheme - Salary Sacrifice,52126,Car Leasing Charges,350000,15-Nov-13,1900132600,670.00,NHC NHS Foundation Trust,110359
WARRINGTON BOROUGH COUNCIL,http://statistics.data.gov.uk/id/local-authority/00EU,Corporate Financing,COR,Car Leasing Scheme - Salary Sacrifice,52126,Car Leasing Charges,350000,21-Nov-13,1900132812,"2,697.00",NHC NHS Foundation Trust,110359
WARRINGTON BOROUGH COUNCIL,http://statistics.data.gov.uk/id/local-authority/00EU,Corporate Financing,COR,Car Leasing Scheme - Salary Sacrifice,52126,Car Leasing Charges,350000,21-Nov-13,1900132812,739.00,NHC NHS Foundation Trust,110359
WARRINGTON BOROUGH COUNCIL,http://statistics.data.gov.uk/id/local-authority/00EU,Corporate Financing,COR,Car Leasing Scheme - Salary Sacrifice,52126,Car Leasing Charges,350000,21-Nov-13,1900132813,"2,587.00",NHC NHS Foundation Trust,110359
WARRINGTON BOROUGH COUNCIL,http://statistics.data.gov.uk/id/local-authority/00EU,Corporate Financing,COR,Car Leasing Scheme - Salary Sacrifice,52126,Car Leasing Charges,350000,21-Nov-13,1900132813,739.00,NHC NHS Foundation Trust,110359
WARRINGTON BOROUGH COUNCIL,http://statistics.data.gov.uk/id/local-authority/00EU,Corporate Financing,COR,Car Leasing Scheme - Salary Sacrifice,52126,Car Leasing Charges,350000,21-Nov-13,1900132808,"2,647.00",NHC NHS Foundation Trust,110359
WARRINGTON BOROUGH COUNCIL,http://statistics.data.gov.uk/id/local-authority/00EU,Corporate Financing,COR,Car Leasing Scheme - Salary Sacrifice,52126,Car Leasing Charges,350000,21-Nov-13,1900132808,739.00,NHC NHS Foundation Trust,110359
WARRINGTON BOROUGH COUNCIL,http://statistics.data.gov.uk/id/local-authority/00EU,Corporate Financing,COR,Car Leasing Scheme - Salary Sacrifice,52126,Car Leasing Charges,350000,29-Nov-13,1900133508,"1,454.00",NHC NHS Foundation Trust,110359
WARRINGTON BOROUGH COUNCIL,http://statistics.data.gov.uk/id/local-authority/00EU,Corporate Financing,COR,Car Leasing Scheme - Salary Sacrifice,52126,Car Leasing Charges,350000,29-Nov-13,1900133508,670.00,NHC NHS Foundation Trust,110359
WARRINGTON BOROUGH COUNCIL,http://statistics.data.gov.uk/id/local-authority/00EU,Corporate Financing,COR,Car Leasing Scheme - Salary Sacrifice,52126,Car Leasing Charges,350000,29-Nov-13,1900133506,"2,028.00",NHC NHS Foundation Trust,110359
WARRINGTON BOROUGH COUNCIL,http://statistics.data.gov.uk/id/local-authority/00EU,Corporate Financing,COR,Car Leasing Scheme - Salary Sacrifice,52126,Car Leasing Charges,350000,29-Nov-13,1900133506,595.00,NHC NHS Foundation Trust,110359
WARRINGTON BOROUGH COUNCIL,http://statistics.data.gov.uk/id/local-authority/00EU,Corporate Financing,COR,Car Leasing Scheme - Salary Sacrifice,52126,Car Leasing Charges,350000,29-Nov-13,1900133507,"2,760.00",NHC NHS Foundation Trust,110359
WARRINGTON BOROUGH COUNCIL,http://statistics.data.gov.uk/id/local-authority/00EU,Corporate Financing,COR,Car Leasing Scheme - Salary Sacrifice,52126,Car Leasing Charges,350000,29-Nov-13,1900133507,670.00,NHC NHS Foundation Trust,110359
WARRINGTON BOROUGH COUNCIL,http://statistics.data.gov.uk/id/local-authority/00EU,Corporate Financing,COR,Car Leasing Scheme - Salary Sacrifice,52126,Car Leasing Charges,350000,29-Nov-13,1900133513,"2,310.00",NHC NHS Foundation Trust,110359
WARRINGTON BOROUGH COUNCIL,http://statistics.data.gov.uk/id/local-authority/00EU,Corporate Financing,COR,Car Leasing Scheme - Salary Sacrifice,52126,Car Leasing Charges,350000,29-Nov-13,1900133513,670.00,NHC NHS Foundation Trust,110359
WARRINGTON BOROUGH COUNCIL,http://statistics.data.gov.uk/id/local-authority/00EU,Corporate Financing,COR,Car Leasing Scheme - Salary Sacrifice,52126,Car Leasing Charges,350000,29-Nov-13,1900133512,"4,279.00",NHC NHS Foundation Trust,110359
WARRINGTON BOROUGH COUNCIL,http://statistics.data.gov.uk/id/local-authority/00EU,Corporate Financing,COR,Car Leasing Scheme - Salary Sacrifice,52126,Car Leasing Charges,350000,29-Nov-13,1900133512,670.00,NHC NHS Foundation Trust,110359
WARRINGTON BOROUGH COUNCIL,http://statistics.data.gov.uk/id/local-authority/00EU,Corporate Financing,COR,Car Leasing Scheme - Salary Sacrifice,52126,Car Leasing Charges,350000,29-Nov-13,1900133509,"2,379.00",NHC NHS Foundation Trust,110359
WARRINGTON BOROUGH COUNCIL,http://statistics.data.gov.uk/id/local-authority/00EU,Corporate Financing,COR,Car Leasing Scheme - Salary Sacrifice,52126,Car Leasing Charges,350000,29-Nov-13,1900133509,670.00,NHC NHS Foundation Trust,110359
WARRINGTON BOROUGH COUNCIL,http://statistics.data.gov.uk/id/local-authority/00EU,Corporate Financing,COR,Car Leasing Scheme - Salary Sacrifice,52126,Car Leasing Charges,350000,29-Nov-13,1900133510,"3,090.00",NHC NHS Foundation Trust,110359
WARRINGTON BOROUGH COUNCIL,http://statistics.data.gov.uk/id/local-authority/00EU,Corporate Financing,COR,Car Leasing Scheme - Salary Sacrifice,52126,Car Leasing Charges,350000,29-Nov-13,1900133510,595.00,NHC NHS Foundation Trust,110359
WARRINGTON BOROUGH COUNCIL,http://statistics.data.gov.uk/id/local-authority/00EU,Families & Wellbeing,FWB,Care Purchase Budget,54490,CP - Cont Care - External,441350,06-Nov-13,1900131717,"1,909.00",Icare Service Limited,110435
WARRINGTON BOROUGH COUNCIL,http://statistics.data.gov.uk/id/local-authority/00EU,Families & Wellbeing,FWB,Care Purchase - Learning Disability,54450,CP-Domicil.External,440950,06-Nov-13,1900131726,"2,988.00",Icare Service Limited,110435
WARRINGTON BOROUGH COUNCIL,http://statistics.data.gov.uk/id/local-authority/00EU,Families & Wellbeing,FWB,Care Purchase - Learning Disability,54450,CP-Day Care-External,441100,06-Nov-13,1900131726,"4,010.00",Icare Service Limited,110435
WARRINGTON BOROUGH COUNCIL,http://statistics.data.gov.uk/id/local-authority/00EU,Families & Wellbeing,FWB,Care Purchase - Learning Disability,54450,CP-Domicil.External,440950,06-Nov-13,1900131740,"3,095.00",Icare Service Limited,110435
WARRINGTON BOROUGH COUNCIL,http://statistics.data.gov.uk/id/local-authority/00EU,Families & Wellbeing,FWB,Care Purchase - Learning Disability,54450,CP-Day Care-External,441100,06-Nov-13,1900131740,"3,850.00",Icare Service Limited,110435
WARRINGTON BOROUGH COUNCIL,http://statistics.data.gov.uk/id/local-authority/00EU,Families & Wellbeing,FWB,Care Purchase - Learning Disability,54450,CP-Domicil.External,440950,13-Nov-13,1900132436,"1,155.00",Icare Service Limited,110435
WARRINGTON BOROUGH COUNCIL,http://statistics.data.gov.uk/id/local-authority/00EU,Families & Wellbeing,FWB,Child Disability,32212,CP-Domicil.External,440950,15-Nov-13,1900132637,"1,468.00",Icare Service Limited,110435
WARRINGTON BOROUGH COUNCIL,http://statistics.data.gov.uk/id/local-authority/00EU,Families & Wellbeing,FWB,Child Disability,32212,CP-Domicil.External,440950,15-Nov-13,1900132634,"3,808.00",Icare Service Limited,110435
WARRINGTON BOROUGH COUNCIL,http://statistics.data.gov.uk/id/local-authority/00EU,Families & Wellbeing,FWB,Child Disability,32212,CP-Domicil.External,440950,15-Nov-13,1900132636,600.00,Icare Service Limited,110435
WARRINGTON BOROUGH COUNCIL,http://statistics.data.gov.uk/id/local-authority/00EU,Families & Wellbeing,FWB,Care Purchase Budget,54490,CP - Cont Care - External,441350,22-Nov-13,1900132950,"1,091.00",Icare Service Limited,110435
WARRINGTON BOROUGH COUNCIL,http://statistics.data.gov.uk/id/local-authority/00EU,Families & Wellbeing,FWB,Care Purchase - Learning Disability,54450,CP-Domicil.External,440950,22-Nov-13,1900132903,"2,355.00",Icare Service Limited,110435
WARRINGTON BOROUGH COUNCIL,http://statistics.data.gov.uk/id/local-authority/00EU,Families & Wellbeing,FWB,Care Purchase - Learning Disability,54450,CP-Domicil.External,440950,22-Nov-13,1900132979,"2,453.00",Icare Service Limited,110435
WARRINGTON BOROUGH COUNCIL,http://statistics.data.gov.uk/id/local-authority/00EU,Families & Wellbeing,FWB,Care Purchase - Learning Disability,54450,CP-Day Care-External,441100,22-Nov-13,1900132979,"4,010.00",Icare Service Limited,110435
WARRINGTON BOROUGH COUNCIL,http://statistics.data.gov.uk/id/local-authority/00EU,Families & Wellbeing,FWB,Care Purchase - Learning Disability,54450,CP-Domicil.External,440950,22-Nov-13,1900132978,"1,401.00",Icare Service Limited,110435
WARRINGTON BOROUGH COUNCIL,http://statistics.data.gov.uk/id/local-authority/00EU,Families & Wellbeing,FWB,Care Purchase - Learning Disability,54450,CP-Domicil.External,440950,22-Nov-13,1900132947,"4,273.00",Icare Service Limited,110435
WARRINGTON BOROUGH COUNCIL,http://statistics.data.gov.uk/id/local-authority/00EU,Families & Wellbeing,FWB,Care Purchase - Learning Disability,54450,CP-Domicil.External,440950,22-Nov-13,1900132951,"5,476.00",Icare Service Limited,110435
WARRINGTON BOROUGH COUNCIL,http://statistics.data.gov.uk/id/local-authority/00EU,Families & Wellbeing,FWB,Care Purchase - Learning Disability,54450,CP-Domicil.External,440950,22-Nov-13,1900132980,"3,736.00",Icare Service Limited,110435
WARRINGTON BOROUGH COUNCIL,http://statistics.data.gov.uk/id/local-authority/00EU,Families & Wellbeing,FWB,Care Purchase - Learning Disability,54450,CP-Day Care-External,441100,22-Nov-13,1900132980,"3,850.00",Icare Service Limited,110435
